{"text_format":"1","workbook":"xlsx","n_sheets":7,"sheets":["INSTRUCTIVO DE USO","DTA","Hoja1","OBLIGACIONES APLICABLES","Temp","Hoja2","Hoja3"],"not_rendered":{"charts":0,"images":3,"macros":1,"external_links":0,"defined_names":5,"comments":1,"pivot_tables":0},"unopened":[],"bounds":{"document_bytes":16777216,"sheet_cells":100000,"rows_first":2000,"rows_last":500,"rows_between":2000,"halvings":0,"cell_chars":16384,"cell_head_chars":4096},"cells_cut":0,"cells_raw":0,"read":"whole","date_system":"1900"}

{"sheet":"INSTRUCTIVO DE USO","index":0,"n_rows":8,"n_cols":3,"rows_kept":8,"cut":false,"hidden":false,"merged":[[0,0,0,1],[0,2,0,12],[2,0,2,12],[4,0,5,12],[7,0,8,12]]}
[null,null,"INSTRUCTIVO DE USO DEL INSTRUMENTO DE OBLIGACIONES MÍNIMAS "]
[]
["1. INTRODUCCIÓN\n\nLas Obligaciones Mínimas son un instrumento interno de la Autoridad Nacional de Licencias Ambientales – ANLA formulado con el fin de unificar criterios por parte de los profesionales que realizan la evaluación y seguimiento de proyectos, obras o actividades sujetos al trámite de licenciamiento ambiental, mediante la estandarización de obligaciones mínimas asociadas al acto administrativo a través del cual se otorga o modifica la licencia ambiental, se actualizan los planes de manejo ambiental y se imponen medidas adicionales, de tal manera que se asegure que en cada tipo de proyecto se impongan las mismas obligaciones estandarizadas bajo requerimientos legales y directrices institucionales, así como con condiciones unificadas y claramente definidas de modo, tiempo y lugar. No obstante lo anterior, se tuvo en cuenta el alcance del mismo para formular obligaciones mínimas que fueran útiles en los procesos de evaluación y seguimiento de los Dictámenes Técnicos Ambientales - DTA.\n\nEs importante resaltar que, este instrumento al ser interno facilita la labor de esta autoridad en la imposición de obligaciones mínimas en los procesos de evaluación y seguimiento (este último en los casos estrictamente aplicables), y en la verificación del cumplimiento de las mismas en el seguimiento. Sin embargo, al ser puesto a disposición de los usuarios servirá como herramienta de planeación de los proyectos, de tal manera que previo a la radicación de los estudios ambientales frente a esta autoridad, las obligaciones puedan ser incorporadas por los usuarios en la formulación de los Planes de Manejo Ambiental - PMA\n\nPor lo anterior, a continuación se realizan algunas precisiones a los solicitantes de DTA cuando estos deseen consultar y hacer uso de este instrumento durante el proceso de formulación de sus PMA."]
[]
["2. DEFINICIONES\n\nCondición de lugar: (dónde) lugares o puntos en los que debe desarrollarse la actividad según experticia del evaluador o según protocolos, guías, normativa en general, etc.\nCondición de modo: (cómo) descripción de las características o circunstancias en las que se deben realizar las actividades autorizadas, según protocolos, guías, normativa en general y aspectos administrativos que se definan.\nCondición de tiempo: (cuándo) periodicidad para la ejecución de monitoreos, tiempos de realización de actividades, tiempos de presentación de la información, etc.\nObligaciones mínimas: Describen las condiciones mínimas de modo, tiempo y lugar a través de las cuales la Autoridad Ambiental, se pronuncia a través del concepto técnico (DTA) sobre la evaluación integral de los estudios presentados para obtener el Registro Nacional de plaguicidas químicos de uso agrícola, con base en los requerimientos del Manual Técnico de la Decisión Andina. En razón a lo anterior, se clasifican las obligaciones mínimas, de conformidad con las características de las condiciones reglamentadas, de la siguiente manera: obligaciones asociadas a componentes y actividades, obligaciones asociadas a planes, obligaciones socioeconómicas, obligaciones generales y requisitos del acto administrativo. \nObligaciones asociadas a actividades: contiene obligaciones relacionadas con algunas actividades propias del proyecto, como gestión de residuos.\nObligaciones asociadas a Planes: contiene obligaciones relacionadas con la ejecución y cumplimiento del plan de gestión del riesgo.\nObligaciones sociales: contienen obligaciones relacionadas con temas de gestión social.\nObligaciones generales: agrupa diferentes aspectos relacionados con cumplimiento de parámetros normativos, presentación de información asociada a la gestion del plaguicida y demás condiciones generales a ser tenidas en cuenta por parte del beneficiario del DTA. La inclusión de este tipo de obligaciones, deberá realizarse en todos los DTA. En caso de que el solicitante de la licencia ambiental haga uso de este instrumento durante el proceso de formulación de su PMA, deberá tener en cuenta sólo aquellas que soliciten el levantamiento y presentación de información a través de los Informes de Cumplimiento Ambiental.\nRequisitos del acto administrativo: corresponde a aquellas obligaciones de la ANLA frente a cada DTA. La inclusión por parte de los profesionales jurídicos de este tipo de obligaciones deberá realizarse en todas los DTA. No tienen relación alguna con las fases de desarrollo del proyecto y no son objeto de seguimiento. Algunas de las obligaciones, contienen textos en rojo que deberán ser diligenciados directamente en el acto administrativo por el profesional jurídico, como: nombre del producto formulado, nombre de la empresa, etc. En caso de que el solicitante de la licencia ambiental haga uso de este instrumento durante el proceso de formulación de su PMA, no deberá tener en cuenta este tipo de obligaciones dada la naturaleza de las mismas."]
[]
[]
["3. DESARROLLO\n\nCada archivo contiene dos pestañas u hojas de cálculo. La primera pestaña, hace referencia al tipo de proyecto para el cual se estandarizaron obligaciones asociadas a permisos, autorizaciones y aspectos generales. Esta pestaña cuenta con un encabezado indicando el tipo de proyecto para el cual se estandarizaron obligaciones y con 3 secciones.\n\nLa SECCIÓN 1. PERMISOS, AUTORIZACIONES Y ASPECTOS GENERALES agrupa 5 subsecciones que son descritas a continuación:\n\nSubsección 1. ID (Columna A): corresponde a la numeración de las obligaciones, la cual se encuentra en orden consecutivo.\nSubsección 2. Temática (Columna B): corresponde a la temática abordada en cada uno de los grupos de obligaciones mínimas (obligaciones asociadas a componentes y actividades, obligaciones asociadas a planes, obligaciones socioeconómicas, obligaciones generales y requisitos del acto administrativo).\nSubsección 3. Aspecto a tratar (Columna C): comprende los elementos a los que hace referencia cada obligación, p.e: actualización del plan de contingencia, implementar acciones para garantizar franjas de seguridad en la aplicación del producto, transporte de plaguicidas, etc.\nSubsección 4. Aspecto a tratar (Columna D): permite seleccionar la aplicabilidad ( √ ) o no ( X ) de una obligación mediante un doble clic en la celda, según el contexto del proyecto que se esté evaluando, es decir, si se le otorga un determinado permiso, se le autoriza alguna obra o actividad o le aplica de acuerdo con los permisos y actividades desarrolladas por el proyecto.\nSubsección 5. Obligación (Columna E): conjunto de obligaciones mínimas establecidas para cada temática y aspecto a tratar.\n\nPor otra parte, la SECCIÓN 2. FASES DEL PROYECTO PARA EL CUMPLIMIENTO Y SEGUIMIENTO A OBLIGACIONES indica la fase en la cual deberán ejecutarse las acciones asociadas a una determinada obligación para el cumplimiento por parte del beneficiario del DTA y el seguimiento por parte de la Autoridad: 1) Fase de importación y/o comercialización.\n\nFinalmente, la SECCIÓN 3. TEMPORALIDAD establece si la obligación debe ser de cumplimiento permanente o temporal por parte de los beneficiarios del DTA.\n\nUna vez se revisen todas las obligaciones mínimas y se indique si aplican o no, los usuarios de este instrumento deberán dirigirse a la segunda pestaña denominada OBLIGACIONES APLICABLES para generar el listado final de obligaciones mínimas que pueden establecerse a cada proyecto. Para generar este listado, se deberá dar clic en el botón de “Actualizar Anexo”.\n\nLa aplicabilidad de las obligaciones en las diferentes fases del proyecto, así como su temporalidad deberá asociarse al final de cada obligación en el respectivo documento (Concepto Técnico y acto administratico para el caso de la Autoridad o PMA para el caso de los usuarios o solicitantes del DTA)."]

{"sheet":"DTA","index":1,"n_rows":40,"n_cols":7,"rows_kept":40,"cut":false,"hidden":false,"merged":[[2,6,3,6],[0,6,1,6],[5,0,5,4],[0,0,4,1],[0,2,4,4],[0,5,1,5],[2,5,3,5]]}
[null,null,"          OBLIGACIONES MÍNIMAS PARA DICTÁMENES TÉCNICOS AMBIENTALES - DTA",null,null,"Fecha:","2022-08-10"]
[]
[null,null,null,null,null,"Versión:",2]
[]
[null,null,null,null,null,"Código:","EL-FO-38"]
["SECCIÓN 1. PERMISOS, AUTORIZACIONES Y ASPECTOS GENERALES",null,null,null,null,"SECCIÓN 2. FASE DEL PROYECTO PARA EL CUMPLIMIENTO Y SEGUIMIENTO A OBLIGACIONES","SECCIÓN 3, TEMPORALIDAD"]
["ID","Temática","Aspecto a tratar","Aplica (SI / NO)","Obligación","Importación y/o comercialización","Temporal  / \nPermanente"]
[1,"PLAN DE CONTINGENCIA","Entrega de los soportes de implementación del plan de contingencia",null,"El titular del presente Dictamen Técnico Ambiental - DTA, incluirá los soportes de la implementación de las acciones incluidas en Plan de contingencia de conformidad con el Decreto 2151 del 2017, o aquel que lo modifique, derogue o sustituya a través de los Informes de Cumplimiento Ambiental - ICA.","Aplica","Permanente"]
[2,"PLAN DE CONTINGENCIA","Actualización del Plan de Contingencia",null,"Presentar en los Informes de Cumplimiento Ambiental – ICA, la revisión y/o complemento del Plan de Contingencia siguiendo los lineamientos descritos en el Decreto 1081 del 2015 adicionado por el Decreto 2157 de 2017 en el Artículo 2.3.1.5.2.1.1, Numeral 3.1.2, Literal f y el Decreto 1076 de 2015 en el Artículo 2.2.2.3.5.1, Numeral 9 y el Artículo 2.2.2.3.9.3 o aquellos que los modifiquen, deroguen o sustituyan y en caso de no presentarse un ajuste en el documento, indicar las razones por las cuales no se realiza.\n\na) Ante nuevas exigencias o cambios en la legislación nacional referente al plan de contingencia, en los plazos establecidos en las mismas.\nb) Cuando se introduzcan cambios en los procesos que aumenten la probabilidad de ocurrencia de una contingencia ambiental y/o consecuencia de la materialización del riesgo.  \nc) Ante cambios en las valoraciones de los escenarios de riesgo presentes en el proyecto.\nd) Ante la ocurrencia de una contingencia que evidencie la necesidad de ajuste del plan.\ne) Ante evidencias producto del proceso de seguimiento y control efectuado por la Autoridad Ambiental Competente.","Aplica","Permanente"]
[3,"PLAN DE CONTINGENCIA","Reporte de eventos",null,"Reportar los eventos de contingencia a través de la plataforma VITAL de conformidad a lo establecido en el artículo 2o. de la Resolución 1767 de 2016 o aquellos que los modifiquen, deroguen o sustituyan, ya sea que los eventos sean generados del proyecto hacia el medio o del medio hacia el proyecto, presentando en cada uno de los avances (reportes parciales, de recuperación ambiental y final, según corresponda), las medidas, monitoreos, protocolos y/o acciones ejecutadas en el marco de la atención.","Aplica","Permanente"]
[4,"RESIDUOS","Movimiento transfronterizo para la disposición de residuos peligrosos",null,"En caso de realizar movimientos transfronterizos para disposición de desechos peligrosos, el titular del presente Dictámen Técnico Ambiental deberá dar cumplimiento a lo dispuesto en el Convenio de Basilea, ratificado por la Ley 253 del 9 de enero de 1996, sobre el control de los movimientos transfronterizos de los desechos peligrosos y su eliminación, así como el Decreto 1076 de 2015 y demás normas reglamentarias.","Aplica","Permanente"]
[5,"RESIDUOS","Integrar la formulación de que trata el DTA en los Planes de Gestión de Devolución de Productos Posconsumo de Plagucidas",null,"El titular del presente Dictamen Técnico Ambiental - DTA deberá incluir el producto formulado de que trata el Dictamen Técnico Ambiental emitido mediante el presente acto administrativo, en el Plan de Gestión de Devolución de Productos Posconsumo de Plaguicidas, de conformidad con lo establecido en la Resolución 1675 de 2 de diciembre de 2013 e informar sobre el número de radicado de entrega del plan a esta autoridad por cada periodo reportado en los respectivos Informes de Cumplimiento Ambiental - ICA.","Aplica","Permanente"]
[6,"OBLIGACIONES GENERALES ","Acreditación de la no realización de actividades a partir del primer año de la obtención del Registro Nacional",null,"Si en un periodo anual a partir de la fecha de obtención del Registro Nacional de Plaguicidas Químicos de Uso Agrícola, la empresa [nombre de la empresa] no realiza las actividades de importación o comercialización, deberá en el primer trimestre del año siguiente presentar ante esta Autoridad y por los medios legalmente establecidos el certificado del revisor fiscal o el representante legal de la empresa, mediante el cual se acredite la no realización de estas actividades.","Aplica","Temporal"]
[7,"OBLIGACIONES GENERALES ","Informar sobre fecha de inicio de actividades",null,"El titular del presente Dictamen Técnico Ambiental - DTA, informará a esta Autoridad y a las demás autoridades ambientales regionales la fecha de inicio de las actividades de importación y/o comercialización del producto formulado [nombre del producto formulado] a partir del ingrediente activo grado técnico [nombre del ingrediente activo] de que trata el presente acto administrativo, dentro de los diez (10) días previos y mediante oficio dirigido a la Subdirección de Seguimiento de Licencias Ambientales. En caso de que no se pueda dar inicio al proyecto dentro de la fecha previamente informada, se notificará inmediatamente a esta Autoridad la justificación, así como la nueva fecha de inicio. Enviar a la ANLA copia de los oficios radicados ante las demás autoridades ambientales regionales.","Aplica","Temporal"]
[8,"OBLIGACIONES GENERALES ","Informar sobre la conformación del Departamento de Gestión Ambiental",null,"El titular del presente Dictamen Técnico Ambiental - DTA en el término de dos (2) meses a partir de la expedición del presente Dictámen Técnico Ambiental - DTA, deberá presentar copia del documento donde conste que se informó a las autoridades ambientales regionales sobre la conformación del Departamento de Gestión Ambiental, que incluya funciones y responsabilidades asignadas, en cumplimiento al artículo 2.2.8.11.1.7. del Decreto 1076 de 2015, o aquella que la modifique, derogue o sustituya.","Aplica","Temporal"]
[9,"OBLIGACIONES GENERALES ","Entrega de soportes de las actividades desarrolladas para la supervisión de los distribuidores",null,"El titular del presente Dictamen Técnico Ambiental - DTA, presentará en los Informe de Cumplimiento Ambiental - ICA los soportes de las actividades desarrolladas para la supervisión de los distribuidores, donde se incluyan capacitaciones en temas como: manejo adecuado del producto, prohibición de re-empaque y/o re-envase de producto, manejo de contingencias, manejo de productos vencidos, manejo de residuos peligrosos generados en contingencias, manejo de inventarios, entre otros; anexando los soportes respectivos. Adicionalmente, debe presentar soportes de las inspecciones periódicas que se realicen a los sitios de almacenamiento del producto.","Aplica","Permantente"]
[10,"OBLIGACIONES GENERALES ","Implementar acciones para garantizar franjas de seguridad en la aplicación del producto",null,"El titular del presente Dictamen Técnico Ambiental - DTA debe adelantar acciones para garantizar que los aplicadores del producto formulado respeten las franjas de seguridad en relación con los cuerpos o cursos de agua, carreteras, troncales, núcleos de población humana y animal, cultivos susceptibles de daño por contaminación, o cualquier otra área que requiera protección, como lo establece del Decreto 1843 de 1991 expedido por el Ministerio de Salud, hoy Ministerio de Salud y Protección Social, o de acuerdo a lo que dispongan las normas que lo modifiquen, deroguen o sustituyan.","Aplica","Permanente"]
[11,"OBLIGACIONES GENERALES ","Transporte de plaguicidas",null,"El titular del presente Dictamen Técnico Ambiental - DTA, presentará en los Informes de Cumplimiento Ambiental - ICA las actividades desarrolladas para asegurar el cumplimiento del Decreto 1079 del 26 de mayo de 2015 en relación al transporte de los plaguicidas, para lo cual se incluirán los soportes asociados a las inspecciones de vehículos, capacitaciones a conductores, entre otros.","Aplica","Permantente"]
[12,"OBLIGACIONES GENERALES ","Presentación anual de informe de cumplimiento",null,"El titular del presente Dictámen Técnico Ambiental - DTA, presentará anualmente en el primer trimestre año vencido y en una sola entrega a esta Autoridad el Informe de Cumplimiento de las actividades propuestas en cada programa que conforma el Plan de Manejo Ambiental aprobado, incluyendo la evaluación de la efectividad de dichos programas (Acciones desarrolladas con sus respectivos soportes, evaluación de indicadores, cumplimiento de los objetivos y metas, entre otros).","Aplica","Permanente"]
[13,"OBLIGACIONES GENERALES ","Control de consumo total del producto",null,"El titular del presente Dictamen Técnico Ambiental - DTA, presentará en los Informe de Cumplimiento Ambiental - ICA, el registro del consumo anual del producto en el país, discriminado geográficamente por departamentos, para lo cual deberá diligenciar la siguiente información: \n\n\n\n\n\n\n\n","Aplica","Permanente"]
[14,"OBLIGACIONES GENERALES ","Informar a las corporaciones donde se comercialice el producto sobre la implementación del PMA",null,"El titular del presente Dictamen Técnico Ambiental - DTA, informará de forma anual a las Corporaciones Autónomas Regionales de la respectiva jurisdicción donde se comercialice el producto formulado [nombre del producto formulado], acerca de las actividades implementadas dentro del Plan de Manejo Ambiental. Presentar los soportes correspondientes a través de los Informes de Cumplimiento Ambiental - ICA.","Aplica","Permanente"]
[15,"OBLIGACIONES GENERALES ","Modificación de DTA",null,"El titular del presente Dictamen Técnico Ambiental - DTA solicitará la respectiva modificación del presente instrumento de manejo y control ambiental a la Autoridad Nacional de Licencias Ambientales - ANLA, previo a la ejecución de las actividades que configuren alguna de las causales de modificación mencionadas en el artículo 5 de la Resolución 1442 del 2008, o aquella norma que la modifique, derogue o sustituya.","Aplica","Permanente"]
[16,"OBLIGACIONES GENERALES ","Modificación menor o ajuste normal dentro del giro ordinario",null,"El titular del presente Dictamen Técnico Ambiental - DTA informará a la Autoridad Nacional de Licencias Ambientales - ANLA, previo a realizar las actividades consideradas como modificaciones menores o ajuste normal dentro del giro ordinario, de conformidad con lo dispuesto en el artículo 6 de la Resolución 1442 del 2008, o aquella norma que la modifique, derogue o sustituya; actividades que serán objeto en el proceso de seguimiento ambiental. \n\nPARÁGRAFO: En caso de que las actividades a ejecutar no se incluyan en la mencionada norma (p.e. cambio de los proveedores o fabricantes del producto formulado y/o de su ingrediente activo grado técnico, en los usos y dosis de aplicación propuestas, las actividades de importación que sobre los mismos realice, entre otros), el titular de la licencia solicitará por escrito pronunciamiento de esta autoridad, sobre su viabilidad bajo la modalidad de modificación menor, concepto que se remitirá con destino al expediente.","Aplica","Permanente"]
[17,"OBLIGACIONES GENERALES ","Aporte de investigaciones científicas sobre riesgos para la salud humana o al medio ambiente",null,"El titular del presente Dictamen Técnico Ambiental - DTA deberá en el evento de verificarse nueva información relacionada con el desarrollo del producto formulado y/o de sus ingredientes activo grado técnico que se señalan en el presente acto administrativo o investigaciones científicas sobre riesgos para la salud humana y el ambiente ocasionados por los plaguicidas a importar, presentar la información producto de dichas investigaciones y/o nuevo conocimiento, con el fin de que puedan contribuir al establecimiento de medidas de protección ambiental y de la salud de las personas.","Aplica","Permanente"]
[18,"OBLIGACIONES GENERALES ","Atender requerimientos técnicos de ANLA",null,"El titular del presente Dictamen Técnico Ambiental - DTA atenderá los requerimientos técnicos de la Autoridad Nacional de Licencias Ambientales - ANLA, para la prevención y control de contaminación del ambiente con el producto amparado en este Dictamen Técnico Ambiental.","Aplica","Permanente"]
[19,"OBLIGACIONES GENERALES ","Usos del producto ",null,"El producto formulado que comprende este Dictamen Técnico Ambiental sólo puede ser utilizado de acuerdo con los usos autorizados en los rotulados vigentes por el Instituto Colombiano Agropecuario - ICA.","Aplica","Permanente"]
[20,"OBLIGACIONES GENERALES","Actividades amparadas en el DTA",null,"El Dictamen Técnico Ambiental - DTA de que trata el presente acto administrativo, no ampara ningún tipo de actividad diferente a las descritas en el presente acto administrativo.","Aplica","Permanente"]
[21,"OBLIGACIONES GENERALES ","Frases y pictogramas de etiqueta de producto formulado\n\nNota: La selección de las frases y pictogramas de advertencia se seleccionarán de acuerdo con la composición del producto formulado y/o ingrediente activo  ",null,"El titular del presente Dictámen Técnico Ambiental - DTA deberá presentar en el primer Informe de Cumplimiento Ambiental - ICA la etiqueta del producto formulado aprobada por Autoridad Nacional Competente, en el cual se incluyan las siguientes frases y pictogramas de advertencia:\n\na) Frases de advertencia: [“Extremadamente tóxico para organismos acuáticos”, “Respetar las franjas de seguridad con relación a cuerpos de agua”, “No contamine fuentes de agua”, \"Altamente tóxico para abejas”, “Puede matar abejas y polinizadores”, “No aplicar en presencia de abejas o en época de floración del cultivo”, “No aplicar en horas de alta actividad de abejas”, “Extremadamente tóxico para aves\"].\nb) Pictograma de advertencia: [No. 17 “No contamine fuentes de agua”, No. 15 \"No permita animales en el área tratada\", No. 16 “Tóxico para abejas]. ","Aplica","Temporal"]
[22,"OBLIGACIONES GENERALES","Entrega de copia del registro nacional de plaguicidas",null,"El titular del presente Dictamen Técnico Ambiental - DTA deberá presentar a esta Autoridad en el término de un (1) mes contado a partir de su registro, copia del Registro Nacional de Plaguicidas Químicos de Uso Agrícola otorgado por el Instituto Colombiano Agropecuario – ICA.","Aplica","Temporal"]
[23,"OBLIGACIONES GENERALES","Informar sobre efectos ambientales no previstos",null,"El titular del presente Dictamen Técnico Ambiental - DTA, en caso de detectarse durante el tiempo de ejecución de las actividades, efectos ambientales no previstos, deberá suspender las actividades e informar de manera inmediata a la Autoridad Nacional de Licencias Ambientales, para que esta determine y exija las medidas correctivas que considere necesarias, sin perjuicio de las medidas que debe tomar la sociedad para impedir la degradación del ambiente. \n","Aplica","Permanente"]
[24,"OBLIGACIONES GENERALES","Remitir copia del acto administrativo a la Corporación Regional o de Desarrollo Sostenible",null,"El titular del Dictamen Técnico Ambiental - DTA deberá remitir por única vez copia de este acto administrativo a la respectiva Corporación Autónoma Regional o de Desarrollo Sostenible, según el caso, correspondiente a la región donde se vaya a aplicar el producto formulado para el cual se emite el presente instrumento de manejo y control ambiental, y allegar el respectivo soporte a esta Autoridad Ambiental Nacional.","Aplica","Temporal"]
[25,"GESTIÓN SOCIAL","Informar al personal del proyecto sobre las obligaciones, prohibiciones y medidas de control del presente acto administrativo",null,"El titular del presente Dictamen Técnico Ambiental - DTA, socializará e informará por escrito, antes del inicio de actividades, a todo el personal del proyecto sobre las obligaciones, prohibiciones y medidas de control del presente acto administrativo, el Plan de Manejo Ambiental y la normativa vigente, y exigir el estricto cumplimiento de las mismas. \n\nEn cumplimiento del presente requerimiento, se presentará en los Informes de Cumplimiento Ambiental - ICA, copias de las actas de entrega de la información al personal correspondiente, en las que quedará explícito el contenido de las actividades, nombre y firma del personal receptor de la información.","Aplica","Permanente"]
[26,"REQUISITOS DEL ACTO ADMINISTRATIVO","Control y seguimiento ambiental por parte de ANLA",null,"La ANLA hará control y seguimiento ambiental a la ejecución de proyectos, obras y actividades en los términos del artículo 2.2.2.3.9.1 del Decreto 1076 del 2015, y verificará el cumplimiento de la presente Resolución. "," -"," -"]
[27,"REQUISITOS DEL ACTO ADMINISTRATIVO","Notificar el contenido del presente acto administrativo al Representante Legal",null,"Por la Autoridad Nacional de Licencias Ambientales - ANLA, notificar el presente acto administrativo al representante legal o apoderado, o a la persona autorizada por la sociedad XXXXX, de conformidad con los artículos 67 y siguientes del Código de Procedimiento Administrativo y de lo Contencioso Administrativo. \n\nParágrafo: El expediente queda a disposición para su consulta en medio físico o digital. "," -"," -"]
[28,"REQUISITOS DEL ACTO ADMINISTRATIVO","Informar a la ANLA cuando la sociedad entre en proceso de disolución o régimen de insolvencia o liquidación",null,"En el evento en que el titular del presente Dictamen Técnico Ambiental entre en proceso de disolución o régimen de insolvencia empresarial o liquidación regulados por las normas vigentes, informará inmediatamente de esta situación a esta Autoridad, confundamento, entre otros, en los artículos 8, 58, 79, 80, 81, 95 numeral 8 de la Constitución Política de 1991, en la Ley 43 de 1990, en la Ley 222 de 1995, en la Ley 1333 de 2009 y demás normas vigentes y la jurisprudencia aplicable. Adicionalmente, la sociedad deberá aprovisionar contablemente las obligaciones contingentes que se deriven de la existencia de un procedimiento ambiental sancionatorio conforme con el artículo 40 de la ley 1333 de 2009 o la norma que la modifique, derogue o sustituya."," -"," -"]
[29,"REQUISITOS DEL ACTO ADMINISTRATIVO","Comunicar el contenido del presente acto administrativo a autoridades y/o entidades que deban ser informadas.",null,"Por la Autoridad Nacional de Licencias Ambientales - ANLA, comunicar el contenido del presente acto administrativo a la procuraduría delegada para asuntos ambientales y agrarios, al Instituto Colombiano Agropecuario - ICA y al Ministerio de Salud y Protección Social, de conformidad con la Ley 1437 del 18 de enero del 2011, o aquella que la modifique, derogue o sustituya."," -"," -"]
[30,"REQUISITOS DEL ACTO ADMINISTRATIVO","Publicar  el presente acto administrativo en la Gaceta Ambiental ",null,"Por la Autoridad Nacional de Licencias Ambientales - ANLA publicar el presente acto administrativo en la Gaceta Ambiental de esta Entidad, de conformidad con el artículo 71 de la Ley 99 de 1993, en concordancia con lo establecido en la Ley 1437 del 18 de enero del 2011, o aquellas que las modifiquen, deroguen o sustituyan."," -"," -"]
[31,"REQUISITOS DEL ACTO ADMINISTRATIVO","Contra el presente acto administrativo procede el recurso de reposición",null,"Contra el presente acto administrativo procede el recurso de reposición, de conformidad con lo señalado en los artículos 74, 76, 77 y siguientes de la Ley 1437 del 18 de enero del 2011 por medio de la cual se expidió el Código de Procedimiento Administrativo y Contencioso Administrativo, o la norma que la modifique, derogue o sustituya."," -"," -"]
[32,"REQUISITOS DEL ACTO ADMINISTRATIVO","Aplicación de la Ley 1333 del 2009",null,"El incumplimiento de las obligaciones contenidas en el presente acto administrativo y en las normas ambientales vigentes dará lugar a la imposición y ejecución de las medidas preventivas y sanciones que sean aplicables según el caso, de conformidad con lo establecido en la Ley 1333 del 21 de julio de 2009, o la que modifique, derogue o sustituya."," -"," -"]
[33,"REQUISITOS DEL ACTO ADMINISTRATIVO","Vigencial del DTA",null,"El Dictamen Técnico Ambiental para el producto formulado [nombre del producto formulado] a partir de los ingredientes activos grado técnico [nombre del ingrediente activo], que se considera viable emitir a nombre de la empresa [nombre de la empresa], mediante el presente acto administrativo, tiene una vigencia igual a la duración del Registro Nacional de Plaguicidas Químicos de Uso Agrícola, siempre y cuando se realicen las actividades de importación y/o comercialización del producto formulado, de lo contrario, el Dictamen emitido perderá su vigencia de acuerdo con las siguientes causales establecidas en el Decreto 1442 del 2008:\n\na) Transcurridos tres (3) años contados a partir de la fecha de ejecutoria del acto administrativo que lo emitió, el titular del mismo no haya realizado la actividad autorizada en éste.\nb) Transcurridos tres (3) años contados a partir de la fecha de ejecutoria del acto administrativo que lo emitió, el titular del mismo no haya obtenido el Registro Nacional que otorga la Autoridad Nacional Competente -ANC.\nc) Por renuncia expresa del titular del Dictamen Técnico Ambiental, siempre y cuando no haya realizado la actividad autorizada en este."," -"," -"]

{"sheet":"Hoja1","index":2,"n_rows":4,"n_cols":7,"rows_kept":4,"cut":false,"hidden":true,"merged":[[2,1,3,1],[2,2,3,2],[2,6,3,6],[2,3,2,5]]}
[]
[]
[null,"Nombre comercial de la formulación","Cultivos","Cantidad total comercializada",null,null,"Cantidad total del producto comercializada en el país / año"]
[null,null,null,"Departamento 1","Departamento 2","Departamento n"]

{"sheet":"OBLIGACIONES APLICABLES","index":3,"n_rows":35,"n_cols":5,"rows_kept":35,"cut":false,"hidden":false,"merged":[[0,1,0,4]]}
[null,"OBLIGACIONES MÍNIMAS APLICABLES AL PROYECTO EN EVALUACIÓN / SEGUIMIENTO\nNota: Usar el texto de esta hoja para construir el concepto técnico y acto administrativo (Copiar y pegar en cada documento \na construir)"]
["Aplica (si / no)","COMPONENTE","Obligación","Importación y/o comercialización","Temporalidad"]
[{"$f":"DTA!D8","v":0},{"$f":"DTA!B8","v":"PLAN DE CONTINGENCIA"},{"$f":"DTA!E8","v":"El titular del presente Dictamen Técnico Ambiental - DTA, incluirá los soportes de la implementación de las acciones incluidas en Plan de contingencia de conformidad con el Decreto 2151 del 2017, o aquel que lo modifique, derogue o sustituya a través de los Informes de Cumplimiento Ambiental - ICA."},{"$f":"DTA!F8","v":"Aplica"},{"$f":"DTA!G8","v":"Permanente"}]
[{"$f":"DTA!D9","v":0},{"$f":"DTA!B9","v":"PLAN DE CONTINGENCIA"},{"$f":"DTA!E9","v":"Presentar en los Informes de Cumplimiento Ambiental – ICA, la revisión y/o complemento del Plan de Contingencia siguiendo los lineamientos descritos en el Decreto 1081 del 2015 adicionado por el Decreto 2157 de 2017 en el Artículo 2.3.1.5.2.1.1, Numeral 3.1.2, Literal f y el Decreto 1076 de 2015 en el Artículo 2.2.2.3.5.1, Numeral 9 y el Artículo 2.2.2.3.9.3 o aquellos que los modifiquen, deroguen o sustituyan y en caso de no presentarse un ajuste en el documento, indicar las razones por las cuales no se realiza.\n\na) Ante nuevas exigencias o cambios en la legislación nacional referente al plan de contingencia, en los plazos establecidos en las mismas.\nb) Cuando se introduzcan cambios en los procesos que aumenten la probabilidad de ocurrencia de una contingencia ambiental y/o consecuencia de la materialización del riesgo.  \nc) Ante cambios en las valoraciones de los escenarios de riesgo presentes en el proyecto.\nd) Ante la ocurrencia de una contingencia que evidencie la necesidad de ajuste del plan.\ne) Ante evidencias producto del proceso de seguimiento y control efectuado por la Autoridad Ambiental Competente."},{"$f":"DTA!F9","v":"Aplica"},{"$f":"DTA!G9","v":"Permanente"}]
[{"$f":"DTA!D10","v":0},{"$f":"DTA!B10","v":"PLAN DE CONTINGENCIA"},{"$f":"DTA!E10","v":"Reportar los eventos de contingencia a través de la plataforma VITAL de conformidad a lo establecido en el artículo 2o. de la Resolución 1767 de 2016 o aquellos que los modifiquen, deroguen o sustituyan, ya sea que los eventos sean generados del proyecto hacia el medio o del medio hacia el proyecto, presentando en cada uno de los avances (reportes parciales, de recuperación ambiental y final, según corresponda), las medidas, monitoreos, protocolos y/o acciones ejecutadas en el marco de la atención."},{"$f":"DTA!F10","v":"Aplica"},{"$f":"DTA!G10","v":"Permanente"}]
[{"$f":"DTA!D11","v":0},{"$f":"DTA!B11","v":"RESIDUOS"},{"$f":"DTA!E11","v":"En caso de realizar movimientos transfronterizos para disposición de desechos peligrosos, el titular del presente Dictámen Técnico Ambiental deberá dar cumplimiento a lo dispuesto en el Convenio de Basilea, ratificado por la Ley 253 del 9 de enero de 1996, sobre el control de los movimientos transfronterizos de los desechos peligrosos y su eliminación, así como el Decreto 1076 de 2015 y demás normas reglamentarias."},{"$f":"DTA!F11","v":"Aplica"},{"$f":"DTA!G11","v":"Permanente"}]
[{"$f":"DTA!D12","v":0},{"$f":"DTA!B12","v":"RESIDUOS"},{"$f":"DTA!E12","v":"El titular del presente Dictamen Técnico Ambiental - DTA deberá incluir el producto formulado de que trata el Dictamen Técnico Ambiental emitido mediante el presente acto administrativo, en el Plan de Gestión de Devolución de Productos Posconsumo de Plaguicidas, de conformidad con lo establecido en la Resolución 1675 de 2 de diciembre de 2013 e informar sobre el número de radicado de entrega del plan a esta autoridad por cada periodo reportado en los respectivos Informes de Cumplimiento Ambiental - ICA."},{"$f":"DTA!F12","v":"Aplica"},{"$f":"DTA!G12","v":"Permanente"}]
[{"$f":"DTA!D13","v":0},{"$f":"DTA!B13","v":"OBLIGACIONES GENERALES "},{"$f":"DTA!E13","v":"Si en un periodo anual a partir de la fecha de obtención del Registro Nacional de Plaguicidas Químicos de Uso Agrícola, la empresa [nombre de la empresa] no realiza las actividades de importación o comercialización, deberá en el primer trimestre del año siguiente presentar ante esta Autoridad y por los medios legalmente establecidos el certificado del revisor fiscal o el representante legal de la empresa, mediante el cual se acredite la no realización de estas actividades."},{"$f":"DTA!F13","v":"Aplica"},{"$f":"DTA!G13","v":"Temporal"}]
[{"$f":"DTA!D14","v":0},{"$f":"DTA!B14","v":"OBLIGACIONES GENERALES "},{"$f":"DTA!E14","v":"El titular del presente Dictamen Técnico Ambiental - DTA, informará a esta Autoridad y a las demás autoridades ambientales regionales la fecha de inicio de las actividades de importación y/o comercialización del producto formulado [nombre del producto formulado] a partir del ingrediente activo grado técnico [nombre del ingrediente activo] de que trata el presente acto administrativo, dentro de los diez (10) días previos y mediante oficio dirigido a la Subdirección de Seguimiento de Licencias Ambientales. En caso de que no se pueda dar inicio al proyecto dentro de la fecha previamente informada, se notificará inmediatamente a esta Autoridad la justificación, así como la nueva fecha de inicio. Enviar a la ANLA copia de los oficios radicados ante las demás autoridades ambientales regionales."},{"$f":"DTA!F14","v":"Aplica"},{"$f":"DTA!G14","v":"Temporal"}]
[{"$f":"DTA!D15","v":0},{"$f":"DTA!B15","v":"OBLIGACIONES GENERALES "},{"$f":"DTA!E15","v":"El titular del presente Dictamen Técnico Ambiental - DTA en el término de dos (2) meses a partir de la expedición del presente Dictámen Técnico Ambiental - DTA, deberá presentar copia del documento donde conste que se informó a las autoridades ambientales regionales sobre la conformación del Departamento de Gestión Ambiental, que incluya funciones y responsabilidades asignadas, en cumplimiento al artículo 2.2.8.11.1.7. del Decreto 1076 de 2015, o aquella que la modifique, derogue o sustituya."},{"$f":"DTA!F15","v":"Aplica"},{"$f":"DTA!G15","v":"Temporal"}]
[{"$f":"DTA!D16","v":0},{"$f":"DTA!B16","v":"OBLIGACIONES GENERALES "},{"$f":"DTA!E16","v":"El titular del presente Dictamen Técnico Ambiental - DTA, presentará en los Informe de Cumplimiento Ambiental - ICA los soportes de las actividades desarrolladas para la supervisión de los distribuidores, donde se incluyan capacitaciones en temas como: manejo adecuado del producto, prohibición de re-empaque y/o re-envase de producto, manejo de contingencias, manejo de productos vencidos, manejo de residuos peligrosos generados en contingencias, manejo de inventarios, entre otros; anexando los soportes respectivos. Adicionalmente, debe presentar soportes de las inspecciones periódicas que se realicen a los sitios de almacenamiento del producto."},{"$f":"DTA!F16","v":"Aplica"},{"$f":"DTA!G16","v":"Permantente"}]
[{"$f":"DTA!D17","v":0},{"$f":"DTA!B17","v":"OBLIGACIONES GENERALES "},{"$f":"DTA!E17","v":"El titular del presente Dictamen Técnico Ambiental - DTA debe adelantar acciones para garantizar que los aplicadores del producto formulado respeten las franjas de seguridad en relación con los cuerpos o cursos de agua, carreteras, troncales, núcleos de población humana y animal, cultivos susceptibles de daño por contaminación, o cualquier otra área que requiera protección, como lo establece del Decreto 1843 de 1991 expedido por el Ministerio de Salud, hoy Ministerio de Salud y Protección Social, o de acuerdo a lo que dispongan las normas que lo modifiquen, deroguen o sustituyan."},{"$f":"DTA!F17","v":"Aplica"},{"$f":"DTA!G17","v":"Permanente"}]
[{"$f":"DTA!D18","v":0},{"$f":"DTA!B18","v":"OBLIGACIONES GENERALES "},{"$f":"DTA!E18","v":"El titular del presente Dictamen Técnico Ambiental - DTA, presentará en los Informes de Cumplimiento Ambiental - ICA las actividades desarrolladas para asegurar el cumplimiento del Decreto 1079 del 26 de mayo de 2015 en relación al transporte de los plaguicidas, para lo cual se incluirán los soportes asociados a las inspecciones de vehículos, capacitaciones a conductores, entre otros."},{"$f":"DTA!F18","v":"Aplica"},{"$f":"DTA!G18","v":"Permantente"}]
[{"$f":"DTA!D19","v":0},{"$f":"DTA!B19","v":"OBLIGACIONES GENERALES "},{"$f":"DTA!E19","v":"El titular del presente Dictámen Técnico Ambiental - DTA, presentará anualmente en el primer trimestre año vencido y en una sola entrega a esta Autoridad el Informe de Cumplimiento de las actividades propuestas en cada programa que conforma el Plan de Manejo Ambiental aprobado, incluyendo la evaluación de la efectividad de dichos programas (Acciones desarrolladas con sus respectivos soportes, evaluación de indicadores, cumplimiento de los objetivos y metas, entre otros)."},{"$f":"DTA!F19","v":"Aplica"},{"$f":"DTA!G19","v":"Permanente"}]
[{"$f":"DTA!D20","v":0},{"$f":"DTA!B20","v":"OBLIGACIONES GENERALES "},{"$f":"DTA!E20","v":"El titular del presente Dictamen Técnico Ambiental - DTA, presentará en los Informe de Cumplimiento Ambiental - ICA, el registro del consumo anual del producto en el país, discriminado geográficamente por departamentos, para lo cual deberá diligenciar la siguiente información: \n\n\n\n\n\n\n\n"},{"$f":"DTA!F20","v":"Aplica"},{"$f":"DTA!G20","v":"Permanente"}]
[{"$f":"DTA!D21","v":0},{"$f":"DTA!B21","v":"OBLIGACIONES GENERALES "},{"$f":"DTA!E21","v":"El titular del presente Dictamen Técnico Ambiental - DTA, informará de forma anual a las Corporaciones Autónomas Regionales de la respectiva jurisdicción donde se comercialice el producto formulado [nombre del producto formulado], acerca de las actividades implementadas dentro del Plan de Manejo Ambiental. Presentar los soportes correspondientes a través de los Informes de Cumplimiento Ambiental - ICA."},{"$f":"DTA!F21","v":"Aplica"},{"$f":"DTA!G21","v":"Permanente"}]
[{"$f":"DTA!D22","v":0},{"$f":"DTA!B22","v":"OBLIGACIONES GENERALES "},{"$f":"DTA!E22","v":"El titular del presente Dictamen Técnico Ambiental - DTA solicitará la respectiva modificación del presente instrumento de manejo y control ambiental a la Autoridad Nacional de Licencias Ambientales - ANLA, previo a la ejecución de las actividades que configuren alguna de las causales de modificación mencionadas en el artículo 5 de la Resolución 1442 del 2008, o aquella norma que la modifique, derogue o sustituya."},{"$f":"DTA!F22","v":"Aplica"},{"$f":"DTA!G22","v":"Permanente"}]
[{"$f":"DTA!D23","v":0},{"$f":"DTA!B23","v":"OBLIGACIONES GENERALES "},{"$f":"DTA!E23","v":"El titular del presente Dictamen Técnico Ambiental - DTA informará a la Autoridad Nacional de Licencias Ambientales - ANLA, previo a realizar las actividades consideradas como modificaciones menores o ajuste normal dentro del giro ordinario, de conformidad con lo dispuesto en el artículo 6 de la Resolución 1442 del 2008, o aquella norma que la modifique, derogue o sustituya; actividades que serán objeto en el proceso de seguimiento ambiental. \n\nPARÁGRAFO: En caso de que las actividades a ejecutar no se incluyan en la mencionada norma (p.e. cambio de los proveedores o fabricantes del producto formulado y/o de su ingrediente activo grado técnico, en los usos y dosis de aplicación propuestas, las actividades de importación que sobre los mismos realice, entre otros), el titular de la licencia solicitará por escrito pronunciamiento de esta autoridad, sobre su viabilidad bajo la modalidad de modificación menor, concepto que se remitirá con destino al expediente."},{"$f":"DTA!F23","v":"Aplica"},{"$f":"DTA!G23","v":"Permanente"}]
[{"$f":"DTA!D24","v":0},{"$f":"DTA!B24","v":"OBLIGACIONES GENERALES "},{"$f":"DTA!E24","v":"El titular del presente Dictamen Técnico Ambiental - DTA deberá en el evento de verificarse nueva información relacionada con el desarrollo del producto formulado y/o de sus ingredientes activo grado técnico que se señalan en el presente acto administrativo o investigaciones científicas sobre riesgos para la salud humana y el ambiente ocasionados por los plaguicidas a importar, presentar la información producto de dichas investigaciones y/o nuevo conocimiento, con el fin de que puedan contribuir al establecimiento de medidas de protección ambiental y de la salud de las personas."},{"$f":"DTA!F24","v":"Aplica"},{"$f":"DTA!G24","v":"Permanente"}]
[{"$f":"DTA!D25","v":0},{"$f":"DTA!B25","v":"OBLIGACIONES GENERALES "},{"$f":"DTA!E25","v":"El titular del presente Dictamen Técnico Ambiental - DTA atenderá los requerimientos técnicos de la Autoridad Nacional de Licencias Ambientales - ANLA, para la prevención y control de contaminación del ambiente con el producto amparado en este Dictamen Técnico Ambiental."},{"$f":"DTA!F25","v":"Aplica"},{"$f":"DTA!G25","v":"Permanente"}]
[{"$f":"DTA!D26","v":0},{"$f":"DTA!B26","v":"OBLIGACIONES GENERALES "},{"$f":"DTA!E26","v":"El producto formulado que comprende este Dictamen Técnico Ambiental sólo puede ser utilizado de acuerdo con los usos autorizados en los rotulados vigentes por el Instituto Colombiano Agropecuario - ICA."},{"$f":"DTA!F26","v":"Aplica"},{"$f":"DTA!G26","v":"Permanente"}]
[{"$f":"DTA!D27","v":0},{"$f":"DTA!B27","v":"OBLIGACIONES GENERALES"},{"$f":"DTA!E27","v":"El Dictamen Técnico Ambiental - DTA de que trata el presente acto administrativo, no ampara ningún tipo de actividad diferente a las descritas en el presente acto administrativo."},{"$f":"DTA!F27","v":"Aplica"},{"$f":"DTA!G27","v":"Permanente"}]
[{"$f":"DTA!D28","v":0},{"$f":"DTA!B28","v":"OBLIGACIONES GENERALES "},{"$f":"DTA!E28","v":"El titular del presente Dictámen Técnico Ambiental - DTA deberá presentar en el primer Informe de Cumplimiento Ambiental - ICA la etiqueta del producto formulado aprobada por Autoridad Nacional Competente, en el cual se incluyan las siguientes frases y pictogramas de advertencia:\n\na) Frases de advertencia: [“Extremadamente tóxico para organismos acuáticos”, “Respetar las franjas de seguridad con relación a cuerpos de agua”, “No contamine fuentes de agua”, \"Altamente tóxico para abejas”, “Puede matar abejas y polinizadores”, “No aplicar en presencia de abejas o en época de floración del cultivo”, “No aplicar en horas de alta actividad de abejas”, “Extremadamente tóxico para aves\"].\nb) Pictograma de advertencia: [No. 17 “No contamine fuentes de agua”, No. 15 \"No permita animales en el área tratada\", No. 16 “Tóxico para abejas]. "},{"$f":"DTA!F28","v":"Aplica"},{"$f":"DTA!G28","v":"Temporal"}]
[{"$f":"DTA!D29","v":0},{"$f":"DTA!B29","v":"OBLIGACIONES GENERALES"},{"$f":"DTA!E29","v":"El titular del presente Dictamen Técnico Ambiental - DTA deberá presentar a esta Autoridad en el término de un (1) mes contado a partir de su registro, copia del Registro Nacional de Plaguicidas Químicos de Uso Agrícola otorgado por el Instituto Colombiano Agropecuario – ICA."},{"$f":"DTA!F29","v":"Aplica"},{"$f":"DTA!G29","v":"Temporal"}]
[{"$f":"DTA!D30","v":0},{"$f":"DTA!B30","v":"OBLIGACIONES GENERALES"},{"$f":"DTA!E30","v":"El titular del presente Dictamen Técnico Ambiental - DTA, en caso de detectarse durante el tiempo de ejecución de las actividades, efectos ambientales no previstos, deberá suspender las actividades e informar de manera inmediata a la Autoridad Nacional de Licencias Ambientales, para que esta determine y exija las medidas correctivas que considere necesarias, sin perjuicio de las medidas que debe tomar la sociedad para impedir la degradación del ambiente. \n"},{"$f":"DTA!F30","v":"Aplica"},{"$f":"DTA!G30","v":"Permanente"}]
[{"$f":"DTA!D31","v":0},{"$f":"DTA!B31","v":"OBLIGACIONES GENERALES"},{"$f":"DTA!E31","v":"El titular del Dictamen Técnico Ambiental - DTA deberá remitir por única vez copia de este acto administrativo a la respectiva Corporación Autónoma Regional o de Desarrollo Sostenible, según el caso, correspondiente a la región donde se vaya a aplicar el producto formulado para el cual se emite el presente instrumento de manejo y control ambiental, y allegar el respectivo soporte a esta Autoridad Ambiental Nacional."},{"$f":"DTA!F31","v":"Aplica"},{"$f":"DTA!G31","v":"Temporal"}]
[{"$f":"DTA!D32","v":0},{"$f":"DTA!B32","v":"GESTIÓN SOCIAL"},{"$f":"DTA!E32","v":"El titular del presente Dictamen Técnico Ambiental - DTA, socializará e informará por escrito, antes del inicio de actividades, a todo el personal del proyecto sobre las obligaciones, prohibiciones y medidas de control del presente acto administrativo, el Plan de Manejo Ambiental y la normativa vigente, y exigir el estricto cumplimiento de las mismas. \n\nEn cumplimiento del presente requerimiento, se presentará en los Informes de Cumplimiento Ambiental - ICA, copias de las actas de entrega de la información al personal correspondiente, en las que quedará explícito el contenido de las actividades, nombre y firma del personal receptor de la información."},{"$f":"DTA!F32","v":"Aplica"},{"$f":"DTA!G32","v":"Permanente"}]
[{"$f":"DTA!D33","v":0},{"$f":"DTA!B33","v":"REQUISITOS DEL ACTO ADMINISTRATIVO"},{"$f":"DTA!E33","v":"La ANLA hará control y seguimiento ambiental a la ejecución de proyectos, obras y actividades en los términos del artículo 2.2.2.3.9.1 del Decreto 1076 del 2015, y verificará el cumplimiento de la presente Resolución. "},{"$f":"DTA!F33","v":" -"},{"$f":"DTA!G33","v":" -"}]
[{"$f":"DTA!D34","v":0},{"$f":"DTA!B34","v":"REQUISITOS DEL ACTO ADMINISTRATIVO"},{"$f":"DTA!E34","v":"Por la Autoridad Nacional de Licencias Ambientales - ANLA, notificar el presente acto administrativo al representante legal o apoderado, o a la persona autorizada por la sociedad XXXXX, de conformidad con los artículos 67 y siguientes del Código de Procedimiento Administrativo y de lo Contencioso Administrativo. \n\nParágrafo: El expediente queda a disposición para su consulta en medio físico o digital. "},{"$f":"DTA!F34","v":" -"},{"$f":"DTA!G34","v":" -"}]
[{"$f":"DTA!D35","v":0},{"$f":"DTA!B35","v":"REQUISITOS DEL ACTO ADMINISTRATIVO"},{"$f":"DTA!E35","v":"En el evento en que el titular del presente Dictamen Técnico Ambiental entre en proceso de disolución o régimen de insolvencia empresarial o liquidación regulados por las normas vigentes, informará inmediatamente de esta situación a esta Autoridad, confundamento, entre otros, en los artículos 8, 58, 79, 80, 81, 95 numeral 8 de la Constitución Política de 1991, en la Ley 43 de 1990, en la Ley 222 de 1995, en la Ley 1333 de 2009 y demás normas vigentes y la jurisprudencia aplicable. Adicionalmente, la sociedad deberá aprovisionar contablemente las obligaciones contingentes que se deriven de la existencia de un procedimiento ambiental sancionatorio conforme con el artículo 40 de la ley 1333 de 2009 o la norma que la modifique, derogue o sustituya."},{"$f":"DTA!F35","v":" -"},{"$f":"DTA!G35","v":" -"}]
[{"$f":"DTA!D36","v":0},{"$f":"DTA!B36","v":"REQUISITOS DEL ACTO ADMINISTRATIVO"},{"$f":"DTA!E36","v":"Por la Autoridad Nacional de Licencias Ambientales - ANLA, comunicar el contenido del presente acto administrativo a la procuraduría delegada para asuntos ambientales y agrarios, al Instituto Colombiano Agropecuario - ICA y al Ministerio de Salud y Protección Social, de conformidad con la Ley 1437 del 18 de enero del 2011, o aquella que la modifique, derogue o sustituya."},{"$f":"DTA!F36","v":" -"},{"$f":"DTA!G36","v":" -"}]
[{"$f":"DTA!D37","v":0},{"$f":"DTA!B37","v":"REQUISITOS DEL ACTO ADMINISTRATIVO"},{"$f":"DTA!E37","v":"Por la Autoridad Nacional de Licencias Ambientales - ANLA publicar el presente acto administrativo en la Gaceta Ambiental de esta Entidad, de conformidad con el artículo 71 de la Ley 99 de 1993, en concordancia con lo establecido en la Ley 1437 del 18 de enero del 2011, o aquellas que las modifiquen, deroguen o sustituyan."},{"$f":"DTA!F37","v":" -"},{"$f":"DTA!G37","v":" -"}]
[{"$f":"DTA!D38","v":0},{"$f":"DTA!B38","v":"REQUISITOS DEL ACTO ADMINISTRATIVO"},{"$f":"DTA!E38","v":"Contra el presente acto administrativo procede el recurso de reposición, de conformidad con lo señalado en los artículos 74, 76, 77 y siguientes de la Ley 1437 del 18 de enero del 2011 por medio de la cual se expidió el Código de Procedimiento Administrativo y Contencioso Administrativo, o la norma que la modifique, derogue o sustituya."},{"$f":"DTA!F38","v":" -"},{"$f":"DTA!G38","v":" -"}]
[{"$f":"DTA!D39","v":0},{"$f":"DTA!B39","v":"REQUISITOS DEL ACTO ADMINISTRATIVO"},{"$f":"DTA!E39","v":"El incumplimiento de las obligaciones contenidas en el presente acto administrativo y en las normas ambientales vigentes dará lugar a la imposición y ejecución de las medidas preventivas y sanciones que sean aplicables según el caso, de conformidad con lo establecido en la Ley 1333 del 21 de julio de 2009, o la que modifique, derogue o sustituya."},{"$f":"DTA!F39","v":" -"},{"$f":"DTA!G39","v":" -"}]
[{"$f":"DTA!D40","v":0},{"$f":"DTA!B40","v":"REQUISITOS DEL ACTO ADMINISTRATIVO"},{"$f":"DTA!E40","v":"El Dictamen Técnico Ambiental para el producto formulado [nombre del producto formulado] a partir de los ingredientes activos grado técnico [nombre del ingrediente activo], que se considera viable emitir a nombre de la empresa [nombre de la empresa], mediante el presente acto administrativo, tiene una vigencia igual a la duración del Registro Nacional de Plaguicidas Químicos de Uso Agrícola, siempre y cuando se realicen las actividades de importación y/o comercialización del producto formulado, de lo contrario, el Dictamen emitido perderá su vigencia de acuerdo con las siguientes causales establecidas en el Decreto 1442 del 2008:\n\na) Transcurridos tres (3) años contados a partir de la fecha de ejecutoria del acto administrativo que lo emitió, el titular del mismo no haya realizado la actividad autorizada en éste.\nb) Transcurridos tres (3) años contados a partir de la fecha de ejecutoria del acto administrativo que lo emitió, el titular del mismo no haya obtenido el Registro Nacional que otorga la Autoridad Nacional Competente -ANC.\nc) Por renuncia expresa del titular del Dictamen Técnico Ambiental, siempre y cuando no haya realizado la actividad autorizada en este."},{"$f":"DTA!F40","v":" -"},{"$f":"DTA!G40","v":" -"}]

{"sheet":"Temp","index":4,"n_rows":170,"n_cols":4,"rows_kept":170,"cut":false,"hidden":true,"merged":[[0,0,0,3]]}
["ANEXO - OBLIGACIONES MÍNIMAS PARA [COLOCAR NOMBRE DEL PROYECTO]"]
["COMPONENTE","Fase de construcción","Fase de operación y mantenimiento","Fase de desmantelamiento y abandono"]
[{"$f":"IF(DTA!#REF!=\"SI\",DTA!#REF!,NA())","v":{"$error":"#REF!"}},{"$f":"IF(DTA!#REF!=\"SI\",DTA!#REF!,NA())","v":{"$error":"#REF!"}},{"$f":"IF(DTA!#REF!=\"SI\",DTA!#REF!,NA())","v":{"$error":"#REF!"}},{"$f":"IF(DTA!#REF!=\"SI\",'OBLIGACIONES APLICABLES'!#REF!,NA())","v":{"$error":"#REF!"}}]
[{"$f":"IF(DTA!#REF!=\"SI\",DTA!#REF!,NA())","v":{"$error":"#REF!"}},{"$f":"IF(DTA!#REF!=\"SI\",DTA!#REF!,NA())","v":{"$error":"#REF!"}},{"$f":"IF(DTA!#REF!=\"SI\",'OBLIGACIONES APLICABLES'!#REF!,NA())","v":{"$error":"#REF!"}},{"$f":"IF(DTA!#REF!=\"SI\",'OBLIGACIONES APLICABLES'!#REF!,NA())","v":{"$error":"#REF!"}}]
[{"$f":"IF(DTA!#REF!=\"SI\",DTA!#REF!,NA())","v":{"$error":"#REF!"}},{"$f":"IF(DTA!#REF!=\"SI\",DTA!#REF!,NA())","v":{"$error":"#REF!"}},{"$f":"IF(DTA!#REF!=\"SI\",'OBLIGACIONES APLICABLES'!#REF!,NA())","v":{"$error":"#REF!"}},{"$f":"IF(DTA!#REF!=\"SI\",'OBLIGACIONES APLICABLES'!#REF!,NA())","v":{"$error":"#REF!"}}]
[{"$f":"IF(DTA!#REF!=\"SI\",DTA!#REF!,NA())","v":{"$error":"#REF!"}},{"$f":"IF(DTA!#REF!=\"SI\",DTA!#REF!,NA())","v":{"$error":"#REF!"}},{"$f":"IF(DTA!#REF!=\"SI\",'OBLIGACIONES APLICABLES'!#REF!,NA())","v":{"$error":"#REF!"}},{"$f":"IF(DTA!#REF!=\"SI\",'OBLIGACIONES APLICABLES'!#REF!,NA())","v":{"$error":"#REF!"}}]
[{"$f":"IF(DTA!#REF!=\"SI\",DTA!#REF!,NA())","v":{"$error":"#REF!"}},{"$f":"IF(DTA!#REF!=\"SI\",DTA!#REF!,NA())","v":{"$error":"#REF!"}},{"$f":"IF(DTA!#REF!=\"SI\",'OBLIGACIONES APLICABLES'!#REF!,NA())","v":{"$error":"#REF!"}},{"$f":"IF(DTA!#REF!=\"SI\",'OBLIGACIONES APLICABLES'!#REF!,NA())","v":{"$error":"#REF!"}}]
[{"$f":"IF(DTA!#REF!=\"SI\",DTA!#REF!,NA())","v":{"$error":"#REF!"}},{"$f":"IF(DTA!#REF!=\"SI\",DTA!#REF!,NA())","v":{"$error":"#REF!"}},{"$f":"IF(DTA!#REF!=\"SI\",'OBLIGACIONES APLICABLES'!#REF!,NA())","v":{"$error":"#REF!"}},{"$f":"IF(DTA!#REF!=\"SI\",'OBLIGACIONES APLICABLES'!#REF!,NA())","v":{"$error":"#REF!"}}]
[{"$f":"IF(DTA!#REF!=\"SI\",DTA!#REF!,NA())","v":{"$error":"#REF!"}},{"$f":"IF(DTA!#REF!=\"SI\",DTA!#REF!,NA())","v":{"$error":"#REF!"}},{"$f":"IF(DTA!#REF!=\"SI\",'OBLIGACIONES APLICABLES'!#REF!,NA())","v":{"$error":"#REF!"}},{"$f":"IF(DTA!#REF!=\"SI\",'OBLIGACIONES APLICABLES'!#REF!,NA())","v":{"$error":"#REF!"}}]
[{"$f":"IF(DTA!#REF!=\"SI\",DTA!#REF!,NA())","v":{"$error":"#REF!"}},{"$f":"IF(DTA!#REF!=\"SI\",DTA!#REF!,NA())","v":{"$error":"#REF!"}},{"$f":"IF(DTA!#REF!=\"SI\",'OBLIGACIONES APLICABLES'!#REF!,NA())","v":{"$error":"#REF!"}},{"$f":"IF(DTA!#REF!=\"SI\",'OBLIGACIONES APLICABLES'!#REF!,NA())","v":{"$error":"#REF!"}}]
[{"$f":"IF(DTA!#REF!=\"SI\",DTA!#REF!,NA())","v":{"$error":"#REF!"}},{"$f":"IF(DTA!#REF!=\"SI\",DTA!#REF!,NA())","v":{"$error":"#REF!"}},{"$f":"IF(DTA!#REF!=\"SI\",'OBLIGACIONES APLICABLES'!#REF!,NA())","v":{"$error":"#REF!"}},{"$f":"IF(DTA!#REF!=\"SI\",'OBLIGACIONES APLICABLES'!#REF!,NA())","v":{"$error":"#REF!"}}]
[{"$f":"IF(DTA!#REF!=\"SI\",DTA!#REF!,NA())","v":{"$error":"#REF!"}},{"$f":"IF(DTA!#REF!=\"SI\",DTA!#REF!,NA())","v":{"$error":"#REF!"}},{"$f":"IF(DTA!#REF!=\"SI\",'OBLIGACIONES APLICABLES'!#REF!,NA())","v":{"$error":"#REF!"}},{"$f":"IF(DTA!#REF!=\"SI\",'OBLIGACIONES APLICABLES'!#REF!,NA())","v":{"$error":"#REF!"}}]
[{"$f":"IF(DTA!#REF!=\"SI\",DTA!#REF!,NA())","v":{"$error":"#REF!"}},{"$f":"IF(DTA!#REF!=\"SI\",DTA!#REF!,NA())","v":{"$error":"#REF!"}},{"$f":"IF(DTA!#REF!=\"SI\",'OBLIGACIONES APLICABLES'!#REF!,NA())","v":{"$error":"#REF!"}},{"$f":"IF(DTA!#REF!=\"SI\",'OBLIGACIONES APLICABLES'!#REF!,NA())","v":{"$error":"#REF!"}}]
[{"$f":"IF(DTA!#REF!=\"SI\",DTA!#REF!,NA())","v":{"$error":"#REF!"}},{"$f":"IF(DTA!#REF!=\"SI\",DTA!#REF!,NA())","v":{"$error":"#REF!"}},{"$f":"IF(DTA!#REF!=\"SI\",'OBLIGACIONES APLICABLES'!#REF!,NA())","v":{"$error":"#REF!"}},{"$f":"IF(DTA!#REF!=\"SI\",'OBLIGACIONES APLICABLES'!#REF!,NA())","v":{"$error":"#REF!"}}]
[{"$f":"IF(DTA!#REF!=\"SI\",DTA!#REF!,NA())","v":{"$error":"#REF!"}},{"$f":"IF(DTA!#REF!=\"SI\",DTA!#REF!,NA())","v":{"$error":"#REF!"}},{"$f":"IF(DTA!#REF!=\"SI\",'OBLIGACIONES APLICABLES'!#REF!,NA())","v":{"$error":"#REF!"}},{"$f":"IF(DTA!#REF!=\"SI\",'OBLIGACIONES APLICABLES'!#REF!,NA())","v":{"$error":"#REF!"}}]
[{"$f":"IF(DTA!#REF!=\"SI\",DTA!#REF!,NA())","v":{"$error":"#REF!"}},{"$f":"IF(DTA!#REF!=\"SI\",DTA!#REF!,NA())","v":{"$error":"#REF!"}},{"$f":"IF(DTA!#REF!=\"SI\",'OBLIGACIONES APLICABLES'!#REF!,NA())","v":{"$error":"#REF!"}},{"$f":"IF(DTA!#REF!=\"SI\",'OBLIGACIONES APLICABLES'!#REF!,NA())","v":{"$error":"#REF!"}}]
[{"$f":"IF(DTA!#REF!=\"SI\",DTA!#REF!,NA())","v":{"$error":"#REF!"}},{"$f":"IF(DTA!#REF!=\"SI\",DTA!#REF!,NA())","v":{"$error":"#REF!"}},{"$f":"IF(DTA!#REF!=\"SI\",'OBLIGACIONES APLICABLES'!#REF!,NA())","v":{"$error":"#REF!"}},{"$f":"IF(DTA!#REF!=\"SI\",'OBLIGACIONES APLICABLES'!#REF!,NA())","v":{"$error":"#REF!"}}]
[{"$f":"IF(DTA!#REF!=\"SI\",DTA!#REF!,NA())","v":{"$error":"#REF!"}},{"$f":"IF(DTA!#REF!=\"SI\",DTA!#REF!,NA())","v":{"$error":"#REF!"}},{"$f":"IF(DTA!#REF!=\"SI\",'OBLIGACIONES APLICABLES'!#REF!,NA())","v":{"$error":"#REF!"}},{"$f":"IF(DTA!#REF!=\"SI\",'OBLIGACIONES APLICABLES'!#REF!,NA())","v":{"$error":"#REF!"}}]
[{"$f":"IF(DTA!#REF!=\"SI\",DTA!#REF!,NA())","v":{"$error":"#REF!"}},{"$f":"IF(DTA!#REF!=\"SI\",DTA!#REF!,NA())","v":{"$error":"#REF!"}},{"$f":"IF(DTA!#REF!=\"SI\",'OBLIGACIONES APLICABLES'!#REF!,NA())","v":{"$error":"#REF!"}},{"$f":"IF(DTA!#REF!=\"SI\",'OBLIGACIONES APLICABLES'!#REF!,NA())","v":{"$error":"#REF!"}}]
[{"$f":"IF(DTA!#REF!=\"SI\",DTA!#REF!,NA())","v":{"$error":"#REF!"}},{"$f":"IF(DTA!#REF!=\"SI\",DTA!#REF!,NA())","v":{"$error":"#REF!"}},{"$f":"IF(DTA!#REF!=\"SI\",'OBLIGACIONES APLICABLES'!#REF!,NA())","v":{"$error":"#REF!"}},{"$f":"IF(DTA!#REF!=\"SI\",'OBLIGACIONES APLICABLES'!#REF!,NA())","v":{"$error":"#REF!"}}]
[{"$f":"IF(DTA!#REF!=\"SI\",DTA!#REF!,NA())","v":{"$error":"#REF!"}},{"$f":"IF(DTA!#REF!=\"SI\",DTA!#REF!,NA())","v":{"$error":"#REF!"}},{"$f":"IF(DTA!#REF!=\"SI\",'OBLIGACIONES APLICABLES'!#REF!,NA())","v":{"$error":"#REF!"}},{"$f":"IF(DTA!#REF!=\"SI\",'OBLIGACIONES APLICABLES'!#REF!,NA())","v":{"$error":"#REF!"}}]
[{"$f":"IF(DTA!#REF!=\"SI\",DTA!#REF!,NA())","v":{"$error":"#REF!"}},{"$f":"IF(DTA!#REF!=\"SI\",DTA!#REF!,NA())","v":{"$error":"#REF!"}},{"$f":"IF(DTA!#REF!=\"SI\",'OBLIGACIONES APLICABLES'!#REF!,NA())","v":{"$error":"#REF!"}},{"$f":"IF(DTA!#REF!=\"SI\",'OBLIGACIONES APLICABLES'!#REF!,NA())","v":{"$error":"#REF!"}}]
[{"$f":"IF(DTA!#REF!=\"SI\",DTA!#REF!,NA())","v":{"$error":"#REF!"}},{"$f":"IF(DTA!#REF!=\"SI\",DTA!#REF!,NA())","v":{"$error":"#REF!"}},{"$f":"IF(DTA!#REF!=\"SI\",'OBLIGACIONES APLICABLES'!#REF!,NA())","v":{"$error":"#REF!"}},{"$f":"IF(DTA!#REF!=\"SI\",'OBLIGACIONES APLICABLES'!#REF!,NA())","v":{"$error":"#REF!"}}]
[{"$f":"IF(DTA!#REF!=\"SI\",DTA!#REF!,NA())","v":{"$error":"#REF!"}},{"$f":"IF(DTA!#REF!=\"SI\",DTA!#REF!,NA())","v":{"$error":"#REF!"}},{"$f":"IF(DTA!#REF!=\"SI\",'OBLIGACIONES APLICABLES'!#REF!,NA())","v":{"$error":"#REF!"}},{"$f":"IF(DTA!#REF!=\"SI\",'OBLIGACIONES APLICABLES'!#REF!,NA())","v":{"$error":"#REF!"}}]
[{"$f":"IF(DTA!#REF!=\"SI\",DTA!#REF!,NA())","v":{"$error":"#REF!"}},{"$f":"IF(DTA!#REF!=\"SI\",DTA!#REF!,NA())","v":{"$error":"#REF!"}},{"$f":"IF(DTA!#REF!=\"SI\",'OBLIGACIONES APLICABLES'!#REF!,NA())","v":{"$error":"#REF!"}},{"$f":"IF(DTA!#REF!=\"SI\",'OBLIGACIONES APLICABLES'!#REF!,NA())","v":{"$error":"#REF!"}}]
[{"$f":"IF(DTA!#REF!=\"SI\",DTA!#REF!,NA())","v":{"$error":"#REF!"}},{"$f":"IF(DTA!#REF!=\"SI\",DTA!#REF!,NA())","v":{"$error":"#REF!"}},{"$f":"IF(DTA!#REF!=\"SI\",'OBLIGACIONES APLICABLES'!#REF!,NA())","v":{"$error":"#REF!"}},{"$f":"IF(DTA!#REF!=\"SI\",'OBLIGACIONES APLICABLES'!#REF!,NA())","v":{"$error":"#REF!"}}]
[{"$f":"IF(DTA!#REF!=\"SI\",DTA!#REF!,NA())","v":{"$error":"#REF!"}},{"$f":"IF(DTA!#REF!=\"SI\",DTA!#REF!,NA())","v":{"$error":"#REF!"}},{"$f":"IF(DTA!#REF!=\"SI\",'OBLIGACIONES APLICABLES'!#REF!,NA())","v":{"$error":"#REF!"}},{"$f":"IF(DTA!#REF!=\"SI\",'OBLIGACIONES APLICABLES'!#REF!,NA())","v":{"$error":"#REF!"}}]
[{"$f":"IF(DTA!#REF!=\"SI\",DTA!#REF!,NA())","v":{"$error":"#REF!"}},{"$f":"IF(DTA!#REF!=\"SI\",DTA!#REF!,NA())","v":{"$error":"#REF!"}},{"$f":"IF(DTA!#REF!=\"SI\",'OBLIGACIONES APLICABLES'!#REF!,NA())","v":{"$error":"#REF!"}},{"$f":"IF(DTA!#REF!=\"SI\",'OBLIGACIONES APLICABLES'!#REF!,NA())","v":{"$error":"#REF!"}}]
[{"$f":"IF(DTA!D30=\"SI\",DTA!B30,NA())","v":{"$error":"#N/A"}},{"$f":"IF(DTA!D30=\"SI\",DTA!#REF!,NA())","v":{"$error":"#N/A"}},{"$f":"IF(DTA!#REF!=\"SI\",'OBLIGACIONES APLICABLES'!#REF!,NA())","v":{"$error":"#REF!"}},{"$f":"IF(DTA!#REF!=\"SI\",'OBLIGACIONES APLICABLES'!#REF!,NA())","v":{"$error":"#REF!"}}]
[{"$f":"IF(DTA!D29=\"SI\",DTA!B29,NA())","v":{"$error":"#N/A"}},{"$f":"IF(DTA!D29=\"SI\",DTA!#REF!,NA())","v":{"$error":"#N/A"}},{"$f":"IF(DTA!#REF!=\"SI\",'OBLIGACIONES APLICABLES'!#REF!,NA())","v":{"$error":"#REF!"}},{"$f":"IF(DTA!#REF!=\"SI\",'OBLIGACIONES APLICABLES'!#REF!,NA())","v":{"$error":"#REF!"}}]
[{"$f":"IF(DTA!#REF!=\"SI\",DTA!#REF!,NA())","v":{"$error":"#REF!"}},{"$f":"IF(DTA!#REF!=\"SI\",DTA!#REF!,NA())","v":{"$error":"#REF!"}},{"$f":"IF(DTA!#REF!=\"SI\",'OBLIGACIONES APLICABLES'!#REF!,NA())","v":{"$error":"#REF!"}},{"$f":"IF(DTA!#REF!=\"SI\",'OBLIGACIONES APLICABLES'!#REF!,NA())","v":{"$error":"#REF!"}}]
[{"$f":"IF(DTA!#REF!=\"SI\",DTA!#REF!,NA())","v":{"$error":"#REF!"}},{"$f":"IF(DTA!#REF!=\"SI\",DTA!#REF!,NA())","v":{"$error":"#REF!"}},{"$f":"IF(DTA!#REF!=\"SI\",'OBLIGACIONES APLICABLES'!#REF!,NA())","v":{"$error":"#REF!"}},{"$f":"IF(DTA!#REF!=\"SI\",'OBLIGACIONES APLICABLES'!#REF!,NA())","v":{"$error":"#REF!"}}]
[{"$f":"IF(DTA!D18=\"SI\",DTA!B18,NA())","v":{"$error":"#N/A"}},{"$f":"IF(DTA!D18=\"SI\",DTA!#REF!,NA())","v":{"$error":"#N/A"}},{"$f":"IF(DTA!#REF!=\"SI\",'OBLIGACIONES APLICABLES'!#REF!,NA())","v":{"$error":"#REF!"}},{"$f":"IF(DTA!#REF!=\"SI\",'OBLIGACIONES APLICABLES'!#REF!,NA())","v":{"$error":"#REF!"}}]
[{"$f":"IF(DTA!#REF!=\"SI\",DTA!#REF!,NA())","v":{"$error":"#REF!"}},{"$f":"IF(DTA!#REF!=\"SI\",DTA!#REF!,NA())","v":{"$error":"#REF!"}},{"$f":"IF(DTA!#REF!=\"SI\",'OBLIGACIONES APLICABLES'!#REF!,NA())","v":{"$error":"#REF!"}},{"$f":"IF(DTA!#REF!=\"SI\",'OBLIGACIONES APLICABLES'!#REF!,NA())","v":{"$error":"#REF!"}}]
[{"$f":"IF(DTA!D23=\"SI\",DTA!B23,NA())","v":{"$error":"#N/A"}},{"$f":"IF(DTA!D23=\"SI\",DTA!#REF!,NA())","v":{"$error":"#N/A"}},{"$f":"IF(DTA!#REF!=\"SI\",'OBLIGACIONES APLICABLES'!#REF!,NA())","v":{"$error":"#REF!"}},{"$f":"IF(DTA!#REF!=\"SI\",'OBLIGACIONES APLICABLES'!#REF!,NA())","v":{"$error":"#REF!"}}]
[{"$f":"IF(DTA!D17=\"SI\",DTA!B17,NA())","v":{"$error":"#N/A"}},{"$f":"IF(DTA!D17=\"SI\",DTA!#REF!,NA())","v":{"$error":"#N/A"}},{"$f":"IF(DTA!#REF!=\"SI\",'OBLIGACIONES APLICABLES'!#REF!,NA())","v":{"$error":"#REF!"}},{"$f":"IF(DTA!#REF!=\"SI\",'OBLIGACIONES APLICABLES'!#REF!,NA())","v":{"$error":"#REF!"}}]
[{"$f":"IF(DTA!#REF!=\"SI\",DTA!#REF!,NA())","v":{"$error":"#REF!"}},{"$f":"IF(DTA!#REF!=\"SI\",DTA!#REF!,NA())","v":{"$error":"#REF!"}},{"$f":"IF(DTA!#REF!=\"SI\",'OBLIGACIONES APLICABLES'!#REF!,NA())","v":{"$error":"#REF!"}},{"$f":"IF(DTA!#REF!=\"SI\",'OBLIGACIONES APLICABLES'!#REF!,NA())","v":{"$error":"#REF!"}}]
[{"$f":"IF(DTA!#REF!=\"SI\",DTA!#REF!,NA())","v":{"$error":"#REF!"}},{"$f":"IF(DTA!#REF!=\"SI\",DTA!#REF!,NA())","v":{"$error":"#REF!"}},{"$f":"IF(DTA!#REF!=\"SI\",'OBLIGACIONES APLICABLES'!#REF!,NA())","v":{"$error":"#REF!"}},{"$f":"IF(DTA!#REF!=\"SI\",'OBLIGACIONES APLICABLES'!#REF!,NA())","v":{"$error":"#REF!"}}]
[{"$f":"IF(DTA!#REF!=\"SI\",DTA!#REF!,NA())","v":{"$error":"#REF!"}},{"$f":"IF(DTA!#REF!=\"SI\",DTA!#REF!,NA())","v":{"$error":"#REF!"}},{"$f":"IF(DTA!#REF!=\"SI\",'OBLIGACIONES APLICABLES'!#REF!,NA())","v":{"$error":"#REF!"}},{"$f":"IF(DTA!#REF!=\"SI\",'OBLIGACIONES APLICABLES'!#REF!,NA())","v":{"$error":"#REF!"}}]
[{"$f":"IF(DTA!#REF!=\"SI\",DTA!#REF!,NA())","v":{"$error":"#REF!"}},{"$f":"IF(DTA!#REF!=\"SI\",DTA!#REF!,NA())","v":{"$error":"#REF!"}},{"$f":"IF(DTA!#REF!=\"SI\",'OBLIGACIONES APLICABLES'!#REF!,NA())","v":{"$error":"#REF!"}},{"$f":"IF(DTA!#REF!=\"SI\",'OBLIGACIONES APLICABLES'!#REF!,NA())","v":{"$error":"#REF!"}}]
[{"$f":"IF(DTA!#REF!=\"SI\",DTA!#REF!,NA())","v":{"$error":"#REF!"}},{"$f":"IF(DTA!#REF!=\"SI\",DTA!#REF!,NA())","v":{"$error":"#REF!"}},{"$f":"IF(DTA!#REF!=\"SI\",'OBLIGACIONES APLICABLES'!#REF!,NA())","v":{"$error":"#REF!"}},{"$f":"IF(DTA!#REF!=\"SI\",'OBLIGACIONES APLICABLES'!#REF!,NA())","v":{"$error":"#REF!"}}]
[{"$f":"IF(DTA!#REF!=\"SI\",DTA!#REF!,NA())","v":{"$error":"#REF!"}},{"$f":"IF(DTA!#REF!=\"SI\",DTA!#REF!,NA())","v":{"$error":"#REF!"}},{"$f":"IF(DTA!#REF!=\"SI\",'OBLIGACIONES APLICABLES'!#REF!,NA())","v":{"$error":"#REF!"}},{"$f":"IF(DTA!#REF!=\"SI\",'OBLIGACIONES APLICABLES'!#REF!,NA())","v":{"$error":"#REF!"}}]
[{"$f":"IF(DTA!#REF!=\"SI\",DTA!#REF!,NA())","v":{"$error":"#REF!"}},{"$f":"IF(DTA!#REF!=\"SI\",DTA!#REF!,NA())","v":{"$error":"#REF!"}},{"$f":"IF(DTA!#REF!=\"SI\",'OBLIGACIONES APLICABLES'!#REF!,NA())","v":{"$error":"#REF!"}},{"$f":"IF(DTA!#REF!=\"SI\",'OBLIGACIONES APLICABLES'!#REF!,NA())","v":{"$error":"#REF!"}}]
[{"$f":"IF(DTA!#REF!=\"SI\",DTA!#REF!,NA())","v":{"$error":"#REF!"}},{"$f":"IF(DTA!#REF!=\"SI\",DTA!#REF!,NA())","v":{"$error":"#REF!"}},{"$f":"IF(DTA!#REF!=\"SI\",'OBLIGACIONES APLICABLES'!#REF!,NA())","v":{"$error":"#REF!"}},{"$f":"IF(DTA!#REF!=\"SI\",'OBLIGACIONES APLICABLES'!#REF!,NA())","v":{"$error":"#REF!"}}]
[{"$f":"IF(DTA!#REF!=\"SI\",DTA!#REF!,NA())","v":{"$error":"#REF!"}},{"$f":"IF(DTA!#REF!=\"SI\",DTA!#REF!,NA())","v":{"$error":"#REF!"}},{"$f":"IF(DTA!#REF!=\"SI\",'OBLIGACIONES APLICABLES'!#REF!,NA())","v":{"$error":"#REF!"}},{"$f":"IF(DTA!#REF!=\"SI\",'OBLIGACIONES APLICABLES'!#REF!,NA())","v":{"$error":"#REF!"}}]
[{"$f":"IF(DTA!#REF!=\"SI\",DTA!#REF!,NA())","v":{"$error":"#REF!"}},{"$f":"IF(DTA!#REF!=\"SI\",DTA!#REF!,NA())","v":{"$error":"#REF!"}},{"$f":"IF(DTA!#REF!=\"SI\",'OBLIGACIONES APLICABLES'!#REF!,NA())","v":{"$error":"#REF!"}},{"$f":"IF(DTA!#REF!=\"SI\",'OBLIGACIONES APLICABLES'!#REF!,NA())","v":{"$error":"#REF!"}}]
[{"$f":"IF(DTA!D39=\"SI\",DTA!B39,NA())","v":{"$error":"#N/A"}},{"$f":"IF(DTA!D39=\"SI\",DTA!#REF!,NA())","v":{"$error":"#N/A"}},{"$f":"IF(DTA!#REF!=\"SI\",'OBLIGACIONES APLICABLES'!#REF!,NA())","v":{"$error":"#REF!"}},{"$f":"IF(DTA!#REF!=\"SI\",'OBLIGACIONES APLICABLES'!#REF!,NA())","v":{"$error":"#REF!"}}]
[{"$f":"IF(DTA!#REF!=\"SI\",DTA!#REF!,NA())","v":{"$error":"#REF!"}},{"$f":"IF(DTA!#REF!=\"SI\",DTA!#REF!,NA())","v":{"$error":"#REF!"}},{"$f":"IF(DTA!#REF!=\"SI\",'OBLIGACIONES APLICABLES'!#REF!,NA())","v":{"$error":"#REF!"}},{"$f":"IF(DTA!#REF!=\"SI\",'OBLIGACIONES APLICABLES'!#REF!,NA())","v":{"$error":"#REF!"}}]
[{"$f":"IF(DTA!#REF!=\"SI\",DTA!#REF!,NA())","v":{"$error":"#REF!"}},{"$f":"IF(DTA!#REF!=\"SI\",DTA!#REF!,NA())","v":{"$error":"#REF!"}},{"$f":"IF(DTA!#REF!=\"SI\",'OBLIGACIONES APLICABLES'!#REF!,NA())","v":{"$error":"#REF!"}},{"$f":"IF(DTA!#REF!=\"SI\",'OBLIGACIONES APLICABLES'!#REF!,NA())","v":{"$error":"#REF!"}}]
[{"$f":"IF(DTA!#REF!=\"SI\",DTA!#REF!,NA())","v":{"$error":"#REF!"}},{"$f":"IF(DTA!#REF!=\"SI\",DTA!#REF!,NA())","v":{"$error":"#REF!"}},{"$f":"IF(DTA!#REF!=\"SI\",'OBLIGACIONES APLICABLES'!#REF!,NA())","v":{"$error":"#REF!"}},{"$f":"IF(DTA!#REF!=\"SI\",'OBLIGACIONES APLICABLES'!#REF!,NA())","v":{"$error":"#REF!"}}]
[{"$f":"IF(DTA!#REF!=\"SI\",DTA!#REF!,NA())","v":{"$error":"#REF!"}},{"$f":"IF(DTA!#REF!=\"SI\",DTA!#REF!,NA())","v":{"$error":"#REF!"}},{"$f":"IF(DTA!#REF!=\"SI\",'OBLIGACIONES APLICABLES'!#REF!,NA())","v":{"$error":"#REF!"}},{"$f":"IF(DTA!#REF!=\"SI\",'OBLIGACIONES APLICABLES'!#REF!,NA())","v":{"$error":"#REF!"}}]
[{"$f":"IF(DTA!#REF!=\"SI\",DTA!#REF!,NA())","v":{"$error":"#REF!"}},{"$f":"IF(DTA!#REF!=\"SI\",DTA!#REF!,NA())","v":{"$error":"#REF!"}},{"$f":"IF(DTA!#REF!=\"SI\",'OBLIGACIONES APLICABLES'!#REF!,NA())","v":{"$error":"#REF!"}},{"$f":"IF(DTA!#REF!=\"SI\",'OBLIGACIONES APLICABLES'!#REF!,NA())","v":{"$error":"#REF!"}}]
[{"$f":"IF(DTA!#REF!=\"SI\",DTA!#REF!,NA())","v":{"$error":"#REF!"}},{"$f":"IF(DTA!#REF!=\"SI\",DTA!#REF!,NA())","v":{"$error":"#REF!"}},{"$f":"IF(DTA!#REF!=\"SI\",'OBLIGACIONES APLICABLES'!#REF!,NA())","v":{"$error":"#REF!"}},{"$f":"IF(DTA!#REF!=\"SI\",'OBLIGACIONES APLICABLES'!#REF!,NA())","v":{"$error":"#REF!"}}]
[{"$f":"IF(DTA!#REF!=\"SI\",DTA!#REF!,NA())","v":{"$error":"#REF!"}},{"$f":"IF(DTA!#REF!=\"SI\",DTA!#REF!,NA())","v":{"$error":"#REF!"}},{"$f":"IF(DTA!#REF!=\"SI\",'OBLIGACIONES APLICABLES'!#REF!,NA())","v":{"$error":"#REF!"}},{"$f":"IF(DTA!#REF!=\"SI\",'OBLIGACIONES APLICABLES'!#REF!,NA())","v":{"$error":"#REF!"}}]
[{"$f":"IF(DTA!#REF!=\"SI\",DTA!#REF!,NA())","v":{"$error":"#REF!"}},{"$f":"IF(DTA!#REF!=\"SI\",DTA!#REF!,NA())","v":{"$error":"#REF!"}},{"$f":"IF(DTA!#REF!=\"SI\",'OBLIGACIONES APLICABLES'!#REF!,NA())","v":{"$error":"#REF!"}},{"$f":"IF(DTA!#REF!=\"SI\",'OBLIGACIONES APLICABLES'!#REF!,NA())","v":{"$error":"#REF!"}}]
[{"$f":"IF(DTA!#REF!=\"SI\",DTA!#REF!,NA())","v":{"$error":"#REF!"}},{"$f":"IF(DTA!#REF!=\"SI\",DTA!#REF!,NA())","v":{"$error":"#REF!"}},{"$f":"IF(DTA!#REF!=\"SI\",'OBLIGACIONES APLICABLES'!#REF!,NA())","v":{"$error":"#REF!"}},{"$f":"IF(DTA!#REF!=\"SI\",'OBLIGACIONES APLICABLES'!#REF!,NA())","v":{"$error":"#REF!"}}]
[{"$f":"IF(DTA!#REF!=\"SI\",DTA!#REF!,NA())","v":{"$error":"#REF!"}},{"$f":"IF(DTA!#REF!=\"SI\",DTA!#REF!,NA())","v":{"$error":"#REF!"}},{"$f":"IF(DTA!#REF!=\"SI\",'OBLIGACIONES APLICABLES'!#REF!,NA())","v":{"$error":"#REF!"}},{"$f":"IF(DTA!#REF!=\"SI\",'OBLIGACIONES APLICABLES'!#REF!,NA())","v":{"$error":"#REF!"}}]
[{"$f":"IF(DTA!#REF!=\"SI\",DTA!#REF!,NA())","v":{"$error":"#REF!"}},{"$f":"IF(DTA!#REF!=\"SI\",DTA!#REF!,NA())","v":{"$error":"#REF!"}},{"$f":"IF(DTA!#REF!=\"SI\",'OBLIGACIONES APLICABLES'!#REF!,NA())","v":{"$error":"#REF!"}},{"$f":"IF(DTA!#REF!=\"SI\",'OBLIGACIONES APLICABLES'!#REF!,NA())","v":{"$error":"#REF!"}}]
[{"$f":"IF(DTA!#REF!=\"SI\",DTA!#REF!,NA())","v":{"$error":"#REF!"}},{"$f":"IF(DTA!#REF!=\"SI\",DTA!#REF!,NA())","v":{"$error":"#REF!"}},{"$f":"IF(DTA!#REF!=\"SI\",'OBLIGACIONES APLICABLES'!#REF!,NA())","v":{"$error":"#REF!"}},{"$f":"IF(DTA!#REF!=\"SI\",'OBLIGACIONES APLICABLES'!#REF!,NA())","v":{"$error":"#REF!"}}]
[{"$f":"IF(DTA!#REF!=\"SI\",DTA!#REF!,NA())","v":{"$error":"#REF!"}},{"$f":"IF(DTA!#REF!=\"SI\",DTA!#REF!,NA())","v":{"$error":"#REF!"}},{"$f":"IF(DTA!#REF!=\"SI\",'OBLIGACIONES APLICABLES'!#REF!,NA())","v":{"$error":"#REF!"}},{"$f":"IF(DTA!#REF!=\"SI\",'OBLIGACIONES APLICABLES'!#REF!,NA())","v":{"$error":"#REF!"}}]
[{"$f":"IF(DTA!#REF!=\"SI\",DTA!#REF!,NA())","v":{"$error":"#REF!"}},{"$f":"IF(DTA!#REF!=\"SI\",DTA!#REF!,NA())","v":{"$error":"#REF!"}},{"$f":"IF(DTA!#REF!=\"SI\",'OBLIGACIONES APLICABLES'!#REF!,NA())","v":{"$error":"#REF!"}},{"$f":"IF(DTA!#REF!=\"SI\",'OBLIGACIONES APLICABLES'!#REF!,NA())","v":{"$error":"#REF!"}}]
[{"$f":"IF(DTA!#REF!=\"SI\",DTA!#REF!,NA())","v":{"$error":"#REF!"}},{"$f":"IF(DTA!#REF!=\"SI\",DTA!#REF!,NA())","v":{"$error":"#REF!"}},{"$f":"IF(DTA!#REF!=\"SI\",'OBLIGACIONES APLICABLES'!#REF!,NA())","v":{"$error":"#REF!"}},{"$f":"IF(DTA!#REF!=\"SI\",'OBLIGACIONES APLICABLES'!#REF!,NA())","v":{"$error":"#REF!"}}]
[{"$f":"IF(DTA!#REF!=\"SI\",DTA!#REF!,NA())","v":{"$error":"#REF!"}},{"$f":"IF(DTA!#REF!=\"SI\",DTA!#REF!,NA())","v":{"$error":"#REF!"}},{"$f":"IF(DTA!#REF!=\"SI\",'OBLIGACIONES APLICABLES'!#REF!,NA())","v":{"$error":"#REF!"}},{"$f":"IF(DTA!#REF!=\"SI\",'OBLIGACIONES APLICABLES'!#REF!,NA())","v":{"$error":"#REF!"}}]
[{"$f":"IF(DTA!#REF!=\"SI\",DTA!#REF!,NA())","v":{"$error":"#REF!"}},{"$f":"IF(DTA!#REF!=\"SI\",DTA!#REF!,NA())","v":{"$error":"#REF!"}},{"$f":"IF(DTA!#REF!=\"SI\",'OBLIGACIONES APLICABLES'!#REF!,NA())","v":{"$error":"#REF!"}},{"$f":"IF(DTA!#REF!=\"SI\",'OBLIGACIONES APLICABLES'!#REF!,NA())","v":{"$error":"#REF!"}}]
[{"$f":"IF(DTA!#REF!=\"SI\",DTA!#REF!,NA())","v":{"$error":"#REF!"}},{"$f":"IF(DTA!#REF!=\"SI\",DTA!#REF!,NA())","v":{"$error":"#REF!"}},{"$f":"IF(DTA!#REF!=\"SI\",'OBLIGACIONES APLICABLES'!#REF!,NA())","v":{"$error":"#REF!"}},{"$f":"IF(DTA!#REF!=\"SI\",'OBLIGACIONES APLICABLES'!#REF!,NA())","v":{"$error":"#REF!"}}]
[{"$f":"IF(DTA!#REF!=\"SI\",DTA!#REF!,NA())","v":{"$error":"#REF!"}},{"$f":"IF(DTA!#REF!=\"SI\",DTA!#REF!,NA())","v":{"$error":"#REF!"}},{"$f":"IF(DTA!#REF!=\"SI\",'OBLIGACIONES APLICABLES'!#REF!,NA())","v":{"$error":"#REF!"}},{"$f":"IF(DTA!#REF!=\"SI\",'OBLIGACIONES APLICABLES'!#REF!,NA())","v":{"$error":"#REF!"}}]
[{"$f":"IF(DTA!#REF!=\"SI\",DTA!#REF!,NA())","v":{"$error":"#REF!"}},{"$f":"IF(DTA!#REF!=\"SI\",DTA!#REF!,NA())","v":{"$error":"#REF!"}},{"$f":"IF(DTA!#REF!=\"SI\",'OBLIGACIONES APLICABLES'!#REF!,NA())","v":{"$error":"#REF!"}},{"$f":"IF(DTA!#REF!=\"SI\",'OBLIGACIONES APLICABLES'!#REF!,NA())","v":{"$error":"#REF!"}}]
[{"$f":"IF(DTA!#REF!=\"SI\",DTA!#REF!,NA())","v":{"$error":"#REF!"}},{"$f":"IF(DTA!#REF!=\"SI\",DTA!#REF!,NA())","v":{"$error":"#REF!"}},{"$f":"IF(DTA!#REF!=\"SI\",'OBLIGACIONES APLICABLES'!#REF!,NA())","v":{"$error":"#REF!"}},{"$f":"IF(DTA!#REF!=\"SI\",'OBLIGACIONES APLICABLES'!E3,NA())","v":{"$error":"#REF!"}}]
[{"$f":"IF(DTA!#REF!=\"SI\",DTA!#REF!,NA())","v":{"$error":"#REF!"}},{"$f":"IF(DTA!#REF!=\"SI\",DTA!#REF!,NA())","v":{"$error":"#REF!"}},{"$f":"IF(DTA!#REF!=\"SI\",'OBLIGACIONES APLICABLES'!#REF!,NA())","v":{"$error":"#REF!"}},{"$f":"IF(DTA!#REF!=\"SI\",'OBLIGACIONES APLICABLES'!E4,NA())","v":{"$error":"#REF!"}}]
[{"$f":"IF(DTA!#REF!=\"SI\",DTA!#REF!,NA())","v":{"$error":"#REF!"}},{"$f":"IF(DTA!#REF!=\"SI\",DTA!#REF!,NA())","v":{"$error":"#REF!"}},{"$f":"IF(DTA!#REF!=\"SI\",'OBLIGACIONES APLICABLES'!#REF!,NA())","v":{"$error":"#REF!"}},{"$f":"IF(DTA!#REF!=\"SI\",'OBLIGACIONES APLICABLES'!E6,NA())","v":{"$error":"#REF!"}}]
[{"$f":"IF(DTA!#REF!=\"SI\",DTA!#REF!,NA())","v":{"$error":"#REF!"}},{"$f":"IF(DTA!#REF!=\"SI\",DTA!#REF!,NA())","v":{"$error":"#REF!"}},{"$f":"IF(DTA!#REF!=\"SI\",'OBLIGACIONES APLICABLES'!#REF!,NA())","v":{"$error":"#REF!"}},{"$f":"IF(DTA!#REF!=\"SI\",'OBLIGACIONES APLICABLES'!E7,NA())","v":{"$error":"#REF!"}}]
[{"$f":"IF(DTA!#REF!=\"SI\",DTA!#REF!,NA())","v":{"$error":"#REF!"}},{"$f":"IF(DTA!#REF!=\"SI\",DTA!#REF!,NA())","v":{"$error":"#REF!"}},{"$f":"IF(DTA!#REF!=\"SI\",'OBLIGACIONES APLICABLES'!#REF!,NA())","v":{"$error":"#REF!"}},{"$f":"IF(DTA!#REF!=\"SI\",'OBLIGACIONES APLICABLES'!#REF!,NA())","v":{"$error":"#REF!"}}]
[{"$f":"IF(DTA!#REF!=\"SI\",DTA!#REF!,NA())","v":{"$error":"#REF!"}},{"$f":"IF(DTA!#REF!=\"SI\",DTA!#REF!,NA())","v":{"$error":"#REF!"}},{"$f":"IF(DTA!#REF!=\"SI\",'OBLIGACIONES APLICABLES'!#REF!,NA())","v":{"$error":"#REF!"}},{"$f":"IF(DTA!#REF!=\"SI\",'OBLIGACIONES APLICABLES'!#REF!,NA())","v":{"$error":"#REF!"}}]
[{"$f":"IF(DTA!#REF!=\"SI\",DTA!#REF!,NA())","v":{"$error":"#REF!"}},{"$f":"IF(DTA!#REF!=\"SI\",DTA!#REF!,NA())","v":{"$error":"#REF!"}},{"$f":"IF(DTA!#REF!=\"SI\",'OBLIGACIONES APLICABLES'!#REF!,NA())","v":{"$error":"#REF!"}},{"$f":"IF(DTA!#REF!=\"SI\",'OBLIGACIONES APLICABLES'!E8,NA())","v":{"$error":"#REF!"}}]
[{"$f":"IF(DTA!#REF!=\"SI\",DTA!#REF!,NA())","v":{"$error":"#REF!"}},{"$f":"IF(DTA!#REF!=\"SI\",DTA!#REF!,NA())","v":{"$error":"#REF!"}},{"$f":"IF(DTA!#REF!=\"SI\",'OBLIGACIONES APLICABLES'!#REF!,NA())","v":{"$error":"#REF!"}},{"$f":"IF(DTA!#REF!=\"SI\",'OBLIGACIONES APLICABLES'!#REF!,NA())","v":{"$error":"#REF!"}}]
[{"$f":"IF(DTA!#REF!=\"SI\",DTA!#REF!,NA())","v":{"$error":"#REF!"}},{"$f":"IF(DTA!#REF!=\"SI\",DTA!#REF!,NA())","v":{"$error":"#REF!"}},{"$f":"IF(DTA!#REF!=\"SI\",'OBLIGACIONES APLICABLES'!#REF!,NA())","v":{"$error":"#REF!"}},{"$f":"IF(DTA!#REF!=\"SI\",'OBLIGACIONES APLICABLES'!#REF!,NA())","v":{"$error":"#REF!"}}]
[{"$f":"IF(DTA!#REF!=\"SI\",DTA!#REF!,NA())","v":{"$error":"#REF!"}},{"$f":"IF(DTA!#REF!=\"SI\",DTA!#REF!,NA())","v":{"$error":"#REF!"}},{"$f":"IF(DTA!#REF!=\"SI\",'OBLIGACIONES APLICABLES'!#REF!,NA())","v":{"$error":"#REF!"}},{"$f":"IF(DTA!#REF!=\"SI\",'OBLIGACIONES APLICABLES'!#REF!,NA())","v":{"$error":"#REF!"}}]
[{"$f":"IF(DTA!#REF!=\"SI\",DTA!#REF!,NA())","v":{"$error":"#REF!"}},{"$f":"IF(DTA!#REF!=\"SI\",DTA!#REF!,NA())","v":{"$error":"#REF!"}},{"$f":"IF(DTA!#REF!=\"SI\",'OBLIGACIONES APLICABLES'!#REF!,NA())","v":{"$error":"#REF!"}},{"$f":"IF(DTA!#REF!=\"SI\",'OBLIGACIONES APLICABLES'!#REF!,NA())","v":{"$error":"#REF!"}}]
[{"$f":"IF(DTA!#REF!=\"SI\",DTA!#REF!,NA())","v":{"$error":"#REF!"}},{"$f":"IF(DTA!#REF!=\"SI\",DTA!#REF!,NA())","v":{"$error":"#REF!"}},{"$f":"IF(DTA!#REF!=\"SI\",'OBLIGACIONES APLICABLES'!#REF!,NA())","v":{"$error":"#REF!"}},{"$f":"IF(DTA!#REF!=\"SI\",'OBLIGACIONES APLICABLES'!E10,NA())","v":{"$error":"#REF!"}}]
[{"$f":"IF(DTA!#REF!=\"SI\",DTA!#REF!,NA())","v":{"$error":"#REF!"}},{"$f":"IF(DTA!#REF!=\"SI\",DTA!#REF!,NA())","v":{"$error":"#REF!"}},{"$f":"IF(DTA!#REF!=\"SI\",'OBLIGACIONES APLICABLES'!#REF!,NA())","v":{"$error":"#REF!"}},{"$f":"IF(DTA!#REF!=\"SI\",'OBLIGACIONES APLICABLES'!E11,NA())","v":{"$error":"#REF!"}}]
[{"$f":"IF(DTA!#REF!=\"SI\",DTA!#REF!,NA())","v":{"$error":"#REF!"}},{"$f":"IF(DTA!#REF!=\"SI\",DTA!#REF!,NA())","v":{"$error":"#REF!"}},{"$f":"IF(DTA!#REF!=\"SI\",'OBLIGACIONES APLICABLES'!#REF!,NA())","v":{"$error":"#REF!"}},{"$f":"IF(DTA!#REF!=\"SI\",'OBLIGACIONES APLICABLES'!#REF!,NA())","v":{"$error":"#REF!"}}]
[{"$f":"IF(DTA!#REF!=\"SI\",DTA!#REF!,NA())","v":{"$error":"#REF!"}},{"$f":"IF(DTA!#REF!=\"SI\",DTA!#REF!,NA())","v":{"$error":"#REF!"}},{"$f":"IF(DTA!#REF!=\"SI\",'OBLIGACIONES APLICABLES'!#REF!,NA())","v":{"$error":"#REF!"}},{"$f":"IF(DTA!#REF!=\"SI\",'OBLIGACIONES APLICABLES'!#REF!,NA())","v":{"$error":"#REF!"}}]
[{"$f":"IF(DTA!#REF!=\"SI\",DTA!#REF!,NA())","v":{"$error":"#REF!"}},{"$f":"IF(DTA!#REF!=\"SI\",DTA!#REF!,NA())","v":{"$error":"#REF!"}},{"$f":"IF(DTA!#REF!=\"SI\",'OBLIGACIONES APLICABLES'!#REF!,NA())","v":{"$error":"#REF!"}},{"$f":"IF(DTA!#REF!=\"SI\",'OBLIGACIONES APLICABLES'!E12,NA())","v":{"$error":"#REF!"}}]
[{"$f":"IF(DTA!#REF!=\"SI\",DTA!#REF!,NA())","v":{"$error":"#REF!"}},{"$f":"IF(DTA!#REF!=\"SI\",DTA!#REF!,NA())","v":{"$error":"#REF!"}},{"$f":"IF(DTA!#REF!=\"SI\",'OBLIGACIONES APLICABLES'!#REF!,NA())","v":{"$error":"#REF!"}},{"$f":"IF(DTA!#REF!=\"SI\",'OBLIGACIONES APLICABLES'!E14,NA())","v":{"$error":"#REF!"}}]
[{"$f":"IF(DTA!#REF!=\"SI\",DTA!#REF!,NA())","v":{"$error":"#REF!"}},{"$f":"IF(DTA!#REF!=\"SI\",DTA!#REF!,NA())","v":{"$error":"#REF!"}},{"$f":"IF(DTA!#REF!=\"SI\",'OBLIGACIONES APLICABLES'!#REF!,NA())","v":{"$error":"#REF!"}},{"$f":"IF(DTA!#REF!=\"SI\",'OBLIGACIONES APLICABLES'!#REF!,NA())","v":{"$error":"#REF!"}}]
[{"$f":"IF(DTA!#REF!=\"SI\",DTA!#REF!,NA())","v":{"$error":"#REF!"}},{"$f":"IF(DTA!#REF!=\"SI\",DTA!#REF!,NA())","v":{"$error":"#REF!"}},{"$f":"IF(DTA!#REF!=\"SI\",'OBLIGACIONES APLICABLES'!#REF!,NA())","v":{"$error":"#REF!"}},{"$f":"IF(DTA!#REF!=\"SI\",'OBLIGACIONES APLICABLES'!#REF!,NA())","v":{"$error":"#REF!"}}]
[{"$f":"IF(DTA!#REF!=\"SI\",DTA!#REF!,NA())","v":{"$error":"#REF!"}},{"$f":"IF(DTA!#REF!=\"SI\",DTA!#REF!,NA())","v":{"$error":"#REF!"}},{"$f":"IF(DTA!#REF!=\"SI\",'OBLIGACIONES APLICABLES'!#REF!,NA())","v":{"$error":"#REF!"}},{"$f":"IF(DTA!#REF!=\"SI\",'OBLIGACIONES APLICABLES'!#REF!,NA())","v":{"$error":"#REF!"}}]
[{"$f":"IF(DTA!#REF!=\"SI\",DTA!#REF!,NA())","v":{"$error":"#REF!"}},{"$f":"IF(DTA!#REF!=\"SI\",DTA!#REF!,NA())","v":{"$error":"#REF!"}},{"$f":"IF(DTA!#REF!=\"SI\",'OBLIGACIONES APLICABLES'!#REF!,NA())","v":{"$error":"#REF!"}},{"$f":"IF(DTA!#REF!=\"SI\",'OBLIGACIONES APLICABLES'!E16,NA())","v":{"$error":"#REF!"}}]
[{"$f":"IF(DTA!#REF!=\"SI\",DTA!#REF!,NA())","v":{"$error":"#REF!"}},{"$f":"IF(DTA!#REF!=\"SI\",DTA!#REF!,NA())","v":{"$error":"#REF!"}},{"$f":"IF(DTA!#REF!=\"SI\",'OBLIGACIONES APLICABLES'!#REF!,NA())","v":{"$error":"#REF!"}},{"$f":"IF(DTA!#REF!=\"SI\",'OBLIGACIONES APLICABLES'!E17,NA())","v":{"$error":"#REF!"}}]
[{"$f":"IF(DTA!#REF!=\"SI\",DTA!#REF!,NA())","v":{"$error":"#REF!"}},{"$f":"IF(DTA!#REF!=\"SI\",DTA!#REF!,NA())","v":{"$error":"#REF!"}},{"$f":"IF(DTA!#REF!=\"SI\",'OBLIGACIONES APLICABLES'!#REF!,NA())","v":{"$error":"#REF!"}},{"$f":"IF(DTA!#REF!=\"SI\",'OBLIGACIONES APLICABLES'!E19,NA())","v":{"$error":"#REF!"}}]
[{"$f":"IF(DTA!#REF!=\"SI\",DTA!#REF!,NA())","v":{"$error":"#REF!"}},{"$f":"IF(DTA!#REF!=\"SI\",DTA!#REF!,NA())","v":{"$error":"#REF!"}},{"$f":"IF(DTA!#REF!=\"SI\",'OBLIGACIONES APLICABLES'!#REF!,NA())","v":{"$error":"#REF!"}},{"$f":"IF(DTA!#REF!=\"SI\",'OBLIGACIONES APLICABLES'!E20,NA())","v":{"$error":"#REF!"}}]
[{"$f":"IF(DTA!#REF!=\"SI\",DTA!#REF!,NA())","v":{"$error":"#REF!"}},{"$f":"IF(DTA!#REF!=\"SI\",DTA!#REF!,NA())","v":{"$error":"#REF!"}},{"$f":"IF(DTA!#REF!=\"SI\",'OBLIGACIONES APLICABLES'!#REF!,NA())","v":{"$error":"#REF!"}},{"$f":"IF(DTA!#REF!=\"SI\",'OBLIGACIONES APLICABLES'!E21,NA())","v":{"$error":"#REF!"}}]
[{"$f":"IF(DTA!#REF!=\"SI\",DTA!#REF!,NA())","v":{"$error":"#REF!"}},{"$f":"IF(DTA!#REF!=\"SI\",DTA!#REF!,NA())","v":{"$error":"#REF!"}},{"$f":"IF(DTA!#REF!=\"SI\",'OBLIGACIONES APLICABLES'!#REF!,NA())","v":{"$error":"#REF!"}},{"$f":"IF(DTA!#REF!=\"SI\",'OBLIGACIONES APLICABLES'!E22,NA())","v":{"$error":"#REF!"}}]
[{"$f":"IF(DTA!#REF!=\"SI\",DTA!#REF!,NA())","v":{"$error":"#REF!"}},{"$f":"IF(DTA!#REF!=\"SI\",DTA!#REF!,NA())","v":{"$error":"#REF!"}},{"$f":"IF(DTA!#REF!=\"SI\",'OBLIGACIONES APLICABLES'!#REF!,NA())","v":{"$error":"#REF!"}},{"$f":"IF(DTA!#REF!=\"SI\",'OBLIGACIONES APLICABLES'!E23,NA())","v":{"$error":"#REF!"}}]
[{"$f":"IF(DTA!#REF!=\"SI\",DTA!#REF!,NA())","v":{"$error":"#REF!"}},{"$f":"IF(DTA!#REF!=\"SI\",DTA!#REF!,NA())","v":{"$error":"#REF!"}},{"$f":"IF(DTA!#REF!=\"SI\",'OBLIGACIONES APLICABLES'!#REF!,NA())","v":{"$error":"#REF!"}},{"$f":"IF(DTA!#REF!=\"SI\",'OBLIGACIONES APLICABLES'!E24,NA())","v":{"$error":"#REF!"}}]
[{"$f":"IF(DTA!#REF!=\"SI\",DTA!#REF!,NA())","v":{"$error":"#REF!"}},{"$f":"IF(DTA!#REF!=\"SI\",DTA!#REF!,NA())","v":{"$error":"#REF!"}},{"$f":"IF(DTA!#REF!=\"SI\",'OBLIGACIONES APLICABLES'!#REF!,NA())","v":{"$error":"#REF!"}},{"$f":"IF(DTA!#REF!=\"SI\",'OBLIGACIONES APLICABLES'!E25,NA())","v":{"$error":"#REF!"}}]
[{"$f":"IF(DTA!#REF!=\"SI\",DTA!#REF!,NA())","v":{"$error":"#REF!"}},{"$f":"IF(DTA!#REF!=\"SI\",DTA!#REF!,NA())","v":{"$error":"#REF!"}},{"$f":"IF(DTA!#REF!=\"SI\",'OBLIGACIONES APLICABLES'!#REF!,NA())","v":{"$error":"#REF!"}},{"$f":"IF(DTA!#REF!=\"SI\",'OBLIGACIONES APLICABLES'!E27,NA())","v":{"$error":"#REF!"}}]
[{"$f":"IF(DTA!#REF!=\"SI\",DTA!#REF!,NA())","v":{"$error":"#REF!"}},{"$f":"IF(DTA!#REF!=\"SI\",DTA!#REF!,NA())","v":{"$error":"#REF!"}},{"$f":"IF(DTA!#REF!=\"SI\",'OBLIGACIONES APLICABLES'!#REF!,NA())","v":{"$error":"#REF!"}},{"$f":"IF(DTA!#REF!=\"SI\",'OBLIGACIONES APLICABLES'!#REF!,NA())","v":{"$error":"#REF!"}}]
[{"$f":"IF(DTA!#REF!=\"SI\",DTA!#REF!,NA())","v":{"$error":"#REF!"}},{"$f":"IF(DTA!#REF!=\"SI\",DTA!#REF!,NA())","v":{"$error":"#REF!"}},{"$f":"IF(DTA!#REF!=\"SI\",'OBLIGACIONES APLICABLES'!#REF!,NA())","v":{"$error":"#REF!"}},{"$f":"IF(DTA!#REF!=\"SI\",'OBLIGACIONES APLICABLES'!#REF!,NA())","v":{"$error":"#REF!"}}]
[{"$f":"IF(DTA!#REF!=\"SI\",DTA!#REF!,NA())","v":{"$error":"#REF!"}},{"$f":"IF(DTA!#REF!=\"SI\",DTA!#REF!,NA())","v":{"$error":"#REF!"}},{"$f":"IF(DTA!#REF!=\"SI\",'OBLIGACIONES APLICABLES'!#REF!,NA())","v":{"$error":"#REF!"}},{"$f":"IF(DTA!#REF!=\"SI\",'OBLIGACIONES APLICABLES'!E28,NA())","v":{"$error":"#REF!"}}]
[{"$f":"IF(DTA!#REF!=\"SI\",DTA!#REF!,NA())","v":{"$error":"#REF!"}},{"$f":"IF(DTA!#REF!=\"SI\",DTA!#REF!,NA())","v":{"$error":"#REF!"}},{"$f":"IF(DTA!#REF!=\"SI\",'OBLIGACIONES APLICABLES'!#REF!,NA())","v":{"$error":"#REF!"}},{"$f":"IF(DTA!#REF!=\"SI\",'OBLIGACIONES APLICABLES'!E29,NA())","v":{"$error":"#REF!"}}]
[{"$f":"IF(DTA!#REF!=\"SI\",DTA!#REF!,NA())","v":{"$error":"#REF!"}},{"$f":"IF(DTA!#REF!=\"SI\",DTA!#REF!,NA())","v":{"$error":"#REF!"}},{"$f":"IF(DTA!#REF!=\"SI\",'OBLIGACIONES APLICABLES'!#REF!,NA())","v":{"$error":"#REF!"}},{"$f":"IF(DTA!#REF!=\"SI\",'OBLIGACIONES APLICABLES'!#REF!,NA())","v":{"$error":"#REF!"}}]
[{"$f":"IF(DTA!#REF!=\"SI\",DTA!#REF!,NA())","v":{"$error":"#REF!"}},{"$f":"IF(DTA!#REF!=\"SI\",DTA!#REF!,NA())","v":{"$error":"#REF!"}},{"$f":"IF(DTA!#REF!=\"SI\",'OBLIGACIONES APLICABLES'!#REF!,NA())","v":{"$error":"#REF!"}},{"$f":"IF(DTA!#REF!=\"SI\",'OBLIGACIONES APLICABLES'!E32,NA())","v":{"$error":"#REF!"}}]
[{"$f":"IF(DTA!#REF!=\"SI\",DTA!#REF!,NA())","v":{"$error":"#REF!"}},{"$f":"IF(DTA!#REF!=\"SI\",DTA!#REF!,NA())","v":{"$error":"#REF!"}},{"$f":"IF(DTA!#REF!=\"SI\",'OBLIGACIONES APLICABLES'!#REF!,NA())","v":{"$error":"#REF!"}},{"$f":"IF(DTA!#REF!=\"SI\",'OBLIGACIONES APLICABLES'!#REF!,NA())","v":{"$error":"#REF!"}}]
[{"$f":"IF(DTA!#REF!=\"SI\",DTA!#REF!,NA())","v":{"$error":"#REF!"}},{"$f":"IF(DTA!#REF!=\"SI\",DTA!#REF!,NA())","v":{"$error":"#REF!"}},{"$f":"IF(DTA!#REF!=\"SI\",'OBLIGACIONES APLICABLES'!#REF!,NA())","v":{"$error":"#REF!"}},{"$f":"IF(DTA!#REF!=\"SI\",'OBLIGACIONES APLICABLES'!E34,NA())","v":{"$error":"#REF!"}}]
[{"$f":"IF(DTA!#REF!=\"SI\",DTA!#REF!,NA())","v":{"$error":"#REF!"}},{"$f":"IF(DTA!#REF!=\"SI\",DTA!#REF!,NA())","v":{"$error":"#REF!"}},{"$f":"IF(DTA!#REF!=\"SI\",'OBLIGACIONES APLICABLES'!#REF!,NA())","v":{"$error":"#REF!"}},{"$f":"IF(DTA!#REF!=\"SI\",'OBLIGACIONES APLICABLES'!E35,NA())","v":{"$error":"#REF!"}}]
[{"$f":"IF(DTA!#REF!=\"SI\",DTA!#REF!,NA())","v":{"$error":"#REF!"}},{"$f":"IF(DTA!#REF!=\"SI\",DTA!#REF!,NA())","v":{"$error":"#REF!"}},{"$f":"IF(DTA!#REF!=\"SI\",'OBLIGACIONES APLICABLES'!#REF!,NA())","v":{"$error":"#REF!"}},{"$f":"IF(DTA!#REF!=\"SI\",'OBLIGACIONES APLICABLES'!#REF!,NA())","v":{"$error":"#REF!"}}]
[{"$f":"IF(DTA!#REF!=\"SI\",DTA!#REF!,NA())","v":{"$error":"#REF!"}},{"$f":"IF(DTA!#REF!=\"SI\",DTA!#REF!,NA())","v":{"$error":"#REF!"}},{"$f":"IF(DTA!#REF!=\"SI\",'OBLIGACIONES APLICABLES'!#REF!,NA())","v":{"$error":"#REF!"}},{"$f":"IF(DTA!#REF!=\"SI\",'OBLIGACIONES APLICABLES'!#REF!,NA())","v":{"$error":"#REF!"}}]
[{"$f":"IF(DTA!#REF!=\"SI\",DTA!#REF!,NA())","v":{"$error":"#REF!"}},{"$f":"IF(DTA!#REF!=\"SI\",DTA!#REF!,NA())","v":{"$error":"#REF!"}},{"$f":"IF(DTA!#REF!=\"SI\",'OBLIGACIONES APLICABLES'!#REF!,NA())","v":{"$error":"#REF!"}},{"$f":"IF(DTA!#REF!=\"SI\",'OBLIGACIONES APLICABLES'!#REF!,NA())","v":{"$error":"#REF!"}}]
[{"$f":"IF(DTA!#REF!=\"SI\",DTA!#REF!,NA())","v":{"$error":"#REF!"}},{"$f":"IF(DTA!#REF!=\"SI\",DTA!#REF!,NA())","v":{"$error":"#REF!"}},{"$f":"IF(DTA!#REF!=\"SI\",'OBLIGACIONES APLICABLES'!#REF!,NA())","v":{"$error":"#REF!"}},{"$f":"IF(DTA!#REF!=\"SI\",'OBLIGACIONES APLICABLES'!#REF!,NA())","v":{"$error":"#REF!"}}]
[{"$f":"IF(DTA!#REF!=\"SI\",DTA!#REF!,NA())","v":{"$error":"#REF!"}},{"$f":"IF(DTA!#REF!=\"SI\",DTA!#REF!,NA())","v":{"$error":"#REF!"}},{"$f":"IF(DTA!#REF!=\"SI\",'OBLIGACIONES APLICABLES'!#REF!,NA())","v":{"$error":"#REF!"}},{"$f":"IF(DTA!#REF!=\"SI\",'OBLIGACIONES APLICABLES'!#REF!,NA())","v":{"$error":"#REF!"}}]
[{"$f":"IF(DTA!#REF!=\"SI\",DTA!#REF!,NA())","v":{"$error":"#REF!"}},{"$f":"IF(DTA!#REF!=\"SI\",DTA!#REF!,NA())","v":{"$error":"#REF!"}},{"$f":"IF(DTA!#REF!=\"SI\",'OBLIGACIONES APLICABLES'!#REF!,NA())","v":{"$error":"#REF!"}},{"$f":"IF(DTA!#REF!=\"SI\",'OBLIGACIONES APLICABLES'!#REF!,NA())","v":{"$error":"#REF!"}}]
[{"$f":"IF(DTA!#REF!=\"SI\",DTA!#REF!,NA())","v":{"$error":"#REF!"}},{"$f":"IF(DTA!#REF!=\"SI\",DTA!#REF!,NA())","v":{"$error":"#REF!"}},{"$f":"IF(DTA!#REF!=\"SI\",'OBLIGACIONES APLICABLES'!#REF!,NA())","v":{"$error":"#REF!"}},{"$f":"IF(DTA!#REF!=\"SI\",'OBLIGACIONES APLICABLES'!#REF!,NA())","v":{"$error":"#REF!"}}]
[{"$f":"IF(DTA!#REF!=\"SI\",DTA!#REF!,NA())","v":{"$error":"#REF!"}},{"$f":"IF(DTA!#REF!=\"SI\",DTA!#REF!,NA())","v":{"$error":"#REF!"}},{"$f":"IF(DTA!#REF!=\"SI\",'OBLIGACIONES APLICABLES'!#REF!,NA())","v":{"$error":"#REF!"}},{"$f":"IF(DTA!#REF!=\"SI\",'OBLIGACIONES APLICABLES'!#REF!,NA())","v":{"$error":"#REF!"}}]
[{"$f":"IF(DTA!#REF!=\"SI\",DTA!#REF!,NA())","v":{"$error":"#REF!"}},{"$f":"IF(DTA!#REF!=\"SI\",DTA!#REF!,NA())","v":{"$error":"#REF!"}},{"$f":"IF(DTA!#REF!=\"SI\",'OBLIGACIONES APLICABLES'!#REF!,NA())","v":{"$error":"#REF!"}},{"$f":"IF(DTA!#REF!=\"SI\",'OBLIGACIONES APLICABLES'!#REF!,NA())","v":{"$error":"#REF!"}}]
[{"$f":"IF(DTA!#REF!=\"SI\",DTA!#REF!,NA())","v":{"$error":"#REF!"}},{"$f":"IF(DTA!#REF!=\"SI\",DTA!#REF!,NA())","v":{"$error":"#REF!"}},{"$f":"IF(DTA!#REF!=\"SI\",'OBLIGACIONES APLICABLES'!#REF!,NA())","v":{"$error":"#REF!"}},{"$f":"IF(DTA!#REF!=\"SI\",'OBLIGACIONES APLICABLES'!#REF!,NA())","v":{"$error":"#REF!"}}]
[{"$f":"IF(DTA!#REF!=\"SI\",DTA!#REF!,NA())","v":{"$error":"#REF!"}},{"$f":"IF(DTA!#REF!=\"SI\",DTA!#REF!,NA())","v":{"$error":"#REF!"}},{"$f":"IF(DTA!#REF!=\"SI\",'OBLIGACIONES APLICABLES'!#REF!,NA())","v":{"$error":"#REF!"}},{"$f":"IF(DTA!#REF!=\"SI\",'OBLIGACIONES APLICABLES'!#REF!,NA())","v":{"$error":"#REF!"}}]
[{"$f":"IF(DTA!#REF!=\"SI\",DTA!#REF!,NA())","v":{"$error":"#REF!"}},{"$f":"IF(DTA!#REF!=\"SI\",DTA!#REF!,NA())","v":{"$error":"#REF!"}},{"$f":"IF(DTA!#REF!=\"SI\",'OBLIGACIONES APLICABLES'!#REF!,NA())","v":{"$error":"#REF!"}},{"$f":"IF(DTA!#REF!=\"SI\",'OBLIGACIONES APLICABLES'!#REF!,NA())","v":{"$error":"#REF!"}}]
[{"$f":"IF(DTA!#REF!=\"SI\",DTA!#REF!,NA())","v":{"$error":"#REF!"}},{"$f":"IF(DTA!#REF!=\"SI\",DTA!#REF!,NA())","v":{"$error":"#REF!"}},{"$f":"IF(DTA!#REF!=\"SI\",'OBLIGACIONES APLICABLES'!#REF!,NA())","v":{"$error":"#REF!"}},{"$f":"IF(DTA!#REF!=\"SI\",'OBLIGACIONES APLICABLES'!#REF!,NA())","v":{"$error":"#REF!"}}]
[{"$f":"IF(DTA!#REF!=\"SI\",DTA!#REF!,NA())","v":{"$error":"#REF!"}},{"$f":"IF(DTA!#REF!=\"SI\",DTA!#REF!,NA())","v":{"$error":"#REF!"}},{"$f":"IF(DTA!#REF!=\"SI\",'OBLIGACIONES APLICABLES'!#REF!,NA())","v":{"$error":"#REF!"}},{"$f":"IF(DTA!#REF!=\"SI\",'OBLIGACIONES APLICABLES'!#REF!,NA())","v":{"$error":"#REF!"}}]
[{"$f":"IF(DTA!#REF!=\"SI\",DTA!#REF!,NA())","v":{"$error":"#REF!"}},{"$f":"IF(DTA!#REF!=\"SI\",DTA!#REF!,NA())","v":{"$error":"#REF!"}},{"$f":"IF(DTA!#REF!=\"SI\",'OBLIGACIONES APLICABLES'!#REF!,NA())","v":{"$error":"#REF!"}},{"$f":"IF(DTA!#REF!=\"SI\",'OBLIGACIONES APLICABLES'!#REF!,NA())","v":{"$error":"#REF!"}}]
[{"$f":"IF(DTA!#REF!=\"SI\",DTA!#REF!,NA())","v":{"$error":"#REF!"}},{"$f":"IF(DTA!#REF!=\"SI\",DTA!#REF!,NA())","v":{"$error":"#REF!"}},{"$f":"IF(DTA!#REF!=\"SI\",'OBLIGACIONES APLICABLES'!#REF!,NA())","v":{"$error":"#REF!"}},{"$f":"IF(DTA!#REF!=\"SI\",'OBLIGACIONES APLICABLES'!#REF!,NA())","v":{"$error":"#REF!"}}]
[{"$f":"IF(DTA!#REF!=\"SI\",DTA!#REF!,NA())","v":{"$error":"#REF!"}},{"$f":"IF(DTA!#REF!=\"SI\",DTA!#REF!,NA())","v":{"$error":"#REF!"}},{"$f":"IF(DTA!#REF!=\"SI\",'OBLIGACIONES APLICABLES'!#REF!,NA())","v":{"$error":"#REF!"}},{"$f":"IF(DTA!#REF!=\"SI\",'OBLIGACIONES APLICABLES'!#REF!,NA())","v":{"$error":"#REF!"}}]
[{"$f":"IF(DTA!#REF!=\"SI\",DTA!#REF!,NA())","v":{"$error":"#REF!"}},{"$f":"IF(DTA!#REF!=\"SI\",DTA!#REF!,NA())","v":{"$error":"#REF!"}},{"$f":"IF(DTA!#REF!=\"SI\",'OBLIGACIONES APLICABLES'!#REF!,NA())","v":{"$error":"#REF!"}},{"$f":"IF(DTA!#REF!=\"SI\",'OBLIGACIONES APLICABLES'!#REF!,NA())","v":{"$error":"#REF!"}}]
[{"$f":"IF(DTA!#REF!=\"SI\",DTA!#REF!,NA())","v":{"$error":"#REF!"}},{"$f":"IF(DTA!#REF!=\"SI\",DTA!#REF!,NA())","v":{"$error":"#REF!"}},{"$f":"IF(DTA!#REF!=\"SI\",'OBLIGACIONES APLICABLES'!#REF!,NA())","v":{"$error":"#REF!"}},{"$f":"IF(DTA!#REF!=\"SI\",'OBLIGACIONES APLICABLES'!#REF!,NA())","v":{"$error":"#REF!"}}]
[{"$f":"IF(DTA!#REF!=\"SI\",DTA!#REF!,NA())","v":{"$error":"#REF!"}},{"$f":"IF(DTA!#REF!=\"SI\",DTA!#REF!,NA())","v":{"$error":"#REF!"}},{"$f":"IF(DTA!#REF!=\"SI\",'OBLIGACIONES APLICABLES'!#REF!,NA())","v":{"$error":"#REF!"}},{"$f":"IF(DTA!#REF!=\"SI\",'OBLIGACIONES APLICABLES'!#REF!,NA())","v":{"$error":"#REF!"}}]
[{"$f":"IF(DTA!#REF!=\"SI\",DTA!#REF!,NA())","v":{"$error":"#REF!"}},{"$f":"IF(DTA!#REF!=\"SI\",DTA!#REF!,NA())","v":{"$error":"#REF!"}},{"$f":"IF(DTA!#REF!=\"SI\",'OBLIGACIONES APLICABLES'!#REF!,NA())","v":{"$error":"#REF!"}},{"$f":"IF(DTA!#REF!=\"SI\",'OBLIGACIONES APLICABLES'!#REF!,NA())","v":{"$error":"#REF!"}}]
[{"$f":"IF(DTA!#REF!=\"SI\",DTA!#REF!,NA())","v":{"$error":"#REF!"}},{"$f":"IF(DTA!#REF!=\"SI\",DTA!#REF!,NA())","v":{"$error":"#REF!"}},{"$f":"IF(DTA!#REF!=\"SI\",'OBLIGACIONES APLICABLES'!#REF!,NA())","v":{"$error":"#REF!"}},{"$f":"IF(DTA!#REF!=\"SI\",'OBLIGACIONES APLICABLES'!#REF!,NA())","v":{"$error":"#REF!"}}]
[{"$f":"IF(DTA!#REF!=\"SI\",DTA!#REF!,NA())","v":{"$error":"#REF!"}},{"$f":"IF(DTA!#REF!=\"SI\",DTA!#REF!,NA())","v":{"$error":"#REF!"}},{"$f":"IF(DTA!#REF!=\"SI\",'OBLIGACIONES APLICABLES'!#REF!,NA())","v":{"$error":"#REF!"}},{"$f":"IF(DTA!#REF!=\"SI\",'OBLIGACIONES APLICABLES'!#REF!,NA())","v":{"$error":"#REF!"}}]
[{"$f":"IF(DTA!#REF!=\"SI\",DTA!#REF!,NA())","v":{"$error":"#REF!"}},{"$f":"IF(DTA!#REF!=\"SI\",DTA!#REF!,NA())","v":{"$error":"#REF!"}},{"$f":"IF(DTA!#REF!=\"SI\",'OBLIGACIONES APLICABLES'!#REF!,NA())","v":{"$error":"#REF!"}},{"$f":"IF(DTA!#REF!=\"SI\",'OBLIGACIONES APLICABLES'!#REF!,NA())","v":{"$error":"#REF!"}}]
[{"$f":"IF(DTA!#REF!=\"SI\",DTA!#REF!,NA())","v":{"$error":"#REF!"}},{"$f":"IF(DTA!#REF!=\"SI\",DTA!#REF!,NA())","v":{"$error":"#REF!"}},{"$f":"IF(DTA!#REF!=\"SI\",'OBLIGACIONES APLICABLES'!#REF!,NA())","v":{"$error":"#REF!"}},{"$f":"IF(DTA!#REF!=\"SI\",'OBLIGACIONES APLICABLES'!#REF!,NA())","v":{"$error":"#REF!"}}]
[{"$f":"IF(DTA!#REF!=\"SI\",DTA!#REF!,NA())","v":{"$error":"#REF!"}},{"$f":"IF(DTA!#REF!=\"SI\",DTA!#REF!,NA())","v":{"$error":"#REF!"}},{"$f":"IF(DTA!#REF!=\"SI\",'OBLIGACIONES APLICABLES'!#REF!,NA())","v":{"$error":"#REF!"}},{"$f":"IF(DTA!#REF!=\"SI\",'OBLIGACIONES APLICABLES'!#REF!,NA())","v":{"$error":"#REF!"}}]
[{"$f":"IF(DTA!#REF!=\"SI\",DTA!#REF!,NA())","v":{"$error":"#REF!"}},{"$f":"IF(DTA!#REF!=\"SI\",DTA!#REF!,NA())","v":{"$error":"#REF!"}},{"$f":"IF(DTA!#REF!=\"SI\",'OBLIGACIONES APLICABLES'!#REF!,NA())","v":{"$error":"#REF!"}},{"$f":"IF(DTA!#REF!=\"SI\",'OBLIGACIONES APLICABLES'!#REF!,NA())","v":{"$error":"#REF!"}}]
[{"$f":"IF(DTA!#REF!=\"SI\",DTA!#REF!,NA())","v":{"$error":"#REF!"}},{"$f":"IF(DTA!#REF!=\"SI\",DTA!#REF!,NA())","v":{"$error":"#REF!"}},{"$f":"IF(DTA!#REF!=\"SI\",'OBLIGACIONES APLICABLES'!#REF!,NA())","v":{"$error":"#REF!"}},{"$f":"IF(DTA!#REF!=\"SI\",'OBLIGACIONES APLICABLES'!#REF!,NA())","v":{"$error":"#REF!"}}]
[{"$f":"IF(DTA!#REF!=\"SI\",DTA!#REF!,NA())","v":{"$error":"#REF!"}},{"$f":"IF(DTA!#REF!=\"SI\",DTA!#REF!,NA())","v":{"$error":"#REF!"}},{"$f":"IF(DTA!#REF!=\"SI\",'OBLIGACIONES APLICABLES'!#REF!,NA())","v":{"$error":"#REF!"}},{"$f":"IF(DTA!#REF!=\"SI\",'OBLIGACIONES APLICABLES'!#REF!,NA())","v":{"$error":"#REF!"}}]
[{"$f":"IF(DTA!#REF!=\"SI\",DTA!#REF!,NA())","v":{"$error":"#REF!"}},{"$f":"IF(DTA!#REF!=\"SI\",DTA!#REF!,NA())","v":{"$error":"#REF!"}},{"$f":"IF(DTA!#REF!=\"SI\",'OBLIGACIONES APLICABLES'!#REF!,NA())","v":{"$error":"#REF!"}},{"$f":"IF(DTA!#REF!=\"SI\",'OBLIGACIONES APLICABLES'!#REF!,NA())","v":{"$error":"#REF!"}}]
[{"$f":"IF(DTA!#REF!=\"SI\",DTA!#REF!,NA())","v":{"$error":"#REF!"}},{"$f":"IF(DTA!#REF!=\"SI\",DTA!#REF!,NA())","v":{"$error":"#REF!"}},{"$f":"IF(DTA!#REF!=\"SI\",'OBLIGACIONES APLICABLES'!#REF!,NA())","v":{"$error":"#REF!"}},{"$f":"IF(DTA!#REF!=\"SI\",'OBLIGACIONES APLICABLES'!#REF!,NA())","v":{"$error":"#REF!"}}]
[{"$f":"IF(DTA!#REF!=\"SI\",DTA!#REF!,NA())","v":{"$error":"#REF!"}},{"$f":"IF(DTA!#REF!=\"SI\",DTA!#REF!,NA())","v":{"$error":"#REF!"}},{"$f":"IF(DTA!#REF!=\"SI\",'OBLIGACIONES APLICABLES'!#REF!,NA())","v":{"$error":"#REF!"}},{"$f":"IF(DTA!#REF!=\"SI\",'OBLIGACIONES APLICABLES'!#REF!,NA())","v":{"$error":"#REF!"}}]
[{"$f":"IF(DTA!#REF!=\"SI\",DTA!#REF!,NA())","v":{"$error":"#REF!"}},{"$f":"IF(DTA!#REF!=\"SI\",DTA!#REF!,NA())","v":{"$error":"#REF!"}},{"$f":"IF(DTA!#REF!=\"SI\",'OBLIGACIONES APLICABLES'!#REF!,NA())","v":{"$error":"#REF!"}},{"$f":"IF(DTA!#REF!=\"SI\",'OBLIGACIONES APLICABLES'!#REF!,NA())","v":{"$error":"#REF!"}}]
[{"$f":"IF(DTA!#REF!=\"SI\",DTA!#REF!,NA())","v":{"$error":"#REF!"}},{"$f":"IF(DTA!#REF!=\"SI\",DTA!#REF!,NA())","v":{"$error":"#REF!"}},{"$f":"IF(DTA!#REF!=\"SI\",'OBLIGACIONES APLICABLES'!#REF!,NA())","v":{"$error":"#REF!"}},{"$f":"IF(DTA!#REF!=\"SI\",'OBLIGACIONES APLICABLES'!#REF!,NA())","v":{"$error":"#REF!"}}]
[{"$f":"IF(DTA!#REF!=\"SI\",DTA!#REF!,NA())","v":{"$error":"#REF!"}},{"$f":"IF(DTA!#REF!=\"SI\",DTA!#REF!,NA())","v":{"$error":"#REF!"}},{"$f":"IF(DTA!#REF!=\"SI\",'OBLIGACIONES APLICABLES'!#REF!,NA())","v":{"$error":"#REF!"}},{"$f":"IF(DTA!#REF!=\"SI\",'OBLIGACIONES APLICABLES'!#REF!,NA())","v":{"$error":"#REF!"}}]
[{"$f":"IF(DTA!#REF!=\"SI\",DTA!#REF!,NA())","v":{"$error":"#REF!"}},{"$f":"IF(DTA!#REF!=\"SI\",DTA!#REF!,NA())","v":{"$error":"#REF!"}},{"$f":"IF(DTA!#REF!=\"SI\",'OBLIGACIONES APLICABLES'!#REF!,NA())","v":{"$error":"#REF!"}},{"$f":"IF(DTA!#REF!=\"SI\",'OBLIGACIONES APLICABLES'!#REF!,NA())","v":{"$error":"#REF!"}}]
[{"$f":"IF(DTA!#REF!=\"SI\",DTA!#REF!,NA())","v":{"$error":"#REF!"}},{"$f":"IF(DTA!#REF!=\"SI\",DTA!#REF!,NA())","v":{"$error":"#REF!"}},{"$f":"IF(DTA!#REF!=\"SI\",'OBLIGACIONES APLICABLES'!#REF!,NA())","v":{"$error":"#REF!"}},{"$f":"IF(DTA!#REF!=\"SI\",'OBLIGACIONES APLICABLES'!#REF!,NA())","v":{"$error":"#REF!"}}]
[{"$f":"IF(DTA!#REF!=\"SI\",DTA!#REF!,NA())","v":{"$error":"#REF!"}},{"$f":"IF(DTA!#REF!=\"SI\",DTA!#REF!,NA())","v":{"$error":"#REF!"}},{"$f":"IF(DTA!#REF!=\"SI\",'OBLIGACIONES APLICABLES'!#REF!,NA())","v":{"$error":"#REF!"}},{"$f":"IF(DTA!#REF!=\"SI\",'OBLIGACIONES APLICABLES'!#REF!,NA())","v":{"$error":"#REF!"}}]
[{"$f":"IF(DTA!#REF!=\"SI\",DTA!#REF!,NA())","v":{"$error":"#REF!"}},{"$f":"IF(DTA!#REF!=\"SI\",DTA!#REF!,NA())","v":{"$error":"#REF!"}},{"$f":"IF(DTA!#REF!=\"SI\",'OBLIGACIONES APLICABLES'!#REF!,NA())","v":{"$error":"#REF!"}},{"$f":"IF(DTA!#REF!=\"SI\",'OBLIGACIONES APLICABLES'!#REF!,NA())","v":{"$error":"#REF!"}}]
[{"$f":"IF(DTA!#REF!=\"SI\",DTA!#REF!,NA())","v":{"$error":"#REF!"}},{"$f":"IF(DTA!#REF!=\"SI\",DTA!#REF!,NA())","v":{"$error":"#REF!"}},{"$f":"IF(DTA!#REF!=\"SI\",'OBLIGACIONES APLICABLES'!#REF!,NA())","v":{"$error":"#REF!"}},{"$f":"IF(DTA!#REF!=\"SI\",'OBLIGACIONES APLICABLES'!#REF!,NA())","v":{"$error":"#REF!"}}]
[{"$f":"IF(DTA!#REF!=\"SI\",DTA!#REF!,NA())","v":{"$error":"#REF!"}},{"$f":"IF(DTA!#REF!=\"SI\",DTA!#REF!,NA())","v":{"$error":"#REF!"}},{"$f":"IF(DTA!#REF!=\"SI\",'OBLIGACIONES APLICABLES'!#REF!,NA())","v":{"$error":"#REF!"}},{"$f":"IF(DTA!#REF!=\"SI\",'OBLIGACIONES APLICABLES'!#REF!,NA())","v":{"$error":"#REF!"}}]
[{"$f":"IF(DTA!#REF!=\"SI\",DTA!#REF!,NA())","v":{"$error":"#REF!"}},{"$f":"IF(DTA!#REF!=\"SI\",DTA!#REF!,NA())","v":{"$error":"#REF!"}},{"$f":"IF(DTA!#REF!=\"SI\",'OBLIGACIONES APLICABLES'!#REF!,NA())","v":{"$error":"#REF!"}},{"$f":"IF(DTA!#REF!=\"SI\",'OBLIGACIONES APLICABLES'!#REF!,NA())","v":{"$error":"#REF!"}}]
[{"$f":"IF(DTA!#REF!=\"SI\",DTA!#REF!,NA())","v":{"$error":"#REF!"}},{"$f":"IF(DTA!#REF!=\"SI\",DTA!#REF!,NA())","v":{"$error":"#REF!"}},{"$f":"IF(DTA!#REF!=\"SI\",'OBLIGACIONES APLICABLES'!#REF!,NA())","v":{"$error":"#REF!"}},{"$f":"IF(DTA!#REF!=\"SI\",'OBLIGACIONES APLICABLES'!#REF!,NA())","v":{"$error":"#REF!"}}]
[{"$f":"IF(DTA!#REF!=\"SI\",DTA!#REF!,NA())","v":{"$error":"#REF!"}},{"$f":"IF(DTA!#REF!=\"SI\",DTA!#REF!,NA())","v":{"$error":"#REF!"}},{"$f":"IF(DTA!#REF!=\"SI\",'OBLIGACIONES APLICABLES'!#REF!,NA())","v":{"$error":"#REF!"}},{"$f":"IF(DTA!#REF!=\"SI\",'OBLIGACIONES APLICABLES'!#REF!,NA())","v":{"$error":"#REF!"}}]
[{"$f":"IF(DTA!#REF!=\"SI\",DTA!#REF!,NA())","v":{"$error":"#REF!"}},{"$f":"IF(DTA!#REF!=\"SI\",DTA!#REF!,NA())","v":{"$error":"#REF!"}},{"$f":"IF(DTA!#REF!=\"SI\",'OBLIGACIONES APLICABLES'!#REF!,NA())","v":{"$error":"#REF!"}},{"$f":"IF(DTA!#REF!=\"SI\",'OBLIGACIONES APLICABLES'!#REF!,NA())","v":{"$error":"#REF!"}}]
[{"$f":"IF(DTA!#REF!=\"SI\",DTA!#REF!,NA())","v":{"$error":"#REF!"}},{"$f":"IF(DTA!#REF!=\"SI\",DTA!#REF!,NA())","v":{"$error":"#REF!"}},{"$f":"IF(DTA!#REF!=\"SI\",'OBLIGACIONES APLICABLES'!#REF!,NA())","v":{"$error":"#REF!"}},{"$f":"IF(DTA!#REF!=\"SI\",'OBLIGACIONES APLICABLES'!#REF!,NA())","v":{"$error":"#REF!"}}]
[{"$f":"IF(DTA!#REF!=\"SI\",DTA!#REF!,NA())","v":{"$error":"#REF!"}},{"$f":"IF(DTA!#REF!=\"SI\",DTA!#REF!,NA())","v":{"$error":"#REF!"}},{"$f":"IF(DTA!#REF!=\"SI\",'OBLIGACIONES APLICABLES'!#REF!,NA())","v":{"$error":"#REF!"}},{"$f":"IF(DTA!#REF!=\"SI\",'OBLIGACIONES APLICABLES'!#REF!,NA())","v":{"$error":"#REF!"}}]
[{"$f":"IF(DTA!#REF!=\"SI\",DTA!#REF!,NA())","v":{"$error":"#REF!"}},{"$f":"IF(DTA!#REF!=\"SI\",DTA!#REF!,NA())","v":{"$error":"#REF!"}},{"$f":"IF(DTA!#REF!=\"SI\",'OBLIGACIONES APLICABLES'!#REF!,NA())","v":{"$error":"#REF!"}},{"$f":"IF(DTA!#REF!=\"SI\",'OBLIGACIONES APLICABLES'!#REF!,NA())","v":{"$error":"#REF!"}}]
[{"$f":"IF(DTA!#REF!=\"SI\",DTA!#REF!,NA())","v":{"$error":"#REF!"}},{"$f":"IF(DTA!#REF!=\"SI\",DTA!#REF!,NA())","v":{"$error":"#REF!"}},{"$f":"IF(DTA!#REF!=\"SI\",'OBLIGACIONES APLICABLES'!#REF!,NA())","v":{"$error":"#REF!"}},{"$f":"IF(DTA!#REF!=\"SI\",'OBLIGACIONES APLICABLES'!#REF!,NA())","v":{"$error":"#REF!"}}]
[{"$f":"IF(DTA!#REF!=\"SI\",DTA!#REF!,NA())","v":{"$error":"#REF!"}},{"$f":"IF(DTA!#REF!=\"SI\",DTA!#REF!,NA())","v":{"$error":"#REF!"}},{"$f":"IF(DTA!#REF!=\"SI\",'OBLIGACIONES APLICABLES'!#REF!,NA())","v":{"$error":"#REF!"}},{"$f":"IF(DTA!#REF!=\"SI\",'OBLIGACIONES APLICABLES'!#REF!,NA())","v":{"$error":"#REF!"}}]
[{"$f":"IF(DTA!#REF!=\"SI\",DTA!#REF!,NA())","v":{"$error":"#REF!"}},{"$f":"IF(DTA!#REF!=\"SI\",DTA!#REF!,NA())","v":{"$error":"#REF!"}},{"$f":"IF(DTA!#REF!=\"SI\",'OBLIGACIONES APLICABLES'!#REF!,NA())","v":{"$error":"#REF!"}},{"$f":"IF(DTA!#REF!=\"SI\",'OBLIGACIONES APLICABLES'!#REF!,NA())","v":{"$error":"#REF!"}}]
[{"$f":"IF(DTA!#REF!=\"SI\",DTA!#REF!,NA())","v":{"$error":"#REF!"}},{"$f":"IF(DTA!#REF!=\"SI\",DTA!#REF!,NA())","v":{"$error":"#REF!"}},{"$f":"IF(DTA!#REF!=\"SI\",'OBLIGACIONES APLICABLES'!#REF!,NA())","v":{"$error":"#REF!"}},{"$f":"IF(DTA!#REF!=\"SI\",'OBLIGACIONES APLICABLES'!#REF!,NA())","v":{"$error":"#REF!"}}]
[{"$f":"IF(DTA!#REF!=\"SI\",DTA!#REF!,NA())","v":{"$error":"#REF!"}},{"$f":"IF(DTA!#REF!=\"SI\",DTA!#REF!,NA())","v":{"$error":"#REF!"}},{"$f":"IF(DTA!#REF!=\"SI\",'OBLIGACIONES APLICABLES'!#REF!,NA())","v":{"$error":"#REF!"}},{"$f":"IF(DTA!#REF!=\"SI\",'OBLIGACIONES APLICABLES'!#REF!,NA())","v":{"$error":"#REF!"}}]
[{"$f":"IF(DTA!#REF!=\"SI\",DTA!#REF!,NA())","v":{"$error":"#REF!"}},{"$f":"IF(DTA!#REF!=\"SI\",DTA!#REF!,NA())","v":{"$error":"#REF!"}},{"$f":"IF(DTA!#REF!=\"SI\",'OBLIGACIONES APLICABLES'!#REF!,NA())","v":{"$error":"#REF!"}},{"$f":"IF(DTA!#REF!=\"SI\",'OBLIGACIONES APLICABLES'!#REF!,NA())","v":{"$error":"#REF!"}}]
[{"$f":"IF(DTA!#REF!=\"SI\",DTA!#REF!,NA())","v":{"$error":"#REF!"}},{"$f":"IF(DTA!#REF!=\"SI\",DTA!#REF!,NA())","v":{"$error":"#REF!"}},{"$f":"IF(DTA!#REF!=\"SI\",'OBLIGACIONES APLICABLES'!#REF!,NA())","v":{"$error":"#REF!"}},{"$f":"IF(DTA!#REF!=\"SI\",'OBLIGACIONES APLICABLES'!#REF!,NA())","v":{"$error":"#REF!"}}]
[{"$f":"IF(DTA!#REF!=\"SI\",DTA!#REF!,NA())","v":{"$error":"#REF!"}},{"$f":"IF(DTA!#REF!=\"SI\",DTA!#REF!,NA())","v":{"$error":"#REF!"}},{"$f":"IF(DTA!#REF!=\"SI\",'OBLIGACIONES APLICABLES'!#REF!,NA())","v":{"$error":"#REF!"}},{"$f":"IF(DTA!#REF!=\"SI\",'OBLIGACIONES APLICABLES'!#REF!,NA())","v":{"$error":"#REF!"}}]
[{"$f":"IF(DTA!#REF!=\"SI\",DTA!#REF!,NA())","v":{"$error":"#REF!"}},{"$f":"IF(DTA!#REF!=\"SI\",DTA!#REF!,NA())","v":{"$error":"#REF!"}},{"$f":"IF(DTA!#REF!=\"SI\",'OBLIGACIONES APLICABLES'!#REF!,NA())","v":{"$error":"#REF!"}},{"$f":"IF(DTA!#REF!=\"SI\",'OBLIGACIONES APLICABLES'!#REF!,NA())","v":{"$error":"#REF!"}}]
[{"$f":"IF(DTA!#REF!=\"SI\",DTA!#REF!,NA())","v":{"$error":"#REF!"}},{"$f":"IF(DTA!#REF!=\"SI\",DTA!#REF!,NA())","v":{"$error":"#REF!"}},{"$f":"IF(DTA!#REF!=\"SI\",'OBLIGACIONES APLICABLES'!#REF!,NA())","v":{"$error":"#REF!"}},{"$f":"IF(DTA!#REF!=\"SI\",'OBLIGACIONES APLICABLES'!#REF!,NA())","v":{"$error":"#REF!"}}]
[{"$f":"IF(DTA!#REF!=\"SI\",DTA!#REF!,NA())","v":{"$error":"#REF!"}},{"$f":"IF(DTA!#REF!=\"SI\",DTA!#REF!,NA())","v":{"$error":"#REF!"}},{"$f":"IF(DTA!#REF!=\"SI\",'OBLIGACIONES APLICABLES'!#REF!,NA())","v":{"$error":"#REF!"}},{"$f":"IF(DTA!#REF!=\"SI\",'OBLIGACIONES APLICABLES'!#REF!,NA())","v":{"$error":"#REF!"}}]
[{"$f":"IF(DTA!#REF!=\"SI\",DTA!#REF!,NA())","v":{"$error":"#REF!"}},{"$f":"IF(DTA!#REF!=\"SI\",DTA!#REF!,NA())","v":{"$error":"#REF!"}},{"$f":"IF(DTA!#REF!=\"SI\",'OBLIGACIONES APLICABLES'!#REF!,NA())","v":{"$error":"#REF!"}},{"$f":"IF(DTA!#REF!=\"SI\",'OBLIGACIONES APLICABLES'!#REF!,NA())","v":{"$error":"#REF!"}}]
[{"$f":"IF(DTA!#REF!=\"SI\",DTA!#REF!,NA())","v":{"$error":"#REF!"}},{"$f":"IF(DTA!#REF!=\"SI\",DTA!#REF!,NA())","v":{"$error":"#REF!"}},{"$f":"IF(DTA!#REF!=\"SI\",'OBLIGACIONES APLICABLES'!#REF!,NA())","v":{"$error":"#REF!"}},{"$f":"IF(DTA!#REF!=\"SI\",'OBLIGACIONES APLICABLES'!#REF!,NA())","v":{"$error":"#REF!"}}]
[{"$f":"IF(DTA!#REF!=\"SI\",DTA!#REF!,NA())","v":{"$error":"#REF!"}},{"$f":"IF(DTA!#REF!=\"SI\",DTA!#REF!,NA())","v":{"$error":"#REF!"}},{"$f":"IF(DTA!#REF!=\"SI\",'OBLIGACIONES APLICABLES'!#REF!,NA())","v":{"$error":"#REF!"}},{"$f":"IF(DTA!#REF!=\"SI\",'OBLIGACIONES APLICABLES'!#REF!,NA())","v":{"$error":"#REF!"}}]
[{"$f":"IF(DTA!#REF!=\"SI\",DTA!#REF!,NA())","v":{"$error":"#REF!"}},{"$f":"IF(DTA!#REF!=\"SI\",DTA!#REF!,NA())","v":{"$error":"#REF!"}},{"$f":"IF(DTA!#REF!=\"SI\",'OBLIGACIONES APLICABLES'!#REF!,NA())","v":{"$error":"#REF!"}},{"$f":"IF(DTA!#REF!=\"SI\",'OBLIGACIONES APLICABLES'!#REF!,NA())","v":{"$error":"#REF!"}}]
[{"$f":"IF(DTA!#REF!=\"SI\",DTA!#REF!,NA())","v":{"$error":"#REF!"}},{"$f":"IF(DTA!#REF!=\"SI\",DTA!#REF!,NA())","v":{"$error":"#REF!"}},{"$f":"IF(DTA!#REF!=\"SI\",'OBLIGACIONES APLICABLES'!#REF!,NA())","v":{"$error":"#REF!"}},{"$f":"IF(DTA!#REF!=\"SI\",'OBLIGACIONES APLICABLES'!#REF!,NA())","v":{"$error":"#REF!"}}]

{"sheet":"Hoja2","index":5,"n_rows":74,"n_cols":4,"rows_kept":74,"cut":false,"hidden":true,"merged":[]}
["COMPONENTE","Fase de construcción","Fase de operación y mantenimiento","Fase de desmantelamiento y abandono"]
[{"$f":"IFERROR(INDEX(Temp!A$3:A$170, SMALL(IF(ISERROR(Temp!A$3:A$170), \"\", ROW(Temp!A$3:A$170)-MIN(ROW(Temp!A$3:A$170))+1), ROW(1:1))),\"\")","v":""},{"$f":"IFERROR(INDEX(Temp!B$3:B$170, SMALL(IF(ISERROR(Temp!B$3:B$170), \"\", ROW(Temp!B$3:B$170)-MIN(ROW(Temp!B$3:B$170))+1), ROW(1:1))),\"\")","v":""},{"$f":"IFERROR(INDEX(Temp!C$3:C$170, SMALL(IF(ISERROR(Temp!C$3:C$170), \"\", ROW(Temp!C$3:C$170)-MIN(ROW(Temp!C$3:C$170))+1), ROW(1:1))),\"\")","v":""},{"$f":"IFERROR(INDEX(Temp!D$3:D$170, SMALL(IF(ISERROR(Temp!D$3:D$170), \"\", ROW(Temp!D$3:D$170)-MIN(ROW(Temp!D$3:D$170))+1), ROW(1:1))),\"\")","v":""}]
[{"$f":"IFERROR(INDEX(Temp!A$3:A$170, SMALL(IF(ISERROR(Temp!A$3:A$170), \"\", ROW(Temp!A$3:A$170)-MIN(ROW(Temp!A$3:A$170))+1), ROW(2:2))),\"\")","v":""},{"$f":"IFERROR(INDEX(Temp!B$3:B$170, SMALL(IF(ISERROR(Temp!B$3:B$170), \"\", ROW(Temp!B$3:B$170)-MIN(ROW(Temp!B$3:B$170))+1), ROW(2:2))),\"\")","v":""},{"$f":"IFERROR(INDEX(Temp!C$3:C$170, SMALL(IF(ISERROR(Temp!C$3:C$170), \"\", ROW(Temp!C$3:C$170)-MIN(ROW(Temp!C$3:C$170))+1), ROW(2:2))),\"\")","v":""},{"$f":"IFERROR(INDEX(Temp!D$3:D$170, SMALL(IF(ISERROR(Temp!D$3:D$170), \"\", ROW(Temp!D$3:D$170)-MIN(ROW(Temp!D$3:D$170))+1), ROW(2:2))),\"\")","v":""}]
[{"$f":"IFERROR(INDEX(Temp!A$3:A$170, SMALL(IF(ISERROR(Temp!A$3:A$170), \"\", ROW(Temp!A$3:A$170)-MIN(ROW(Temp!A$3:A$170))+1), ROW(3:3))),\"\")","v":""},{"$f":"IFERROR(INDEX(Temp!B$3:B$170, SMALL(IF(ISERROR(Temp!B$3:B$170), \"\", ROW(Temp!B$3:B$170)-MIN(ROW(Temp!B$3:B$170))+1), ROW(3:3))),\"\")","v":""},{"$f":"IFERROR(INDEX(Temp!C$3:C$170, SMALL(IF(ISERROR(Temp!C$3:C$170), \"\", ROW(Temp!C$3:C$170)-MIN(ROW(Temp!C$3:C$170))+1), ROW(3:3))),\"\")","v":""},{"$f":"IFERROR(INDEX(Temp!D$3:D$170, SMALL(IF(ISERROR(Temp!D$3:D$170), \"\", ROW(Temp!D$3:D$170)-MIN(ROW(Temp!D$3:D$170))+1), ROW(3:3))),\"\")","v":""}]
[{"$f":"IFERROR(INDEX(Temp!A$3:A$170, SMALL(IF(ISERROR(Temp!A$3:A$170), \"\", ROW(Temp!A$3:A$170)-MIN(ROW(Temp!A$3:A$170))+1), ROW(4:4))),\"\")","v":""},{"$f":"IFERROR(INDEX(Temp!B$3:B$170, SMALL(IF(ISERROR(Temp!B$3:B$170), \"\", ROW(Temp!B$3:B$170)-MIN(ROW(Temp!B$3:B$170))+1), ROW(4:4))),\"\")","v":""},{"$f":"IFERROR(INDEX(Temp!C$3:C$170, SMALL(IF(ISERROR(Temp!C$3:C$170), \"\", ROW(Temp!C$3:C$170)-MIN(ROW(Temp!C$3:C$170))+1), ROW(4:4))),\"\")","v":""},{"$f":"IFERROR(INDEX(Temp!D$3:D$170, SMALL(IF(ISERROR(Temp!D$3:D$170), \"\", ROW(Temp!D$3:D$170)-MIN(ROW(Temp!D$3:D$170))+1), ROW(4:4))),\"\")","v":""}]
[{"$f":"IFERROR(INDEX(Temp!A$3:A$170, SMALL(IF(ISERROR(Temp!A$3:A$170), \"\", ROW(Temp!A$3:A$170)-MIN(ROW(Temp!A$3:A$170))+1), ROW(5:5))),\"\")","v":""},{"$f":"IFERROR(INDEX(Temp!B$3:B$170, SMALL(IF(ISERROR(Temp!B$3:B$170), \"\", ROW(Temp!B$3:B$170)-MIN(ROW(Temp!B$3:B$170))+1), ROW(5:5))),\"\")","v":""},{"$f":"IFERROR(INDEX(Temp!C$3:C$170, SMALL(IF(ISERROR(Temp!C$3:C$170), \"\", ROW(Temp!C$3:C$170)-MIN(ROW(Temp!C$3:C$170))+1), ROW(5:5))),\"\")","v":""},{"$f":"IFERROR(INDEX(Temp!D$3:D$170, SMALL(IF(ISERROR(Temp!D$3:D$170), \"\", ROW(Temp!D$3:D$170)-MIN(ROW(Temp!D$3:D$170))+1), ROW(5:5))),\"\")","v":""}]
[{"$f":"IFERROR(INDEX(Temp!A$3:A$170, SMALL(IF(ISERROR(Temp!A$3:A$170), \"\", ROW(Temp!A$3:A$170)-MIN(ROW(Temp!A$3:A$170))+1), ROW(6:6))),\"\")","v":""},{"$f":"IFERROR(INDEX(Temp!B$3:B$170, SMALL(IF(ISERROR(Temp!B$3:B$170), \"\", ROW(Temp!B$3:B$170)-MIN(ROW(Temp!B$3:B$170))+1), ROW(6:6))),\"\")","v":""},{"$f":"IFERROR(INDEX(Temp!C$3:C$170, SMALL(IF(ISERROR(Temp!C$3:C$170), \"\", ROW(Temp!C$3:C$170)-MIN(ROW(Temp!C$3:C$170))+1), ROW(6:6))),\"\")","v":""},{"$f":"IFERROR(INDEX(Temp!D$3:D$170, SMALL(IF(ISERROR(Temp!D$3:D$170), \"\", ROW(Temp!D$3:D$170)-MIN(ROW(Temp!D$3:D$170))+1), ROW(6:6))),\"\")","v":""}]
[{"$f":"IFERROR(INDEX(Temp!A$3:A$170, SMALL(IF(ISERROR(Temp!A$3:A$170), \"\", ROW(Temp!A$3:A$170)-MIN(ROW(Temp!A$3:A$170))+1), ROW(7:7))),\"\")","v":""},{"$f":"IFERROR(INDEX(Temp!B$3:B$170, SMALL(IF(ISERROR(Temp!B$3:B$170), \"\", ROW(Temp!B$3:B$170)-MIN(ROW(Temp!B$3:B$170))+1), ROW(7:7))),\"\")","v":""},{"$f":"IFERROR(INDEX(Temp!C$3:C$170, SMALL(IF(ISERROR(Temp!C$3:C$170), \"\", ROW(Temp!C$3:C$170)-MIN(ROW(Temp!C$3:C$170))+1), ROW(7:7))),\"\")","v":""},{"$f":"IFERROR(INDEX(Temp!D$3:D$170, SMALL(IF(ISERROR(Temp!D$3:D$170), \"\", ROW(Temp!D$3:D$170)-MIN(ROW(Temp!D$3:D$170))+1), ROW(7:7))),\"\")","v":""}]
[{"$f":"IFERROR(INDEX(Temp!A$3:A$170, SMALL(IF(ISERROR(Temp!A$3:A$170), \"\", ROW(Temp!A$3:A$170)-MIN(ROW(Temp!A$3:A$170))+1), ROW(8:8))),\"\")","v":""},{"$f":"IFERROR(INDEX(Temp!B$3:B$170, SMALL(IF(ISERROR(Temp!B$3:B$170), \"\", ROW(Temp!B$3:B$170)-MIN(ROW(Temp!B$3:B$170))+1), ROW(8:8))),\"\")","v":""},{"$f":"IFERROR(INDEX(Temp!C$3:C$170, SMALL(IF(ISERROR(Temp!C$3:C$170), \"\", ROW(Temp!C$3:C$170)-MIN(ROW(Temp!C$3:C$170))+1), ROW(8:8))),\"\")","v":""},{"$f":"IFERROR(INDEX(Temp!D$3:D$170, SMALL(IF(ISERROR(Temp!D$3:D$170), \"\", ROW(Temp!D$3:D$170)-MIN(ROW(Temp!D$3:D$170))+1), ROW(8:8))),\"\")","v":""}]
[{"$f":"IFERROR(INDEX(Temp!A$3:A$170, SMALL(IF(ISERROR(Temp!A$3:A$170), \"\", ROW(Temp!A$3:A$170)-MIN(ROW(Temp!A$3:A$170))+1), ROW(9:9))),\"\")","v":""},{"$f":"IFERROR(INDEX(Temp!B$3:B$170, SMALL(IF(ISERROR(Temp!B$3:B$170), \"\", ROW(Temp!B$3:B$170)-MIN(ROW(Temp!B$3:B$170))+1), ROW(9:9))),\"\")","v":""},{"$f":"IFERROR(INDEX(Temp!C$3:C$170, SMALL(IF(ISERROR(Temp!C$3:C$170), \"\", ROW(Temp!C$3:C$170)-MIN(ROW(Temp!C$3:C$170))+1), ROW(9:9))),\"\")","v":""},{"$f":"IFERROR(INDEX(Temp!D$3:D$170, SMALL(IF(ISERROR(Temp!D$3:D$170), \"\", ROW(Temp!D$3:D$170)-MIN(ROW(Temp!D$3:D$170))+1), ROW(9:9))),\"\")","v":""}]
[{"$f":"IFERROR(INDEX(Temp!A$3:A$170, SMALL(IF(ISERROR(Temp!A$3:A$170), \"\", ROW(Temp!A$3:A$170)-MIN(ROW(Temp!A$3:A$170))+1), ROW(10:10))),\"\")","v":""},{"$f":"IFERROR(INDEX(Temp!B$3:B$170, SMALL(IF(ISERROR(Temp!B$3:B$170), \"\", ROW(Temp!B$3:B$170)-MIN(ROW(Temp!B$3:B$170))+1), ROW(10:10))),\"\")","v":""},{"$f":"IFERROR(INDEX(Temp!C$3:C$170, SMALL(IF(ISERROR(Temp!C$3:C$170), \"\", ROW(Temp!C$3:C$170)-MIN(ROW(Temp!C$3:C$170))+1), ROW(10:10))),\"\")","v":""},{"$f":"IFERROR(INDEX(Temp!D$3:D$170, SMALL(IF(ISERROR(Temp!D$3:D$170), \"\", ROW(Temp!D$3:D$170)-MIN(ROW(Temp!D$3:D$170))+1), ROW(10:10))),\"\")","v":""}]
[{"$f":"IFERROR(INDEX(Temp!A$3:A$170, SMALL(IF(ISERROR(Temp!A$3:A$170), \"\", ROW(Temp!A$3:A$170)-MIN(ROW(Temp!A$3:A$170))+1), ROW(11:11))),\"\")","v":""},{"$f":"IFERROR(INDEX(Temp!B$3:B$170, SMALL(IF(ISERROR(Temp!B$3:B$170), \"\", ROW(Temp!B$3:B$170)-MIN(ROW(Temp!B$3:B$170))+1), ROW(11:11))),\"\")","v":""},{"$f":"IFERROR(INDEX(Temp!C$3:C$170, SMALL(IF(ISERROR(Temp!C$3:C$170), \"\", ROW(Temp!C$3:C$170)-MIN(ROW(Temp!C$3:C$170))+1), ROW(11:11))),\"\")","v":""},{"$f":"IFERROR(INDEX(Temp!D$3:D$170, SMALL(IF(ISERROR(Temp!D$3:D$170), \"\", ROW(Temp!D$3:D$170)-MIN(ROW(Temp!D$3:D$170))+1), ROW(11:11))),\"\")","v":""}]
[{"$f":"IFERROR(INDEX(Temp!A$3:A$170, SMALL(IF(ISERROR(Temp!A$3:A$170), \"\", ROW(Temp!A$3:A$170)-MIN(ROW(Temp!A$3:A$170))+1), ROW(12:12))),\"\")","v":""},{"$f":"IFERROR(INDEX(Temp!B$3:B$170, SMALL(IF(ISERROR(Temp!B$3:B$170), \"\", ROW(Temp!B$3:B$170)-MIN(ROW(Temp!B$3:B$170))+1), ROW(12:12))),\"\")","v":""},{"$f":"IFERROR(INDEX(Temp!C$3:C$170, SMALL(IF(ISERROR(Temp!C$3:C$170), \"\", ROW(Temp!C$3:C$170)-MIN(ROW(Temp!C$3:C$170))+1), ROW(12:12))),\"\")","v":""},{"$f":"IFERROR(INDEX(Temp!D$3:D$170, SMALL(IF(ISERROR(Temp!D$3:D$170), \"\", ROW(Temp!D$3:D$170)-MIN(ROW(Temp!D$3:D$170))+1), ROW(12:12))),\"\")","v":""}]
[{"$f":"IFERROR(INDEX(Temp!A$3:A$170, SMALL(IF(ISERROR(Temp!A$3:A$170), \"\", ROW(Temp!A$3:A$170)-MIN(ROW(Temp!A$3:A$170))+1), ROW(13:13))),\"\")","v":""},{"$f":"IFERROR(INDEX(Temp!B$3:B$170, SMALL(IF(ISERROR(Temp!B$3:B$170), \"\", ROW(Temp!B$3:B$170)-MIN(ROW(Temp!B$3:B$170))+1), ROW(13:13))),\"\")","v":""},{"$f":"IFERROR(INDEX(Temp!C$3:C$170, SMALL(IF(ISERROR(Temp!C$3:C$170), \"\", ROW(Temp!C$3:C$170)-MIN(ROW(Temp!C$3:C$170))+1), ROW(13:13))),\"\")","v":""},{"$f":"IFERROR(INDEX(Temp!D$3:D$170, SMALL(IF(ISERROR(Temp!D$3:D$170), \"\", ROW(Temp!D$3:D$170)-MIN(ROW(Temp!D$3:D$170))+1), ROW(13:13))),\"\")","v":""}]
[{"$f":"IFERROR(INDEX(Temp!A$3:A$170, SMALL(IF(ISERROR(Temp!A$3:A$170), \"\", ROW(Temp!A$3:A$170)-MIN(ROW(Temp!A$3:A$170))+1), ROW(14:14))),\"\")","v":""},{"$f":"IFERROR(INDEX(Temp!B$3:B$170, SMALL(IF(ISERROR(Temp!B$3:B$170), \"\", ROW(Temp!B$3:B$170)-MIN(ROW(Temp!B$3:B$170))+1), ROW(14:14))),\"\")","v":""},{"$f":"IFERROR(INDEX(Temp!C$3:C$170, SMALL(IF(ISERROR(Temp!C$3:C$170), \"\", ROW(Temp!C$3:C$170)-MIN(ROW(Temp!C$3:C$170))+1), ROW(14:14))),\"\")","v":""},{"$f":"IFERROR(INDEX(Temp!D$3:D$170, SMALL(IF(ISERROR(Temp!D$3:D$170), \"\", ROW(Temp!D$3:D$170)-MIN(ROW(Temp!D$3:D$170))+1), ROW(14:14))),\"\")","v":""}]
[{"$f":"IFERROR(INDEX(Temp!A$3:A$170, SMALL(IF(ISERROR(Temp!A$3:A$170), \"\", ROW(Temp!A$3:A$170)-MIN(ROW(Temp!A$3:A$170))+1), ROW(15:15))),\"\")","v":""},{"$f":"IFERROR(INDEX(Temp!B$3:B$170, SMALL(IF(ISERROR(Temp!B$3:B$170), \"\", ROW(Temp!B$3:B$170)-MIN(ROW(Temp!B$3:B$170))+1), ROW(15:15))),\"\")","v":""},{"$f":"IFERROR(INDEX(Temp!C$3:C$170, SMALL(IF(ISERROR(Temp!C$3:C$170), \"\", ROW(Temp!C$3:C$170)-MIN(ROW(Temp!C$3:C$170))+1), ROW(15:15))),\"\")","v":""},{"$f":"IFERROR(INDEX(Temp!D$3:D$170, SMALL(IF(ISERROR(Temp!D$3:D$170), \"\", ROW(Temp!D$3:D$170)-MIN(ROW(Temp!D$3:D$170))+1), ROW(15:15))),\"\")","v":""}]
[{"$f":"IFERROR(INDEX(Temp!A$3:A$170, SMALL(IF(ISERROR(Temp!A$3:A$170), \"\", ROW(Temp!A$3:A$170)-MIN(ROW(Temp!A$3:A$170))+1), ROW(16:16))),\"\")","v":""},{"$f":"IFERROR(INDEX(Temp!B$3:B$170, SMALL(IF(ISERROR(Temp!B$3:B$170), \"\", ROW(Temp!B$3:B$170)-MIN(ROW(Temp!B$3:B$170))+1), ROW(16:16))),\"\")","v":""},{"$f":"IFERROR(INDEX(Temp!C$3:C$170, SMALL(IF(ISERROR(Temp!C$3:C$170), \"\", ROW(Temp!C$3:C$170)-MIN(ROW(Temp!C$3:C$170))+1), ROW(16:16))),\"\")","v":""},{"$f":"IFERROR(INDEX(Temp!D$3:D$170, SMALL(IF(ISERROR(Temp!D$3:D$170), \"\", ROW(Temp!D$3:D$170)-MIN(ROW(Temp!D$3:D$170))+1), ROW(16:16))),\"\")","v":""}]
[{"$f":"IFERROR(INDEX(Temp!A$3:A$170, SMALL(IF(ISERROR(Temp!A$3:A$170), \"\", ROW(Temp!A$3:A$170)-MIN(ROW(Temp!A$3:A$170))+1), ROW(17:17))),\"\")","v":""},{"$f":"IFERROR(INDEX(Temp!B$3:B$170, SMALL(IF(ISERROR(Temp!B$3:B$170), \"\", ROW(Temp!B$3:B$170)-MIN(ROW(Temp!B$3:B$170))+1), ROW(17:17))),\"\")","v":""},{"$f":"IFERROR(INDEX(Temp!C$3:C$170, SMALL(IF(ISERROR(Temp!C$3:C$170), \"\", ROW(Temp!C$3:C$170)-MIN(ROW(Temp!C$3:C$170))+1), ROW(17:17))),\"\")","v":""},{"$f":"IFERROR(INDEX(Temp!D$3:D$170, SMALL(IF(ISERROR(Temp!D$3:D$170), \"\", ROW(Temp!D$3:D$170)-MIN(ROW(Temp!D$3:D$170))+1), ROW(17:17))),\"\")","v":""}]
[{"$f":"IFERROR(INDEX(Temp!A$3:A$170, SMALL(IF(ISERROR(Temp!A$3:A$170), \"\", ROW(Temp!A$3:A$170)-MIN(ROW(Temp!A$3:A$170))+1), ROW(18:18))),\"\")","v":""},{"$f":"IFERROR(INDEX(Temp!B$3:B$170, SMALL(IF(ISERROR(Temp!B$3:B$170), \"\", ROW(Temp!B$3:B$170)-MIN(ROW(Temp!B$3:B$170))+1), ROW(18:18))),\"\")","v":""},{"$f":"IFERROR(INDEX(Temp!C$3:C$170, SMALL(IF(ISERROR(Temp!C$3:C$170), \"\", ROW(Temp!C$3:C$170)-MIN(ROW(Temp!C$3:C$170))+1), ROW(18:18))),\"\")","v":""},{"$f":"IFERROR(INDEX(Temp!D$3:D$170, SMALL(IF(ISERROR(Temp!D$3:D$170), \"\", ROW(Temp!D$3:D$170)-MIN(ROW(Temp!D$3:D$170))+1), ROW(18:18))),\"\")","v":""}]
[{"$f":"IFERROR(INDEX(Temp!A$3:A$170, SMALL(IF(ISERROR(Temp!A$3:A$170), \"\", ROW(Temp!A$3:A$170)-MIN(ROW(Temp!A$3:A$170))+1), ROW(19:19))),\"\")","v":""},{"$f":"IFERROR(INDEX(Temp!B$3:B$170, SMALL(IF(ISERROR(Temp!B$3:B$170), \"\", ROW(Temp!B$3:B$170)-MIN(ROW(Temp!B$3:B$170))+1), ROW(19:19))),\"\")","v":""},{"$f":"IFERROR(INDEX(Temp!C$3:C$170, SMALL(IF(ISERROR(Temp!C$3:C$170), \"\", ROW(Temp!C$3:C$170)-MIN(ROW(Temp!C$3:C$170))+1), ROW(19:19))),\"\")","v":""},{"$f":"IFERROR(INDEX(Temp!D$3:D$170, SMALL(IF(ISERROR(Temp!D$3:D$170), \"\", ROW(Temp!D$3:D$170)-MIN(ROW(Temp!D$3:D$170))+1), ROW(19:19))),\"\")","v":""}]
[{"$f":"IFERROR(INDEX(Temp!A$3:A$170, SMALL(IF(ISERROR(Temp!A$3:A$170), \"\", ROW(Temp!A$3:A$170)-MIN(ROW(Temp!A$3:A$170))+1), ROW(20:20))),\"\")","v":""},{"$f":"IFERROR(INDEX(Temp!B$3:B$170, SMALL(IF(ISERROR(Temp!B$3:B$170), \"\", ROW(Temp!B$3:B$170)-MIN(ROW(Temp!B$3:B$170))+1), ROW(20:20))),\"\")","v":""},{"$f":"IFERROR(INDEX(Temp!C$3:C$170, SMALL(IF(ISERROR(Temp!C$3:C$170), \"\", ROW(Temp!C$3:C$170)-MIN(ROW(Temp!C$3:C$170))+1), ROW(20:20))),\"\")","v":""},{"$f":"IFERROR(INDEX(Temp!D$3:D$170, SMALL(IF(ISERROR(Temp!D$3:D$170), \"\", ROW(Temp!D$3:D$170)-MIN(ROW(Temp!D$3:D$170))+1), ROW(20:20))),\"\")","v":""}]
[{"$f":"IFERROR(INDEX(Temp!A$3:A$170, SMALL(IF(ISERROR(Temp!A$3:A$170), \"\", ROW(Temp!A$3:A$170)-MIN(ROW(Temp!A$3:A$170))+1), ROW(21:21))),\"\")","v":""},{"$f":"IFERROR(INDEX(Temp!B$3:B$170, SMALL(IF(ISERROR(Temp!B$3:B$170), \"\", ROW(Temp!B$3:B$170)-MIN(ROW(Temp!B$3:B$170))+1), ROW(21:21))),\"\")","v":""},{"$f":"IFERROR(INDEX(Temp!C$3:C$170, SMALL(IF(ISERROR(Temp!C$3:C$170), \"\", ROW(Temp!C$3:C$170)-MIN(ROW(Temp!C$3:C$170))+1), ROW(21:21))),\"\")","v":""},{"$f":"IFERROR(INDEX(Temp!D$3:D$170, SMALL(IF(ISERROR(Temp!D$3:D$170), \"\", ROW(Temp!D$3:D$170)-MIN(ROW(Temp!D$3:D$170))+1), ROW(21:21))),\"\")","v":""}]
[{"$f":"IFERROR(INDEX(Temp!A$3:A$170, SMALL(IF(ISERROR(Temp!A$3:A$170), \"\", ROW(Temp!A$3:A$170)-MIN(ROW(Temp!A$3:A$170))+1), ROW(22:22))),\"\")","v":""},{"$f":"IFERROR(INDEX(Temp!B$3:B$170, SMALL(IF(ISERROR(Temp!B$3:B$170), \"\", ROW(Temp!B$3:B$170)-MIN(ROW(Temp!B$3:B$170))+1), ROW(22:22))),\"\")","v":""},{"$f":"IFERROR(INDEX(Temp!C$3:C$170, SMALL(IF(ISERROR(Temp!C$3:C$170), \"\", ROW(Temp!C$3:C$170)-MIN(ROW(Temp!C$3:C$170))+1), ROW(22:22))),\"\")","v":""},{"$f":"IFERROR(INDEX(Temp!D$3:D$170, SMALL(IF(ISERROR(Temp!D$3:D$170), \"\", ROW(Temp!D$3:D$170)-MIN(ROW(Temp!D$3:D$170))+1), ROW(22:22))),\"\")","v":""}]
[{"$f":"IFERROR(INDEX(Temp!A$3:A$170, SMALL(IF(ISERROR(Temp!A$3:A$170), \"\", ROW(Temp!A$3:A$170)-MIN(ROW(Temp!A$3:A$170))+1), ROW(23:23))),\"\")","v":""},{"$f":"IFERROR(INDEX(Temp!B$3:B$170, SMALL(IF(ISERROR(Temp!B$3:B$170), \"\", ROW(Temp!B$3:B$170)-MIN(ROW(Temp!B$3:B$170))+1), ROW(23:23))),\"\")","v":""},{"$f":"IFERROR(INDEX(Temp!C$3:C$170, SMALL(IF(ISERROR(Temp!C$3:C$170), \"\", ROW(Temp!C$3:C$170)-MIN(ROW(Temp!C$3:C$170))+1), ROW(23:23))),\"\")","v":""},{"$f":"IFERROR(INDEX(Temp!D$3:D$170, SMALL(IF(ISERROR(Temp!D$3:D$170), \"\", ROW(Temp!D$3:D$170)-MIN(ROW(Temp!D$3:D$170))+1), ROW(23:23))),\"\")","v":""}]
[{"$f":"IFERROR(INDEX(Temp!A$3:A$170, SMALL(IF(ISERROR(Temp!A$3:A$170), \"\", ROW(Temp!A$3:A$170)-MIN(ROW(Temp!A$3:A$170))+1), ROW(24:24))),\"\")","v":""},{"$f":"IFERROR(INDEX(Temp!B$3:B$170, SMALL(IF(ISERROR(Temp!B$3:B$170), \"\", ROW(Temp!B$3:B$170)-MIN(ROW(Temp!B$3:B$170))+1), ROW(24:24))),\"\")","v":""},{"$f":"IFERROR(INDEX(Temp!C$3:C$170, SMALL(IF(ISERROR(Temp!C$3:C$170), \"\", ROW(Temp!C$3:C$170)-MIN(ROW(Temp!C$3:C$170))+1), ROW(24:24))),\"\")","v":""},{"$f":"IFERROR(INDEX(Temp!D$3:D$170, SMALL(IF(ISERROR(Temp!D$3:D$170), \"\", ROW(Temp!D$3:D$170)-MIN(ROW(Temp!D$3:D$170))+1), ROW(24:24))),\"\")","v":""}]
[{"$f":"IFERROR(INDEX(Temp!A$3:A$170, SMALL(IF(ISERROR(Temp!A$3:A$170), \"\", ROW(Temp!A$3:A$170)-MIN(ROW(Temp!A$3:A$170))+1), ROW(25:25))),\"\")","v":""},{"$f":"IFERROR(INDEX(Temp!B$3:B$170, SMALL(IF(ISERROR(Temp!B$3:B$170), \"\", ROW(Temp!B$3:B$170)-MIN(ROW(Temp!B$3:B$170))+1), ROW(25:25))),\"\")","v":""},{"$f":"IFERROR(INDEX(Temp!C$3:C$170, SMALL(IF(ISERROR(Temp!C$3:C$170), \"\", ROW(Temp!C$3:C$170)-MIN(ROW(Temp!C$3:C$170))+1), ROW(25:25))),\"\")","v":""},{"$f":"IFERROR(INDEX(Temp!D$3:D$170, SMALL(IF(ISERROR(Temp!D$3:D$170), \"\", ROW(Temp!D$3:D$170)-MIN(ROW(Temp!D$3:D$170))+1), ROW(25:25))),\"\")","v":""}]
[{"$f":"IFERROR(INDEX(Temp!A$3:A$170, SMALL(IF(ISERROR(Temp!A$3:A$170), \"\", ROW(Temp!A$3:A$170)-MIN(ROW(Temp!A$3:A$170))+1), ROW(26:26))),\"\")","v":""},{"$f":"IFERROR(INDEX(Temp!B$3:B$170, SMALL(IF(ISERROR(Temp!B$3:B$170), \"\", ROW(Temp!B$3:B$170)-MIN(ROW(Temp!B$3:B$170))+1), ROW(26:26))),\"\")","v":""},{"$f":"IFERROR(INDEX(Temp!C$3:C$170, SMALL(IF(ISERROR(Temp!C$3:C$170), \"\", ROW(Temp!C$3:C$170)-MIN(ROW(Temp!C$3:C$170))+1), ROW(26:26))),\"\")","v":""},{"$f":"IFERROR(INDEX(Temp!D$3:D$170, SMALL(IF(ISERROR(Temp!D$3:D$170), \"\", ROW(Temp!D$3:D$170)-MIN(ROW(Temp!D$3:D$170))+1), ROW(26:26))),\"\")","v":""}]
[{"$f":"IFERROR(INDEX(Temp!A$3:A$170, SMALL(IF(ISERROR(Temp!A$3:A$170), \"\", ROW(Temp!A$3:A$170)-MIN(ROW(Temp!A$3:A$170))+1), ROW(27:27))),\"\")","v":""},{"$f":"IFERROR(INDEX(Temp!B$3:B$170, SMALL(IF(ISERROR(Temp!B$3:B$170), \"\", ROW(Temp!B$3:B$170)-MIN(ROW(Temp!B$3:B$170))+1), ROW(27:27))),\"\")","v":""},{"$f":"IFERROR(INDEX(Temp!C$3:C$170, SMALL(IF(ISERROR(Temp!C$3:C$170), \"\", ROW(Temp!C$3:C$170)-MIN(ROW(Temp!C$3:C$170))+1), ROW(27:27))),\"\")","v":""},{"$f":"IFERROR(INDEX(Temp!D$3:D$170, SMALL(IF(ISERROR(Temp!D$3:D$170), \"\", ROW(Temp!D$3:D$170)-MIN(ROW(Temp!D$3:D$170))+1), ROW(27:27))),\"\")","v":""}]
[{"$f":"IFERROR(INDEX(Temp!A$3:A$170, SMALL(IF(ISERROR(Temp!A$3:A$170), \"\", ROW(Temp!A$3:A$170)-MIN(ROW(Temp!A$3:A$170))+1), ROW(28:28))),\"\")","v":""},{"$f":"IFERROR(INDEX(Temp!B$3:B$170, SMALL(IF(ISERROR(Temp!B$3:B$170), \"\", ROW(Temp!B$3:B$170)-MIN(ROW(Temp!B$3:B$170))+1), ROW(28:28))),\"\")","v":""},{"$f":"IFERROR(INDEX(Temp!C$3:C$170, SMALL(IF(ISERROR(Temp!C$3:C$170), \"\", ROW(Temp!C$3:C$170)-MIN(ROW(Temp!C$3:C$170))+1), ROW(28:28))),\"\")","v":""},{"$f":"IFERROR(INDEX(Temp!D$3:D$170, SMALL(IF(ISERROR(Temp!D$3:D$170), \"\", ROW(Temp!D$3:D$170)-MIN(ROW(Temp!D$3:D$170))+1), ROW(28:28))),\"\")","v":""}]
[{"$f":"IFERROR(INDEX(Temp!A$3:A$170, SMALL(IF(ISERROR(Temp!A$3:A$170), \"\", ROW(Temp!A$3:A$170)-MIN(ROW(Temp!A$3:A$170))+1), ROW(29:29))),\"\")","v":""},{"$f":"IFERROR(INDEX(Temp!B$3:B$170, SMALL(IF(ISERROR(Temp!B$3:B$170), \"\", ROW(Temp!B$3:B$170)-MIN(ROW(Temp!B$3:B$170))+1), ROW(29:29))),\"\")","v":""},{"$f":"IFERROR(INDEX(Temp!C$3:C$170, SMALL(IF(ISERROR(Temp!C$3:C$170), \"\", ROW(Temp!C$3:C$170)-MIN(ROW(Temp!C$3:C$170))+1), ROW(29:29))),\"\")","v":""},{"$f":"IFERROR(INDEX(Temp!D$3:D$170, SMALL(IF(ISERROR(Temp!D$3:D$170), \"\", ROW(Temp!D$3:D$170)-MIN(ROW(Temp!D$3:D$170))+1), ROW(29:29))),\"\")","v":""}]
[{"$f":"IFERROR(INDEX(Temp!A$3:A$170, SMALL(IF(ISERROR(Temp!A$3:A$170), \"\", ROW(Temp!A$3:A$170)-MIN(ROW(Temp!A$3:A$170))+1), ROW(30:30))),\"\")","v":""},{"$f":"IFERROR(INDEX(Temp!B$3:B$170, SMALL(IF(ISERROR(Temp!B$3:B$170), \"\", ROW(Temp!B$3:B$170)-MIN(ROW(Temp!B$3:B$170))+1), ROW(30:30))),\"\")","v":""},{"$f":"IFERROR(INDEX(Temp!C$3:C$170, SMALL(IF(ISERROR(Temp!C$3:C$170), \"\", ROW(Temp!C$3:C$170)-MIN(ROW(Temp!C$3:C$170))+1), ROW(30:30))),\"\")","v":""},{"$f":"IFERROR(INDEX(Temp!D$3:D$170, SMALL(IF(ISERROR(Temp!D$3:D$170), \"\", ROW(Temp!D$3:D$170)-MIN(ROW(Temp!D$3:D$170))+1), ROW(30:30))),\"\")","v":""}]
[{"$f":"IFERROR(INDEX(Temp!A$3:A$170, SMALL(IF(ISERROR(Temp!A$3:A$170), \"\", ROW(Temp!A$3:A$170)-MIN(ROW(Temp!A$3:A$170))+1), ROW(31:31))),\"\")","v":""},{"$f":"IFERROR(INDEX(Temp!B$3:B$170, SMALL(IF(ISERROR(Temp!B$3:B$170), \"\", ROW(Temp!B$3:B$170)-MIN(ROW(Temp!B$3:B$170))+1), ROW(31:31))),\"\")","v":""},{"$f":"IFERROR(INDEX(Temp!C$3:C$170, SMALL(IF(ISERROR(Temp!C$3:C$170), \"\", ROW(Temp!C$3:C$170)-MIN(ROW(Temp!C$3:C$170))+1), ROW(31:31))),\"\")","v":""},{"$f":"IFERROR(INDEX(Temp!D$3:D$170, SMALL(IF(ISERROR(Temp!D$3:D$170), \"\", ROW(Temp!D$3:D$170)-MIN(ROW(Temp!D$3:D$170))+1), ROW(31:31))),\"\")","v":""}]
[{"$f":"IFERROR(INDEX(Temp!A$3:A$170, SMALL(IF(ISERROR(Temp!A$3:A$170), \"\", ROW(Temp!A$3:A$170)-MIN(ROW(Temp!A$3:A$170))+1), ROW(32:32))),\"\")","v":""},{"$f":"IFERROR(INDEX(Temp!B$3:B$170, SMALL(IF(ISERROR(Temp!B$3:B$170), \"\", ROW(Temp!B$3:B$170)-MIN(ROW(Temp!B$3:B$170))+1), ROW(32:32))),\"\")","v":""},{"$f":"IFERROR(INDEX(Temp!C$3:C$170, SMALL(IF(ISERROR(Temp!C$3:C$170), \"\", ROW(Temp!C$3:C$170)-MIN(ROW(Temp!C$3:C$170))+1), ROW(32:32))),\"\")","v":""},{"$f":"IFERROR(INDEX(Temp!D$3:D$170, SMALL(IF(ISERROR(Temp!D$3:D$170), \"\", ROW(Temp!D$3:D$170)-MIN(ROW(Temp!D$3:D$170))+1), ROW(32:32))),\"\")","v":""}]
[{"$f":"IFERROR(INDEX(Temp!A$3:A$170, SMALL(IF(ISERROR(Temp!A$3:A$170), \"\", ROW(Temp!A$3:A$170)-MIN(ROW(Temp!A$3:A$170))+1), ROW(33:33))),\"\")","v":""},{"$f":"IFERROR(INDEX(Temp!B$3:B$170, SMALL(IF(ISERROR(Temp!B$3:B$170), \"\", ROW(Temp!B$3:B$170)-MIN(ROW(Temp!B$3:B$170))+1), ROW(33:33))),\"\")","v":""},{"$f":"IFERROR(INDEX(Temp!C$3:C$170, SMALL(IF(ISERROR(Temp!C$3:C$170), \"\", ROW(Temp!C$3:C$170)-MIN(ROW(Temp!C$3:C$170))+1), ROW(33:33))),\"\")","v":""},{"$f":"IFERROR(INDEX(Temp!D$3:D$170, SMALL(IF(ISERROR(Temp!D$3:D$170), \"\", ROW(Temp!D$3:D$170)-MIN(ROW(Temp!D$3:D$170))+1), ROW(33:33))),\"\")","v":""}]
[{"$f":"IFERROR(INDEX(Temp!A$3:A$170, SMALL(IF(ISERROR(Temp!A$3:A$170), \"\", ROW(Temp!A$3:A$170)-MIN(ROW(Temp!A$3:A$170))+1), ROW(34:34))),\"\")","v":""},{"$f":"IFERROR(INDEX(Temp!B$3:B$170, SMALL(IF(ISERROR(Temp!B$3:B$170), \"\", ROW(Temp!B$3:B$170)-MIN(ROW(Temp!B$3:B$170))+1), ROW(34:34))),\"\")","v":""},{"$f":"IFERROR(INDEX(Temp!C$3:C$170, SMALL(IF(ISERROR(Temp!C$3:C$170), \"\", ROW(Temp!C$3:C$170)-MIN(ROW(Temp!C$3:C$170))+1), ROW(34:34))),\"\")","v":""},{"$f":"IFERROR(INDEX(Temp!D$3:D$170, SMALL(IF(ISERROR(Temp!D$3:D$170), \"\", ROW(Temp!D$3:D$170)-MIN(ROW(Temp!D$3:D$170))+1), ROW(34:34))),\"\")","v":""}]
[{"$f":"IFERROR(INDEX(Temp!A$3:A$170, SMALL(IF(ISERROR(Temp!A$3:A$170), \"\", ROW(Temp!A$3:A$170)-MIN(ROW(Temp!A$3:A$170))+1), ROW(35:35))),\"\")","v":""},{"$f":"IFERROR(INDEX(Temp!B$3:B$170, SMALL(IF(ISERROR(Temp!B$3:B$170), \"\", ROW(Temp!B$3:B$170)-MIN(ROW(Temp!B$3:B$170))+1), ROW(35:35))),\"\")","v":""},{"$f":"IFERROR(INDEX(Temp!C$3:C$170, SMALL(IF(ISERROR(Temp!C$3:C$170), \"\", ROW(Temp!C$3:C$170)-MIN(ROW(Temp!C$3:C$170))+1), ROW(35:35))),\"\")","v":""},{"$f":"IFERROR(INDEX(Temp!D$3:D$170, SMALL(IF(ISERROR(Temp!D$3:D$170), \"\", ROW(Temp!D$3:D$170)-MIN(ROW(Temp!D$3:D$170))+1), ROW(35:35))),\"\")","v":""}]
[{"$f":"IFERROR(INDEX(Temp!A$3:A$170, SMALL(IF(ISERROR(Temp!A$3:A$170), \"\", ROW(Temp!A$3:A$170)-MIN(ROW(Temp!A$3:A$170))+1), ROW(36:36))),\"\")","v":""},{"$f":"IFERROR(INDEX(Temp!B$3:B$170, SMALL(IF(ISERROR(Temp!B$3:B$170), \"\", ROW(Temp!B$3:B$170)-MIN(ROW(Temp!B$3:B$170))+1), ROW(36:36))),\"\")","v":""},{"$f":"IFERROR(INDEX(Temp!C$3:C$170, SMALL(IF(ISERROR(Temp!C$3:C$170), \"\", ROW(Temp!C$3:C$170)-MIN(ROW(Temp!C$3:C$170))+1), ROW(36:36))),\"\")","v":""},{"$f":"IFERROR(INDEX(Temp!D$3:D$170, SMALL(IF(ISERROR(Temp!D$3:D$170), \"\", ROW(Temp!D$3:D$170)-MIN(ROW(Temp!D$3:D$170))+1), ROW(36:36))),\"\")","v":""}]
[{"$f":"IFERROR(INDEX(Temp!A$3:A$170, SMALL(IF(ISERROR(Temp!A$3:A$170), \"\", ROW(Temp!A$3:A$170)-MIN(ROW(Temp!A$3:A$170))+1), ROW(37:37))),\"\")","v":""},{"$f":"IFERROR(INDEX(Temp!B$3:B$170, SMALL(IF(ISERROR(Temp!B$3:B$170), \"\", ROW(Temp!B$3:B$170)-MIN(ROW(Temp!B$3:B$170))+1), ROW(37:37))),\"\")","v":""},{"$f":"IFERROR(INDEX(Temp!C$3:C$170, SMALL(IF(ISERROR(Temp!C$3:C$170), \"\", ROW(Temp!C$3:C$170)-MIN(ROW(Temp!C$3:C$170))+1), ROW(37:37))),\"\")","v":""},{"$f":"IFERROR(INDEX(Temp!D$3:D$170, SMALL(IF(ISERROR(Temp!D$3:D$170), \"\", ROW(Temp!D$3:D$170)-MIN(ROW(Temp!D$3:D$170))+1), ROW(37:37))),\"\")","v":""}]
[{"$f":"IFERROR(INDEX(Temp!A$3:A$170, SMALL(IF(ISERROR(Temp!A$3:A$170), \"\", ROW(Temp!A$3:A$170)-MIN(ROW(Temp!A$3:A$170))+1), ROW(38:38))),\"\")","v":""},{"$f":"IFERROR(INDEX(Temp!B$3:B$170, SMALL(IF(ISERROR(Temp!B$3:B$170), \"\", ROW(Temp!B$3:B$170)-MIN(ROW(Temp!B$3:B$170))+1), ROW(38:38))),\"\")","v":""},{"$f":"IFERROR(INDEX(Temp!C$3:C$170, SMALL(IF(ISERROR(Temp!C$3:C$170), \"\", ROW(Temp!C$3:C$170)-MIN(ROW(Temp!C$3:C$170))+1), ROW(38:38))),\"\")","v":""},{"$f":"IFERROR(INDEX(Temp!D$3:D$170, SMALL(IF(ISERROR(Temp!D$3:D$170), \"\", ROW(Temp!D$3:D$170)-MIN(ROW(Temp!D$3:D$170))+1), ROW(38:38))),\"\")","v":""}]
[{"$f":"IFERROR(INDEX(Temp!A$3:A$170, SMALL(IF(ISERROR(Temp!A$3:A$170), \"\", ROW(Temp!A$3:A$170)-MIN(ROW(Temp!A$3:A$170))+1), ROW(39:39))),\"\")","v":""},{"$f":"IFERROR(INDEX(Temp!B$3:B$170, SMALL(IF(ISERROR(Temp!B$3:B$170), \"\", ROW(Temp!B$3:B$170)-MIN(ROW(Temp!B$3:B$170))+1), ROW(39:39))),\"\")","v":""},{"$f":"IFERROR(INDEX(Temp!C$3:C$170, SMALL(IF(ISERROR(Temp!C$3:C$170), \"\", ROW(Temp!C$3:C$170)-MIN(ROW(Temp!C$3:C$170))+1), ROW(39:39))),\"\")","v":""},{"$f":"IFERROR(INDEX(Temp!D$3:D$170, SMALL(IF(ISERROR(Temp!D$3:D$170), \"\", ROW(Temp!D$3:D$170)-MIN(ROW(Temp!D$3:D$170))+1), ROW(39:39))),\"\")","v":""}]
[{"$f":"IFERROR(INDEX(Temp!A$3:A$170, SMALL(IF(ISERROR(Temp!A$3:A$170), \"\", ROW(Temp!A$3:A$170)-MIN(ROW(Temp!A$3:A$170))+1), ROW(40:40))),\"\")","v":""},{"$f":"IFERROR(INDEX(Temp!B$3:B$170, SMALL(IF(ISERROR(Temp!B$3:B$170), \"\", ROW(Temp!B$3:B$170)-MIN(ROW(Temp!B$3:B$170))+1), ROW(40:40))),\"\")","v":""},{"$f":"IFERROR(INDEX(Temp!C$3:C$170, SMALL(IF(ISERROR(Temp!C$3:C$170), \"\", ROW(Temp!C$3:C$170)-MIN(ROW(Temp!C$3:C$170))+1), ROW(40:40))),\"\")","v":""},{"$f":"IFERROR(INDEX(Temp!D$3:D$170, SMALL(IF(ISERROR(Temp!D$3:D$170), \"\", ROW(Temp!D$3:D$170)-MIN(ROW(Temp!D$3:D$170))+1), ROW(40:40))),\"\")","v":""}]
[{"$f":"IFERROR(INDEX(Temp!A$3:A$170, SMALL(IF(ISERROR(Temp!A$3:A$170), \"\", ROW(Temp!A$3:A$170)-MIN(ROW(Temp!A$3:A$170))+1), ROW(41:41))),\"\")","v":""},{"$f":"IFERROR(INDEX(Temp!B$3:B$170, SMALL(IF(ISERROR(Temp!B$3:B$170), \"\", ROW(Temp!B$3:B$170)-MIN(ROW(Temp!B$3:B$170))+1), ROW(41:41))),\"\")","v":""},{"$f":"IFERROR(INDEX(Temp!C$3:C$170, SMALL(IF(ISERROR(Temp!C$3:C$170), \"\", ROW(Temp!C$3:C$170)-MIN(ROW(Temp!C$3:C$170))+1), ROW(41:41))),\"\")","v":""},{"$f":"IFERROR(INDEX(Temp!D$3:D$170, SMALL(IF(ISERROR(Temp!D$3:D$170), \"\", ROW(Temp!D$3:D$170)-MIN(ROW(Temp!D$3:D$170))+1), ROW(41:41))),\"\")","v":""}]
[{"$f":"IFERROR(INDEX(Temp!A$3:A$170, SMALL(IF(ISERROR(Temp!A$3:A$170), \"\", ROW(Temp!A$3:A$170)-MIN(ROW(Temp!A$3:A$170))+1), ROW(42:42))),\"\")","v":""},{"$f":"IFERROR(INDEX(Temp!B$3:B$170, SMALL(IF(ISERROR(Temp!B$3:B$170), \"\", ROW(Temp!B$3:B$170)-MIN(ROW(Temp!B$3:B$170))+1), ROW(42:42))),\"\")","v":""},{"$f":"IFERROR(INDEX(Temp!C$3:C$170, SMALL(IF(ISERROR(Temp!C$3:C$170), \"\", ROW(Temp!C$3:C$170)-MIN(ROW(Temp!C$3:C$170))+1), ROW(42:42))),\"\")","v":""},{"$f":"IFERROR(INDEX(Temp!D$3:D$170, SMALL(IF(ISERROR(Temp!D$3:D$170), \"\", ROW(Temp!D$3:D$170)-MIN(ROW(Temp!D$3:D$170))+1), ROW(42:42))),\"\")","v":""}]
[{"$f":"IFERROR(INDEX(Temp!A$3:A$170, SMALL(IF(ISERROR(Temp!A$3:A$170), \"\", ROW(Temp!A$3:A$170)-MIN(ROW(Temp!A$3:A$170))+1), ROW(43:43))),\"\")","v":""},{"$f":"IFERROR(INDEX(Temp!B$3:B$170, SMALL(IF(ISERROR(Temp!B$3:B$170), \"\", ROW(Temp!B$3:B$170)-MIN(ROW(Temp!B$3:B$170))+1), ROW(43:43))),\"\")","v":""},{"$f":"IFERROR(INDEX(Temp!C$3:C$170, SMALL(IF(ISERROR(Temp!C$3:C$170), \"\", ROW(Temp!C$3:C$170)-MIN(ROW(Temp!C$3:C$170))+1), ROW(43:43))),\"\")","v":""},{"$f":"IFERROR(INDEX(Temp!D$3:D$170, SMALL(IF(ISERROR(Temp!D$3:D$170), \"\", ROW(Temp!D$3:D$170)-MIN(ROW(Temp!D$3:D$170))+1), ROW(43:43))),\"\")","v":""}]
[{"$f":"IFERROR(INDEX(Temp!A$3:A$170, SMALL(IF(ISERROR(Temp!A$3:A$170), \"\", ROW(Temp!A$3:A$170)-MIN(ROW(Temp!A$3:A$170))+1), ROW(44:44))),\"\")","v":""},{"$f":"IFERROR(INDEX(Temp!B$3:B$170, SMALL(IF(ISERROR(Temp!B$3:B$170), \"\", ROW(Temp!B$3:B$170)-MIN(ROW(Temp!B$3:B$170))+1), ROW(44:44))),\"\")","v":""},{"$f":"IFERROR(INDEX(Temp!C$3:C$170, SMALL(IF(ISERROR(Temp!C$3:C$170), \"\", ROW(Temp!C$3:C$170)-MIN(ROW(Temp!C$3:C$170))+1), ROW(44:44))),\"\")","v":""},{"$f":"IFERROR(INDEX(Temp!D$3:D$170, SMALL(IF(ISERROR(Temp!D$3:D$170), \"\", ROW(Temp!D$3:D$170)-MIN(ROW(Temp!D$3:D$170))+1), ROW(44:44))),\"\")","v":""}]
[{"$f":"IFERROR(INDEX(Temp!A$3:A$170, SMALL(IF(ISERROR(Temp!A$3:A$170), \"\", ROW(Temp!A$3:A$170)-MIN(ROW(Temp!A$3:A$170))+1), ROW(45:45))),\"\")","v":""},{"$f":"IFERROR(INDEX(Temp!B$3:B$170, SMALL(IF(ISERROR(Temp!B$3:B$170), \"\", ROW(Temp!B$3:B$170)-MIN(ROW(Temp!B$3:B$170))+1), ROW(45:45))),\"\")","v":""},{"$f":"IFERROR(INDEX(Temp!C$3:C$170, SMALL(IF(ISERROR(Temp!C$3:C$170), \"\", ROW(Temp!C$3:C$170)-MIN(ROW(Temp!C$3:C$170))+1), ROW(45:45))),\"\")","v":""},{"$f":"IFERROR(INDEX(Temp!D$3:D$170, SMALL(IF(ISERROR(Temp!D$3:D$170), \"\", ROW(Temp!D$3:D$170)-MIN(ROW(Temp!D$3:D$170))+1), ROW(45:45))),\"\")","v":""}]
[{"$f":"IFERROR(INDEX(Temp!A$3:A$170, SMALL(IF(ISERROR(Temp!A$3:A$170), \"\", ROW(Temp!A$3:A$170)-MIN(ROW(Temp!A$3:A$170))+1), ROW(46:46))),\"\")","v":""},{"$f":"IFERROR(INDEX(Temp!B$3:B$170, SMALL(IF(ISERROR(Temp!B$3:B$170), \"\", ROW(Temp!B$3:B$170)-MIN(ROW(Temp!B$3:B$170))+1), ROW(46:46))),\"\")","v":""},{"$f":"IFERROR(INDEX(Temp!C$3:C$170, SMALL(IF(ISERROR(Temp!C$3:C$170), \"\", ROW(Temp!C$3:C$170)-MIN(ROW(Temp!C$3:C$170))+1), ROW(46:46))),\"\")","v":""},{"$f":"IFERROR(INDEX(Temp!D$3:D$170, SMALL(IF(ISERROR(Temp!D$3:D$170), \"\", ROW(Temp!D$3:D$170)-MIN(ROW(Temp!D$3:D$170))+1), ROW(46:46))),\"\")","v":""}]
[{"$f":"IFERROR(INDEX(Temp!A$3:A$170, SMALL(IF(ISERROR(Temp!A$3:A$170), \"\", ROW(Temp!A$3:A$170)-MIN(ROW(Temp!A$3:A$170))+1), ROW(47:47))),\"\")","v":""},{"$f":"IFERROR(INDEX(Temp!B$3:B$170, SMALL(IF(ISERROR(Temp!B$3:B$170), \"\", ROW(Temp!B$3:B$170)-MIN(ROW(Temp!B$3:B$170))+1), ROW(47:47))),\"\")","v":""},{"$f":"IFERROR(INDEX(Temp!C$3:C$170, SMALL(IF(ISERROR(Temp!C$3:C$170), \"\", ROW(Temp!C$3:C$170)-MIN(ROW(Temp!C$3:C$170))+1), ROW(47:47))),\"\")","v":""},{"$f":"IFERROR(INDEX(Temp!D$3:D$170, SMALL(IF(ISERROR(Temp!D$3:D$170), \"\", ROW(Temp!D$3:D$170)-MIN(ROW(Temp!D$3:D$170))+1), ROW(47:47))),\"\")","v":""}]
[{"$f":"IFERROR(INDEX(Temp!A$3:A$170, SMALL(IF(ISERROR(Temp!A$3:A$170), \"\", ROW(Temp!A$3:A$170)-MIN(ROW(Temp!A$3:A$170))+1), ROW(48:48))),\"\")","v":""},{"$f":"IFERROR(INDEX(Temp!B$3:B$170, SMALL(IF(ISERROR(Temp!B$3:B$170), \"\", ROW(Temp!B$3:B$170)-MIN(ROW(Temp!B$3:B$170))+1), ROW(48:48))),\"\")","v":""},{"$f":"IFERROR(INDEX(Temp!C$3:C$170, SMALL(IF(ISERROR(Temp!C$3:C$170), \"\", ROW(Temp!C$3:C$170)-MIN(ROW(Temp!C$3:C$170))+1), ROW(48:48))),\"\")","v":""},{"$f":"IFERROR(INDEX(Temp!D$3:D$170, SMALL(IF(ISERROR(Temp!D$3:D$170), \"\", ROW(Temp!D$3:D$170)-MIN(ROW(Temp!D$3:D$170))+1), ROW(48:48))),\"\")","v":""}]
[{"$f":"IFERROR(INDEX(Temp!A$3:A$170, SMALL(IF(ISERROR(Temp!A$3:A$170), \"\", ROW(Temp!A$3:A$170)-MIN(ROW(Temp!A$3:A$170))+1), ROW(49:49))),\"\")","v":""},{"$f":"IFERROR(INDEX(Temp!B$3:B$170, SMALL(IF(ISERROR(Temp!B$3:B$170), \"\", ROW(Temp!B$3:B$170)-MIN(ROW(Temp!B$3:B$170))+1), ROW(49:49))),\"\")","v":""},{"$f":"IFERROR(INDEX(Temp!C$3:C$170, SMALL(IF(ISERROR(Temp!C$3:C$170), \"\", ROW(Temp!C$3:C$170)-MIN(ROW(Temp!C$3:C$170))+1), ROW(49:49))),\"\")","v":""},{"$f":"IFERROR(INDEX(Temp!D$3:D$170, SMALL(IF(ISERROR(Temp!D$3:D$170), \"\", ROW(Temp!D$3:D$170)-MIN(ROW(Temp!D$3:D$170))+1), ROW(49:49))),\"\")","v":""}]
[{"$f":"IFERROR(INDEX(Temp!A$3:A$170, SMALL(IF(ISERROR(Temp!A$3:A$170), \"\", ROW(Temp!A$3:A$170)-MIN(ROW(Temp!A$3:A$170))+1), ROW(50:50))),\"\")","v":""},{"$f":"IFERROR(INDEX(Temp!B$3:B$170, SMALL(IF(ISERROR(Temp!B$3:B$170), \"\", ROW(Temp!B$3:B$170)-MIN(ROW(Temp!B$3:B$170))+1), ROW(50:50))),\"\")","v":""},{"$f":"IFERROR(INDEX(Temp!C$3:C$170, SMALL(IF(ISERROR(Temp!C$3:C$170), \"\", ROW(Temp!C$3:C$170)-MIN(ROW(Temp!C$3:C$170))+1), ROW(50:50))),\"\")","v":""},{"$f":"IFERROR(INDEX(Temp!D$3:D$170, SMALL(IF(ISERROR(Temp!D$3:D$170), \"\", ROW(Temp!D$3:D$170)-MIN(ROW(Temp!D$3:D$170))+1), ROW(50:50))),\"\")","v":""}]
[{"$f":"IFERROR(INDEX(Temp!A$3:A$170, SMALL(IF(ISERROR(Temp!A$3:A$170), \"\", ROW(Temp!A$3:A$170)-MIN(ROW(Temp!A$3:A$170))+1), ROW(51:51))),\"\")","v":""},{"$f":"IFERROR(INDEX(Temp!B$3:B$170, SMALL(IF(ISERROR(Temp!B$3:B$170), \"\", ROW(Temp!B$3:B$170)-MIN(ROW(Temp!B$3:B$170))+1), ROW(51:51))),\"\")","v":""},{"$f":"IFERROR(INDEX(Temp!C$3:C$170, SMALL(IF(ISERROR(Temp!C$3:C$170), \"\", ROW(Temp!C$3:C$170)-MIN(ROW(Temp!C$3:C$170))+1), ROW(51:51))),\"\")","v":""},{"$f":"IFERROR(INDEX(Temp!D$3:D$170, SMALL(IF(ISERROR(Temp!D$3:D$170), \"\", ROW(Temp!D$3:D$170)-MIN(ROW(Temp!D$3:D$170))+1), ROW(51:51))),\"\")","v":""}]
[{"$f":"IFERROR(INDEX(Temp!A$3:A$170, SMALL(IF(ISERROR(Temp!A$3:A$170), \"\", ROW(Temp!A$3:A$170)-MIN(ROW(Temp!A$3:A$170))+1), ROW(52:52))),\"\")","v":""},{"$f":"IFERROR(INDEX(Temp!B$3:B$170, SMALL(IF(ISERROR(Temp!B$3:B$170), \"\", ROW(Temp!B$3:B$170)-MIN(ROW(Temp!B$3:B$170))+1), ROW(52:52))),\"\")","v":""},{"$f":"IFERROR(INDEX(Temp!C$3:C$170, SMALL(IF(ISERROR(Temp!C$3:C$170), \"\", ROW(Temp!C$3:C$170)-MIN(ROW(Temp!C$3:C$170))+1), ROW(52:52))),\"\")","v":""},{"$f":"IFERROR(INDEX(Temp!D$3:D$170, SMALL(IF(ISERROR(Temp!D$3:D$170), \"\", ROW(Temp!D$3:D$170)-MIN(ROW(Temp!D$3:D$170))+1), ROW(52:52))),\"\")","v":""}]
[{"$f":"IFERROR(INDEX(Temp!A$3:A$170, SMALL(IF(ISERROR(Temp!A$3:A$170), \"\", ROW(Temp!A$3:A$170)-MIN(ROW(Temp!A$3:A$170))+1), ROW(53:53))),\"\")","v":""},{"$f":"IFERROR(INDEX(Temp!B$3:B$170, SMALL(IF(ISERROR(Temp!B$3:B$170), \"\", ROW(Temp!B$3:B$170)-MIN(ROW(Temp!B$3:B$170))+1), ROW(53:53))),\"\")","v":""},{"$f":"IFERROR(INDEX(Temp!C$3:C$170, SMALL(IF(ISERROR(Temp!C$3:C$170), \"\", ROW(Temp!C$3:C$170)-MIN(ROW(Temp!C$3:C$170))+1), ROW(53:53))),\"\")","v":""},{"$f":"IFERROR(INDEX(Temp!D$3:D$170, SMALL(IF(ISERROR(Temp!D$3:D$170), \"\", ROW(Temp!D$3:D$170)-MIN(ROW(Temp!D$3:D$170))+1), ROW(53:53))),\"\")","v":""}]
[{"$f":"IFERROR(INDEX(Temp!A$3:A$170, SMALL(IF(ISERROR(Temp!A$3:A$170), \"\", ROW(Temp!A$3:A$170)-MIN(ROW(Temp!A$3:A$170))+1), ROW(54:54))),\"\")","v":""},{"$f":"IFERROR(INDEX(Temp!B$3:B$170, SMALL(IF(ISERROR(Temp!B$3:B$170), \"\", ROW(Temp!B$3:B$170)-MIN(ROW(Temp!B$3:B$170))+1), ROW(54:54))),\"\")","v":""},{"$f":"IFERROR(INDEX(Temp!C$3:C$170, SMALL(IF(ISERROR(Temp!C$3:C$170), \"\", ROW(Temp!C$3:C$170)-MIN(ROW(Temp!C$3:C$170))+1), ROW(54:54))),\"\")","v":""},{"$f":"IFERROR(INDEX(Temp!D$3:D$170, SMALL(IF(ISERROR(Temp!D$3:D$170), \"\", ROW(Temp!D$3:D$170)-MIN(ROW(Temp!D$3:D$170))+1), ROW(54:54))),\"\")","v":""}]
[{"$f":"IFERROR(INDEX(Temp!A$3:A$170, SMALL(IF(ISERROR(Temp!A$3:A$170), \"\", ROW(Temp!A$3:A$170)-MIN(ROW(Temp!A$3:A$170))+1), ROW(55:55))),\"\")","v":""},{"$f":"IFERROR(INDEX(Temp!B$3:B$170, SMALL(IF(ISERROR(Temp!B$3:B$170), \"\", ROW(Temp!B$3:B$170)-MIN(ROW(Temp!B$3:B$170))+1), ROW(55:55))),\"\")","v":""},{"$f":"IFERROR(INDEX(Temp!C$3:C$170, SMALL(IF(ISERROR(Temp!C$3:C$170), \"\", ROW(Temp!C$3:C$170)-MIN(ROW(Temp!C$3:C$170))+1), ROW(55:55))),\"\")","v":""},{"$f":"IFERROR(INDEX(Temp!D$3:D$170, SMALL(IF(ISERROR(Temp!D$3:D$170), \"\", ROW(Temp!D$3:D$170)-MIN(ROW(Temp!D$3:D$170))+1), ROW(55:55))),\"\")","v":""}]
[{"$f":"IFERROR(INDEX(Temp!A$3:A$170, SMALL(IF(ISERROR(Temp!A$3:A$170), \"\", ROW(Temp!A$3:A$170)-MIN(ROW(Temp!A$3:A$170))+1), ROW(56:56))),\"\")","v":""},{"$f":"IFERROR(INDEX(Temp!B$3:B$170, SMALL(IF(ISERROR(Temp!B$3:B$170), \"\", ROW(Temp!B$3:B$170)-MIN(ROW(Temp!B$3:B$170))+1), ROW(56:56))),\"\")","v":""},{"$f":"IFERROR(INDEX(Temp!C$3:C$170, SMALL(IF(ISERROR(Temp!C$3:C$170), \"\", ROW(Temp!C$3:C$170)-MIN(ROW(Temp!C$3:C$170))+1), ROW(56:56))),\"\")","v":""},{"$f":"IFERROR(INDEX(Temp!D$3:D$170, SMALL(IF(ISERROR(Temp!D$3:D$170), \"\", ROW(Temp!D$3:D$170)-MIN(ROW(Temp!D$3:D$170))+1), ROW(56:56))),\"\")","v":""}]
[{"$f":"IFERROR(INDEX(Temp!A$3:A$170, SMALL(IF(ISERROR(Temp!A$3:A$170), \"\", ROW(Temp!A$3:A$170)-MIN(ROW(Temp!A$3:A$170))+1), ROW(57:57))),\"\")","v":""},{"$f":"IFERROR(INDEX(Temp!B$3:B$170, SMALL(IF(ISERROR(Temp!B$3:B$170), \"\", ROW(Temp!B$3:B$170)-MIN(ROW(Temp!B$3:B$170))+1), ROW(57:57))),\"\")","v":""},{"$f":"IFERROR(INDEX(Temp!C$3:C$170, SMALL(IF(ISERROR(Temp!C$3:C$170), \"\", ROW(Temp!C$3:C$170)-MIN(ROW(Temp!C$3:C$170))+1), ROW(57:57))),\"\")","v":""},{"$f":"IFERROR(INDEX(Temp!D$3:D$170, SMALL(IF(ISERROR(Temp!D$3:D$170), \"\", ROW(Temp!D$3:D$170)-MIN(ROW(Temp!D$3:D$170))+1), ROW(57:57))),\"\")","v":""}]
[{"$f":"IFERROR(INDEX(Temp!A$3:A$170, SMALL(IF(ISERROR(Temp!A$3:A$170), \"\", ROW(Temp!A$3:A$170)-MIN(ROW(Temp!A$3:A$170))+1), ROW(58:58))),\"\")","v":""},{"$f":"IFERROR(INDEX(Temp!B$3:B$170, SMALL(IF(ISERROR(Temp!B$3:B$170), \"\", ROW(Temp!B$3:B$170)-MIN(ROW(Temp!B$3:B$170))+1), ROW(58:58))),\"\")","v":""},{"$f":"IFERROR(INDEX(Temp!C$3:C$170, SMALL(IF(ISERROR(Temp!C$3:C$170), \"\", ROW(Temp!C$3:C$170)-MIN(ROW(Temp!C$3:C$170))+1), ROW(58:58))),\"\")","v":""},{"$f":"IFERROR(INDEX(Temp!D$3:D$170, SMALL(IF(ISERROR(Temp!D$3:D$170), \"\", ROW(Temp!D$3:D$170)-MIN(ROW(Temp!D$3:D$170))+1), ROW(58:58))),\"\")","v":""}]
[{"$f":"IFERROR(INDEX(Temp!A$3:A$170, SMALL(IF(ISERROR(Temp!A$3:A$170), \"\", ROW(Temp!A$3:A$170)-MIN(ROW(Temp!A$3:A$170))+1), ROW(59:59))),\"\")","v":""},{"$f":"IFERROR(INDEX(Temp!B$3:B$170, SMALL(IF(ISERROR(Temp!B$3:B$170), \"\", ROW(Temp!B$3:B$170)-MIN(ROW(Temp!B$3:B$170))+1), ROW(59:59))),\"\")","v":""},{"$f":"IFERROR(INDEX(Temp!C$3:C$170, SMALL(IF(ISERROR(Temp!C$3:C$170), \"\", ROW(Temp!C$3:C$170)-MIN(ROW(Temp!C$3:C$170))+1), ROW(59:59))),\"\")","v":""},{"$f":"IFERROR(INDEX(Temp!D$3:D$170, SMALL(IF(ISERROR(Temp!D$3:D$170), \"\", ROW(Temp!D$3:D$170)-MIN(ROW(Temp!D$3:D$170))+1), ROW(59:59))),\"\")","v":""}]
[{"$f":"IFERROR(INDEX(Temp!A$3:A$170, SMALL(IF(ISERROR(Temp!A$3:A$170), \"\", ROW(Temp!A$3:A$170)-MIN(ROW(Temp!A$3:A$170))+1), ROW(60:60))),\"\")","v":""},{"$f":"IFERROR(INDEX(Temp!B$3:B$170, SMALL(IF(ISERROR(Temp!B$3:B$170), \"\", ROW(Temp!B$3:B$170)-MIN(ROW(Temp!B$3:B$170))+1), ROW(60:60))),\"\")","v":""},{"$f":"IFERROR(INDEX(Temp!C$3:C$170, SMALL(IF(ISERROR(Temp!C$3:C$170), \"\", ROW(Temp!C$3:C$170)-MIN(ROW(Temp!C$3:C$170))+1), ROW(60:60))),\"\")","v":""},{"$f":"IFERROR(INDEX(Temp!D$3:D$170, SMALL(IF(ISERROR(Temp!D$3:D$170), \"\", ROW(Temp!D$3:D$170)-MIN(ROW(Temp!D$3:D$170))+1), ROW(60:60))),\"\")","v":""}]
[{"$f":"IFERROR(INDEX(Temp!A$3:A$170, SMALL(IF(ISERROR(Temp!A$3:A$170), \"\", ROW(Temp!A$3:A$170)-MIN(ROW(Temp!A$3:A$170))+1), ROW(61:61))),\"\")","v":""},{"$f":"IFERROR(INDEX(Temp!B$3:B$170, SMALL(IF(ISERROR(Temp!B$3:B$170), \"\", ROW(Temp!B$3:B$170)-MIN(ROW(Temp!B$3:B$170))+1), ROW(61:61))),\"\")","v":""},{"$f":"IFERROR(INDEX(Temp!C$3:C$170, SMALL(IF(ISERROR(Temp!C$3:C$170), \"\", ROW(Temp!C$3:C$170)-MIN(ROW(Temp!C$3:C$170))+1), ROW(61:61))),\"\")","v":""},{"$f":"IFERROR(INDEX(Temp!D$3:D$170, SMALL(IF(ISERROR(Temp!D$3:D$170), \"\", ROW(Temp!D$3:D$170)-MIN(ROW(Temp!D$3:D$170))+1), ROW(61:61))),\"\")","v":""}]
[{"$f":"IFERROR(INDEX(Temp!A$3:A$170, SMALL(IF(ISERROR(Temp!A$3:A$170), \"\", ROW(Temp!A$3:A$170)-MIN(ROW(Temp!A$3:A$170))+1), ROW(62:62))),\"\")","v":""},{"$f":"IFERROR(INDEX(Temp!B$3:B$170, SMALL(IF(ISERROR(Temp!B$3:B$170), \"\", ROW(Temp!B$3:B$170)-MIN(ROW(Temp!B$3:B$170))+1), ROW(62:62))),\"\")","v":""},{"$f":"IFERROR(INDEX(Temp!C$3:C$170, SMALL(IF(ISERROR(Temp!C$3:C$170), \"\", ROW(Temp!C$3:C$170)-MIN(ROW(Temp!C$3:C$170))+1), ROW(62:62))),\"\")","v":""},{"$f":"IFERROR(INDEX(Temp!D$3:D$170, SMALL(IF(ISERROR(Temp!D$3:D$170), \"\", ROW(Temp!D$3:D$170)-MIN(ROW(Temp!D$3:D$170))+1), ROW(62:62))),\"\")","v":""}]
[{"$f":"IFERROR(INDEX(Temp!A$3:A$170, SMALL(IF(ISERROR(Temp!A$3:A$170), \"\", ROW(Temp!A$3:A$170)-MIN(ROW(Temp!A$3:A$170))+1), ROW(63:63))),\"\")","v":""},{"$f":"IFERROR(INDEX(Temp!B$3:B$170, SMALL(IF(ISERROR(Temp!B$3:B$170), \"\", ROW(Temp!B$3:B$170)-MIN(ROW(Temp!B$3:B$170))+1), ROW(63:63))),\"\")","v":""},{"$f":"IFERROR(INDEX(Temp!C$3:C$170, SMALL(IF(ISERROR(Temp!C$3:C$170), \"\", ROW(Temp!C$3:C$170)-MIN(ROW(Temp!C$3:C$170))+1), ROW(63:63))),\"\")","v":""},{"$f":"IFERROR(INDEX(Temp!D$3:D$170, SMALL(IF(ISERROR(Temp!D$3:D$170), \"\", ROW(Temp!D$3:D$170)-MIN(ROW(Temp!D$3:D$170))+1), ROW(63:63))),\"\")","v":""}]
[{"$f":"IFERROR(INDEX(Temp!A$3:A$170, SMALL(IF(ISERROR(Temp!A$3:A$170), \"\", ROW(Temp!A$3:A$170)-MIN(ROW(Temp!A$3:A$170))+1), ROW(64:64))),\"\")","v":""},{"$f":"IFERROR(INDEX(Temp!B$3:B$170, SMALL(IF(ISERROR(Temp!B$3:B$170), \"\", ROW(Temp!B$3:B$170)-MIN(ROW(Temp!B$3:B$170))+1), ROW(64:64))),\"\")","v":""},{"$f":"IFERROR(INDEX(Temp!C$3:C$170, SMALL(IF(ISERROR(Temp!C$3:C$170), \"\", ROW(Temp!C$3:C$170)-MIN(ROW(Temp!C$3:C$170))+1), ROW(64:64))),\"\")","v":""},{"$f":"IFERROR(INDEX(Temp!D$3:D$170, SMALL(IF(ISERROR(Temp!D$3:D$170), \"\", ROW(Temp!D$3:D$170)-MIN(ROW(Temp!D$3:D$170))+1), ROW(64:64))),\"\")","v":""}]
[{"$f":"IFERROR(INDEX(Temp!A$3:A$170, SMALL(IF(ISERROR(Temp!A$3:A$170), \"\", ROW(Temp!A$3:A$170)-MIN(ROW(Temp!A$3:A$170))+1), ROW(65:65))),\"\")","v":""},{"$f":"IFERROR(INDEX(Temp!B$3:B$170, SMALL(IF(ISERROR(Temp!B$3:B$170), \"\", ROW(Temp!B$3:B$170)-MIN(ROW(Temp!B$3:B$170))+1), ROW(65:65))),\"\")","v":""},{"$f":"IFERROR(INDEX(Temp!C$3:C$170, SMALL(IF(ISERROR(Temp!C$3:C$170), \"\", ROW(Temp!C$3:C$170)-MIN(ROW(Temp!C$3:C$170))+1), ROW(65:65))),\"\")","v":""},{"$f":"IFERROR(INDEX(Temp!D$3:D$170, SMALL(IF(ISERROR(Temp!D$3:D$170), \"\", ROW(Temp!D$3:D$170)-MIN(ROW(Temp!D$3:D$170))+1), ROW(65:65))),\"\")","v":""}]
[{"$f":"IFERROR(INDEX(Temp!A$3:A$170, SMALL(IF(ISERROR(Temp!A$3:A$170), \"\", ROW(Temp!A$3:A$170)-MIN(ROW(Temp!A$3:A$170))+1), ROW(66:66))),\"\")","v":""},{"$f":"IFERROR(INDEX(Temp!B$3:B$170, SMALL(IF(ISERROR(Temp!B$3:B$170), \"\", ROW(Temp!B$3:B$170)-MIN(ROW(Temp!B$3:B$170))+1), ROW(66:66))),\"\")","v":""},{"$f":"IFERROR(INDEX(Temp!C$3:C$170, SMALL(IF(ISERROR(Temp!C$3:C$170), \"\", ROW(Temp!C$3:C$170)-MIN(ROW(Temp!C$3:C$170))+1), ROW(66:66))),\"\")","v":""},{"$f":"IFERROR(INDEX(Temp!D$3:D$170, SMALL(IF(ISERROR(Temp!D$3:D$170), \"\", ROW(Temp!D$3:D$170)-MIN(ROW(Temp!D$3:D$170))+1), ROW(66:66))),\"\")","v":""}]
[{"$f":"IFERROR(INDEX(Temp!A$3:A$170, SMALL(IF(ISERROR(Temp!A$3:A$170), \"\", ROW(Temp!A$3:A$170)-MIN(ROW(Temp!A$3:A$170))+1), ROW(67:67))),\"\")","v":""},{"$f":"IFERROR(INDEX(Temp!B$3:B$170, SMALL(IF(ISERROR(Temp!B$3:B$170), \"\", ROW(Temp!B$3:B$170)-MIN(ROW(Temp!B$3:B$170))+1), ROW(67:67))),\"\")","v":""},{"$f":"IFERROR(INDEX(Temp!C$3:C$170, SMALL(IF(ISERROR(Temp!C$3:C$170), \"\", ROW(Temp!C$3:C$170)-MIN(ROW(Temp!C$3:C$170))+1), ROW(67:67))),\"\")","v":""},{"$f":"IFERROR(INDEX(Temp!D$3:D$170, SMALL(IF(ISERROR(Temp!D$3:D$170), \"\", ROW(Temp!D$3:D$170)-MIN(ROW(Temp!D$3:D$170))+1), ROW(67:67))),\"\")","v":""}]
[{"$f":"IFERROR(INDEX(Temp!A$3:A$170, SMALL(IF(ISERROR(Temp!A$3:A$170), \"\", ROW(Temp!A$3:A$170)-MIN(ROW(Temp!A$3:A$170))+1), ROW(68:68))),\"\")","v":""},{"$f":"IFERROR(INDEX(Temp!B$3:B$170, SMALL(IF(ISERROR(Temp!B$3:B$170), \"\", ROW(Temp!B$3:B$170)-MIN(ROW(Temp!B$3:B$170))+1), ROW(68:68))),\"\")","v":""},{"$f":"IFERROR(INDEX(Temp!C$3:C$170, SMALL(IF(ISERROR(Temp!C$3:C$170), \"\", ROW(Temp!C$3:C$170)-MIN(ROW(Temp!C$3:C$170))+1), ROW(68:68))),\"\")","v":""},{"$f":"IFERROR(INDEX(Temp!D$3:D$170, SMALL(IF(ISERROR(Temp!D$3:D$170), \"\", ROW(Temp!D$3:D$170)-MIN(ROW(Temp!D$3:D$170))+1), ROW(68:68))),\"\")","v":""}]
[{"$f":"IFERROR(INDEX(Temp!A$3:A$170, SMALL(IF(ISERROR(Temp!A$3:A$170), \"\", ROW(Temp!A$3:A$170)-MIN(ROW(Temp!A$3:A$170))+1), ROW(69:69))),\"\")","v":""},{"$f":"IFERROR(INDEX(Temp!B$3:B$170, SMALL(IF(ISERROR(Temp!B$3:B$170), \"\", ROW(Temp!B$3:B$170)-MIN(ROW(Temp!B$3:B$170))+1), ROW(69:69))),\"\")","v":""},{"$f":"IFERROR(INDEX(Temp!C$3:C$170, SMALL(IF(ISERROR(Temp!C$3:C$170), \"\", ROW(Temp!C$3:C$170)-MIN(ROW(Temp!C$3:C$170))+1), ROW(69:69))),\"\")","v":""},{"$f":"IFERROR(INDEX(Temp!D$3:D$170, SMALL(IF(ISERROR(Temp!D$3:D$170), \"\", ROW(Temp!D$3:D$170)-MIN(ROW(Temp!D$3:D$170))+1), ROW(69:69))),\"\")","v":""}]
[{"$f":"IFERROR(INDEX(Temp!A$3:A$170, SMALL(IF(ISERROR(Temp!A$3:A$170), \"\", ROW(Temp!A$3:A$170)-MIN(ROW(Temp!A$3:A$170))+1), ROW(70:70))),\"\")","v":""},{"$f":"IFERROR(INDEX(Temp!B$3:B$170, SMALL(IF(ISERROR(Temp!B$3:B$170), \"\", ROW(Temp!B$3:B$170)-MIN(ROW(Temp!B$3:B$170))+1), ROW(70:70))),\"\")","v":""},{"$f":"IFERROR(INDEX(Temp!C$3:C$170, SMALL(IF(ISERROR(Temp!C$3:C$170), \"\", ROW(Temp!C$3:C$170)-MIN(ROW(Temp!C$3:C$170))+1), ROW(70:70))),\"\")","v":""},{"$f":"IFERROR(INDEX(Temp!D$3:D$170, SMALL(IF(ISERROR(Temp!D$3:D$170), \"\", ROW(Temp!D$3:D$170)-MIN(ROW(Temp!D$3:D$170))+1), ROW(70:70))),\"\")","v":""}]
[{"$f":"IFERROR(INDEX(Temp!A$3:A$170, SMALL(IF(ISERROR(Temp!A$3:A$170), \"\", ROW(Temp!A$3:A$170)-MIN(ROW(Temp!A$3:A$170))+1), ROW(71:71))),\"\")","v":""},{"$f":"IFERROR(INDEX(Temp!B$3:B$170, SMALL(IF(ISERROR(Temp!B$3:B$170), \"\", ROW(Temp!B$3:B$170)-MIN(ROW(Temp!B$3:B$170))+1), ROW(71:71))),\"\")","v":""},{"$f":"IFERROR(INDEX(Temp!C$3:C$170, SMALL(IF(ISERROR(Temp!C$3:C$170), \"\", ROW(Temp!C$3:C$170)-MIN(ROW(Temp!C$3:C$170))+1), ROW(71:71))),\"\")","v":""},{"$f":"IFERROR(INDEX(Temp!D$3:D$170, SMALL(IF(ISERROR(Temp!D$3:D$170), \"\", ROW(Temp!D$3:D$170)-MIN(ROW(Temp!D$3:D$170))+1), ROW(71:71))),\"\")","v":""}]
[{"$f":"IFERROR(INDEX(Temp!A$3:A$170, SMALL(IF(ISERROR(Temp!A$3:A$170), \"\", ROW(Temp!A$3:A$170)-MIN(ROW(Temp!A$3:A$170))+1), ROW(72:72))),\"\")","v":""},{"$f":"IFERROR(INDEX(Temp!B$3:B$170, SMALL(IF(ISERROR(Temp!B$3:B$170), \"\", ROW(Temp!B$3:B$170)-MIN(ROW(Temp!B$3:B$170))+1), ROW(72:72))),\"\")","v":""},{"$f":"IFERROR(INDEX(Temp!C$3:C$170, SMALL(IF(ISERROR(Temp!C$3:C$170), \"\", ROW(Temp!C$3:C$170)-MIN(ROW(Temp!C$3:C$170))+1), ROW(72:72))),\"\")","v":""},{"$f":"IFERROR(INDEX(Temp!D$3:D$170, SMALL(IF(ISERROR(Temp!D$3:D$170), \"\", ROW(Temp!D$3:D$170)-MIN(ROW(Temp!D$3:D$170))+1), ROW(72:72))),\"\")","v":""}]
[{"$f":"IFERROR(INDEX(Temp!A$3:A$170, SMALL(IF(ISERROR(Temp!A$3:A$170), \"\", ROW(Temp!A$3:A$170)-MIN(ROW(Temp!A$3:A$170))+1), ROW(73:73))),\"\")","v":""},{"$f":"IFERROR(INDEX(Temp!B$3:B$170, SMALL(IF(ISERROR(Temp!B$3:B$170), \"\", ROW(Temp!B$3:B$170)-MIN(ROW(Temp!B$3:B$170))+1), ROW(73:73))),\"\")","v":""},{"$f":"IFERROR(INDEX(Temp!C$3:C$170, SMALL(IF(ISERROR(Temp!C$3:C$170), \"\", ROW(Temp!C$3:C$170)-MIN(ROW(Temp!C$3:C$170))+1), ROW(73:73))),\"\")","v":""},{"$f":"IFERROR(INDEX(Temp!D$3:D$170, SMALL(IF(ISERROR(Temp!D$3:D$170), \"\", ROW(Temp!D$3:D$170)-MIN(ROW(Temp!D$3:D$170))+1), ROW(73:73))),\"\")","v":""}]

{"sheet":"Hoja3","index":6,"n_rows":0,"n_cols":0,"rows_kept":0,"cut":false,"hidden":true,"merged":[]}